Service Area,Service Division,Expense Type,Expense Code,Detailed Expense Type,Payment Date,Transaction Number,Amount Exc VAT,Supplier Name
Children and Young Peoples Services,Head of Childrens Social Care,Employees,080025,Agency Staff,01/12/2021,3941874-2454492,"147,412.68",GEOMETRIC RESULTS INTERNATIONAL.
Adult and Health Services,Head of Adults,Premises,145050,Cleaning and Domestic Supplies,01/12/2021,3942107-30112890,"2,784.00",RENTOKIL INITIAL UK LTD.
Neighbourhoods and Climate Change,Environmental Services,Supplies and Services,328041,Clothing uniforms and laundry E328,01/12/2021,3942200-NSIN00065504,"2,646.50",THOMAS OWEN & SONS (NEWCASTLE) LTD.
Resources BK0010,Digital and Customer Services,Supplies and Services,342051,Computers and Communications,01/12/2021,3942251-LA56228,"7,700.00",XMA LTD.
Children and Young Peoples Services,Head of Education and Skills,Supplies and Services,352001,Conference Expenses,01/12/2021,3941677-1021/04,800.00,ADAM BUSHNELL LTD.
Neighbourhoods and Climate Change,Technical Services CM0300,Construction work A908,908105,Construction work,01/12/2021,3941923-25884,935.37,JACK COUPE & SONS LTD T/A COUPE LINE.
Neighbourhoods and Climate Change,Technical Services CM0300,Construction work A908,908105,Construction work,01/12/2021,3941923-25889,788.05,JACK COUPE & SONS LTD T/A COUPE LINE.
"Regeneration, Economy and Growth",Development and Housing,Construction work A908,908105,Construction work,01/12/2021,3941940-17642,"121,639.42",JOHN HELLENS (CONTRACTS) LTD.
Children and Young Peoples Services,Head of Education and Skills,Construction work A908,908105,Construction work,01/12/2021,3942122-6498,"34,379.84",SAFE STRIP UK LTD.
Children and Young Peoples Services,Head of Education and Skills,Construction work A908,908105,Construction work,01/12/2021,3942122-6536,"17,189.92",SAFE STRIP UK LTD.
Children and Young Peoples Services,Head of Education and Skills,Construction work A908,908105,Construction work,01/12/2021,3942122-6537,"17,189.92",SAFE STRIP UK LTD.
Children and Young Peoples Services,Head of Education and Skills,Transport,230007,Contract Hire,01/12/2021,3941682-313,"1,120.00",ALANS TAXIS BARNARD CASTLE.
Children and Young Peoples Services,Head of Education and Skills,Transport,230007,Contract Hire,01/12/2021,3941682-314,944.00,ALANS TAXIS BARNARD CASTLE.
Children and Young Peoples Services,Head of Education and Skills,Transport,230007,Contract Hire,01/12/2021,3941682-312,800.00,ALANS TAXIS BARNARD CASTLE.
Children and Young Peoples Services,Head of Education and Skills,Transport,230013,Contract Hire,01/12/2021,3941702-063,556.00,AUCKLAND TRAVEL.
Children and Young Peoples Services,Head of Education and Skills,Transport,230010,Contract Hire,01/12/2021,3941702-062,"3,256.00",AUCKLAND TRAVEL.
Children and Young Peoples Services,Head of Education and Skills,Transport,230008,Contract Hire,01/12/2021,3941702-061,"3,124.00",AUCKLAND TRAVEL.
Children and Young Peoples Services,Head of Education and Skills,Transport,230008,Contract Hire,01/12/2021,3941702-059,"3,318.00",AUCKLAND TRAVEL.
Children and Young Peoples Services,Head of Education and Skills,Transport,230008,Contract Hire,01/12/2021,3941702-060,"2,604.00",AUCKLAND TRAVEL.
Children and Young Peoples Services,Head of Education and Skills,Transport,230008,Contract Hire,01/12/2021,3941708-978,"2,341.46",BEELINE MINI BUSES.
Children and Young Peoples Services,Head of Education and Skills,Transport,230008,Contract Hire,01/12/2021,3941708-979,"2,137.30",BEELINE MINI BUSES.
Children and Young Peoples Services,Head of Education and Skills,Transport,230008,Contract Hire,01/12/2021,3941708-980,"1,561.56",BEELINE MINI BUSES.
Children and Young Peoples Services,Head of Education and Skills,Transport,230008,Contract Hire,01/12/2021,3941709-SMITH1NOVEMBER21,"2,876.94",BEELINE PRIVATE HIRE.
Children and Young Peoples Services,Head of Education and Skills,Transport,230008,Contract Hire,01/12/2021,3941709-SMITH2NOVEMBER21,"1,024.13",BEELINE PRIVATE HIRE.
Children and Young Peoples Services,Head of Education and Skills,Transport,230008,Contract Hire,01/12/2021,3941726-087,"1,760.00",BL CARS.
Children and Young Peoples Services,Head of Education and Skills,Transport,230007,Contract Hire,01/12/2021,3941732-003NOV21,880.00,BOWBURN TAXIS.
Children and Young Peoples Services,Head of Education and Skills,Transport,230008,Contract Hire,01/12/2021,3941798-111493,"1,760.00",CROFT BUSINESS SERVICES LTD T/A CROFT TRAVEL.
Children and Young Peoples Services,Head of Education and Skills,Transport,230007,Contract Hire,01/12/2021,3941806-17-4227,"3,969.00",DANNY`S TRAVEL.
Children and Young Peoples Services,Head of Education and Skills,Transport,230003,Contract Hire,01/12/2021,3941806-17-4270,"2,629.00",DANNY`S TRAVEL.
Children and Young Peoples Services,Head of Education and Skills,Transport,230008,Contract Hire,01/12/2021,3941807-3669,"1,713.00",DAVES MINIBUSES.
Children and Young Peoples Services,Head of Education and Skills,Transport,230008,Contract Hire,01/12/2021,3941807-3669-2,816.20,DAVES MINIBUSES.
Children and Young Peoples Services,Head of Education and Skills,Transport,230008,Contract Hire,01/12/2021,3941807-3670,"2,244.00",DAVES MINIBUSES.
Children and Young Peoples Services,Head of Education and Skills,Transport,230008,Contract Hire,01/12/2021,3941807-3671,"2,025.76",DAVES MINIBUSES.
Children and Young Peoples Services,Head of Education and Skills,Transport,230008,Contract Hire,01/12/2021,3941807-3668,"2,525.46",DAVES MINIBUSES.
Children and Young Peoples Services,Head of Education and Skills,Transport,230008,Contract Hire,01/12/2021,3941807-3673,"2,058.00",DAVES MINIBUSES.
Children and Young Peoples Services,Head of Education and Skills,Transport,230008,Contract Hire,01/12/2021,3941807-3672-NOV,"2,112.00",DAVES MINIBUSES.
Children and Young Peoples Services,Head of Education and Skills,Transport,230008,Contract Hire,01/12/2021,3941817-25,"2,090.00",DEXTERS PRIVATE HIRE.
Children and Young Peoples Services,Head of Education and Skills,Transport,230008,Contract Hire,01/12/2021,3941835-1189,"1,480.00",EAST DURHAM TAXIS.
Children and Young Peoples Services,Head of Education and Skills,Transport,230008,Contract Hire,01/12/2021,3941868-102506AMENDED,"1,664.00",G & P JOHNSON LTD T/A NIGHTINGALE COACHES.
Children and Young Peoples Services,Head of Education and Skills,Transport,230016,Contract Hire,01/12/2021,3941871-14100/1,"3,744.00",GATESHEAD CENTRAL TAXIS LTD.
Children and Young Peoples Services,Head of Education and Skills,Transport,230008,Contract Hire,01/12/2021,3941871-14100/2,"3,840.00",GATESHEAD CENTRAL TAXIS LTD.
Children and Young Peoples Services,Head of Education and Skills,Transport,230007,Contract Hire,01/12/2021,3941878-77674,"9,416.00",GO GATESHEAD LTD.
Children and Young Peoples Services,Head of Education and Skills,Transport,230003,Contract Hire,01/12/2021,3941878-77675,"5,258.00",GO GATESHEAD LTD.
Children and Young Peoples Services,Head of Education and Skills,Transport,230006,Contract Hire,01/12/2021,3941884-002-OCT21-F782,769.10,GUY`S TAXIS.
Children and Young Peoples Services,Head of Education and Skills,Transport,230031,Contract Hire,01/12/2021,3941905-19180,"1,876.00",HODGSONS COACH OPERATORS LTD.
Children and Young Peoples Services,Head of Education and Skills,Transport,230031,Contract Hire,01/12/2021,3941905-19350,"1,742.00",HODGSONS COACH OPERATORS LTD.
Children and Young Peoples Services,Head of Education and Skills,Transport,230008,Contract Hire,01/12/2021,3941929-2021/22,"3,763.32",JAYS TAXIS/JOHN GARLAND (TAXIS).
Children and Young Peoples Services,Head of Education and Skills,Transport,230008,Contract Hire,01/12/2021,3941929-2021/23,"4,327.40",JAYS TAXIS/JOHN GARLAND (TAXIS).
Children and Young Peoples Services,Head of Education and Skills,Transport,230008,Contract Hire,01/12/2021,3941929-2021/24,"4,180.00",JAYS TAXIS/JOHN GARLAND (TAXIS).
Children and Young Peoples Services,Head of Education and Skills,Transport,230010,Contract Hire,01/12/2021,3941929-2021/26,"1,120.00",JAYS TAXIS/JOHN GARLAND (TAXIS).
Children and Young Peoples Services,Head of Education and Skills,Transport,230008,Contract Hire,01/12/2021,3941929-2021/19-A005,"3,520.00",JAYS TAXIS/JOHN GARLAND (TAXIS).
Children and Young Peoples Services,Head of Education and Skills,Transport,230008,Contract Hire,01/12/2021,3941929-2021/21,"2,200.00",JAYS TAXIS/JOHN GARLAND (TAXIS).
Children and Young Peoples Services,Head of Education and Skills,Transport,230016,Contract Hire,01/12/2021,3941929-2021/19N003,"3,640.00",JAYS TAXIS/JOHN GARLAND (TAXIS).
Children and Young Peoples Services,Head of Education and Skills,Transport,230008,Contract Hire,01/12/2021,3941929-2021/18,"1,680.00",JAYS TAXIS/JOHN GARLAND (TAXIS).
Children and Young Peoples Services,Head of Education and Skills,Transport,230031,Contract Hire,01/12/2021,3941975-29937,"1,890.00",LEE`S COACHES LTD.
Children and Young Peoples Services,Head of Education and Skills,Transport,230031,Contract Hire,01/12/2021,3941975-30056,"1,200.00",LEE`S COACHES LTD.
Children and Young Peoples Services,Head of Education and Skills,Transport,230008,Contract Hire,01/12/2021,3941993-3NOV21,"2,520.00",MALCOLM CARR T/A CARLY CABS.
Children and Young Peoples Services,Head of Education and Skills,Transport,230007,Contract Hire,01/12/2021,3942055-INV-6984,"3,380.00",NORTH EAST COACHWAYS LTD.
Children and Young Peoples Services,Head of Education and Skills,Transport,230007,Contract Hire,01/12/2021,3942055-INV-6985,"2,980.00",NORTH EAST COACHWAYS LTD.
Children and Young Peoples Services,Head of Education and Skills,Transport,230007,Contract Hire,01/12/2021,3942055-INV-6986,"6,258.00",NORTH EAST COACHWAYS LTD.
Children and Young Peoples Services,Head of Education and Skills,Transport,230007,Contract Hire,01/12/2021,3942055-INV-6987,"2,520.00",NORTH EAST COACHWAYS LTD.
Children and Young Peoples Services,Head of Education and Skills,Transport,230007,Contract Hire,01/12/2021,3942055-INV-6988,"2,625.00",NORTH EAST COACHWAYS LTD.
Children and Young Peoples Services,Head of Education and Skills,Transport,230007,Contract Hire,01/12/2021,3942055-INV6989,"2,814.00",NORTH EAST COACHWAYS LTD.
Children and Young Peoples Services,Head of Education and Skills,Transport,230034,Contract Hire,01/12/2021,3942087-2095-OCT21,"1,167.00",PETER`S TAXIS.
Children and Young Peoples Services,Head of Education and Skills,Transport,230007,Contract Hire,01/12/2021,3942087-2088-OCT21,"1,149.21",PETER`S TAXIS.
Children and Young Peoples Services,Head of Education and Skills,Transport,230034,Contract Hire,01/12/2021,3942087-3422-OCT21,"1,050.00",PETER`S TAXIS.
Children and Young Peoples Services,Head of Education and Skills,Transport,230006,Contract Hire,01/12/2021,3942087-F789-NOV21,"1,800.00",PETER`S TAXIS.
Adult and Health Services,Head of Adults,Transport,230005,Contract Hire,01/12/2021,3941891-02NOV21,855.00,REDACTED - PAYMENT TO INDIVIDUAL
Children and Young Peoples Services,Head of Education and Skills,Transport,230006,Contract Hire,01/12/2021,3941891-03NOV21,"1,785.72",REDACTED - PAYMENT TO INDIVIDUAL
Children and Young Peoples Services,Head of Education and Skills,Transport,230008,Contract Hire,01/12/2021,3942006-INV224,"1,474.00",REDACTED - PAYMENT TO INDIVIDUAL
Children and Young Peoples Services,Head of Education and Skills,Transport,230006,Contract Hire,01/12/2021,317236-003,"2,322.00",REDACTED - PAYMENT TO INDIVIDUAL
Children and Young Peoples Services,Head of Education and Skills,Transport,230006,Contract Hire,01/12/2021,3942178-002-OCT21,"1,162.96",REDACTED - PAYMENT TO INDIVIDUAL
Adult and Health Services,Head of Adults,Transport,230005,Contract Hire,01/12/2021,3942206-0002295,"3,300.00",REDACTED - PAYMENT TO INDIVIDUAL
Children and Young Peoples Services,Head of Education and Skills,Transport,230008,Contract Hire,01/12/2021,3942206-000292,"3,570.00",REDACTED - PAYMENT TO INDIVIDUAL
Children and Young Peoples Services,Head of Education and Skills,Transport,230008,Contract Hire,01/12/2021,3942206-0002294,"5,170.00",REDACTED - PAYMENT TO INDIVIDUAL
Children and Young Peoples Services,Head of Education and Skills,Transport,230008,Contract Hire,01/12/2021,3942206-0002297,"2,090.00",REDACTED - PAYMENT TO INDIVIDUAL
Children and Young Peoples Services,Head of Education and Skills,Transport,230006,Contract Hire,01/12/2021,3942206-0002298,"1,190.00",REDACTED - PAYMENT TO INDIVIDUAL
Children and Young Peoples Services,Head of Education and Skills,Transport,230034,Contract Hire,01/12/2021,3942019-INV0062,"2,422.54",REDACTED - PAYMENT TO INDIVIDUAL
Children and Young Peoples Services,Head of Education and Skills,Transport,230006,Contract Hire,01/12/2021,3942019-INV0063,"1,102.93",REDACTED - PAYMENT TO INDIVIDUAL
Children and Young Peoples Services,Head of Education and Skills,Transport,230008,Contract Hire,01/12/2021,3942020-NOV21,"1,624.00",REDACTED - PAYMENT TO INDIVIDUAL
Children and Young Peoples Services,Head of Education and Skills,Transport,230008,Contract Hire,01/12/2021,3942116-0025,"2,926.00",RONS TAXI (CHESTER LE ST).
Children and Young Peoples Services,Head of Education and Skills,Transport,230008,Contract Hire,01/12/2021,3942149-202130,"2,684.00",SPENNYMOOR TAXIS.
Children and Young Peoples Services,Head of Education and Skills,Transport,230007,Contract Hire,01/12/2021,3942179-11/2021/004,664.44,TARNS TAXIS LTD.
Children and Young Peoples Services,Head of Education and Skills,Transport,230031,Contract Hire,01/12/2021,3942187-8023-OCT21,"1,720.00",TED WILFORD COACHES.
Adult and Health Services,Public Health CC0450,Third Party Payments,460803,Contract Payments,01/12/2021,3941802-INV02128,"3,500.00",CYNGOR ALCOHOL INFORMATION SERVICE (CAIS).
"Regeneration, Economy and Growth",Culture Sport and Tourism,Premises,120021,Energy Costs,01/12/2021,3942062-IN01799102,"1,884.74",NPOWER.
"Regeneration, Economy and Growth",Culture Sport and Tourism,Premises,120021,Energy Costs,01/12/2021,3942062-IN01848063,"2,934.16",NPOWER.
"Regeneration, Economy and Growth",Corporate Property and Land,Supplies and Services,304221,Equipment and Materials,01/12/2021,3941704-33479,557.00,AYCLIFFE FABRICATIONS LTD.
Neighbourhoods and Climate Change,Environmental Services,Supplies and Services,304259,Equipment and Materials,01/12/2021,3941730-3065244466,751.70,BOC LTD.
"Regeneration, Economy and Growth",Corporate Property and Land,Supplies and Services,304221,Equipment and Materials,01/12/2021,3941751-10646959,635.31,CARPET & FLOORING (TRADING) LTD.
"Regeneration, Economy and Growth",Corporate Property and Land,Supplies and Services,304221,Equipment and Materials,01/12/2021,3941772-2852ABJ806,"2,534.69",CITY PLUMBING SUPPLIES HOLDINGS LTD.
"Regeneration, Economy and Growth",Corporate Property and Land,Supplies and Services,304221,Equipment and Materials,01/12/2021,3941842-059-291111,552.31,EDMUNDSON ELECTRICAL LTD.
Neighbourhoods and Climate Change,Environmental Services,Supplies and Services,304259,Equipment and Materials,01/12/2021,3941880-INV062645,"2,679.00",GOTT TECHNICAL SERVICES LTD.
Neighbourhoods and Climate Change,Environmental Services,Supplies and Services,304259,Equipment and Materials,01/12/2021,3941880-INV062647,"2,325.28",GOTT TECHNICAL SERVICES LTD.
Resources BK0010,Digital and Customer Services,Supplies and Services,304303,Equipment and Materials,01/12/2021,3941885-INV0184786,"1,945.00",GVAV LTD.
Neighbourhoods and Climate Change,Technical Services CM0300,Supplies and Services,304221,Equipment and Materials,01/12/2021,3941942-0303/00514684,"11,880.00",JT DOVE LTD.
Neighbourhoods and Climate Change,Technical Services CM0300,Supplies and Services,304358,Equipment and Materials,01/12/2021,3941991-MS3167,541.13,M SPENCE SURFACING LTD.
Neighbourhoods and Climate Change,Environmental Services,Supplies and Services,304358,Equipment and Materials,01/12/2021,3942120-2862,832.50,S & R LANDSCAPES.
Neighbourhoods and Climate Change,Environmental Services,Supplies and Services,304358,Equipment and Materials,01/12/2021,3942120-2877,576.00,S & R LANDSCAPES.
Neighbourhoods and Climate Change,Technical Services CM0300,Supplies and Services,304358,Equipment and Materials,01/12/2021,3942120-2889,"1,042.00",S & R LANDSCAPES.
Neighbourhoods and Climate Change,Technical Services CM0300,Supplies and Services,304358,Equipment and Materials,01/12/2021,3942120-2891,840.00,S & R LANDSCAPES.
Neighbourhoods and Climate Change,Technical Services CM0300,Supplies and Services,304358,Equipment and Materials,01/12/2021,3942120-2894,"1,262.40",S & R LANDSCAPES.
Neighbourhoods and Climate Change,Technical Services CM0300,Supplies and Services,304358,Equipment and Materials,01/12/2021,3942120-3005,840.00,S & R LANDSCAPES.
Neighbourhoods and Climate Change,Technical Services CM0300,Supplies and Services,304358,Equipment and Materials,01/12/2021,3942120-3007,962.00,S & R LANDSCAPES.
Neighbourhoods and Climate Change,Technical Services CM0300,Supplies and Services,304358,Equipment and Materials,01/12/2021,3942120-3039,777.00,S & R LANDSCAPES.
"Regeneration, Economy and Growth",Corporate Property and Land,Supplies and Services,304221,Equipment and Materials,01/12/2021,3942171-180630,"4,135.00",SUPATINT LTD T/A SUPATINT WINDOW FILMS & BLINDS.
Neighbourhoods and Climate Change,Technical Services CM0300,Supplies and Services,304221,Equipment and Materials,01/12/2021,3942221-228219,709.84,TYNEDALE ROADSTONE LTD.
Neighbourhoods and Climate Change,Technical Services CM0300,Supplies and Services,304221,Equipment and Materials,01/12/2021,3942221-228222,798.94,TYNEDALE ROADSTONE LTD.
Neighbourhoods and Climate Change,Technical Services CM0300,Supplies and Services,304221,Equipment and Materials,01/12/2021,3942221-228225,598.96,TYNEDALE ROADSTONE LTD.
Neighbourhoods and Climate Change,Technical Services CM0300,Supplies and Services,304221,Equipment and Materials,01/12/2021,3942221-228363,910.81,TYNEDALE ROADSTONE LTD.
Neighbourhoods and Climate Change,Technical Services CM0300,Supplies and Services,304221,Equipment and Materials,01/12/2021,3942221-228364,"1,085.05",TYNEDALE ROADSTONE LTD.
Neighbourhoods and Climate Change,Technical Services CM0300,Supplies and Services,304221,Equipment and Materials,01/12/2021,3942221-228368,"1,432.55",TYNEDALE ROADSTONE LTD.
Neighbourhoods and Climate Change,Technical Services CM0300,Supplies and Services,304221,Equipment and Materials,01/12/2021,3942221-228369,"1,079.11",TYNEDALE ROADSTONE LTD.
Neighbourhoods and Climate Change,Technical Services CM0300,Supplies and Services,304221,Equipment and Materials,01/12/2021,3942221-228373,"1,000.90",TYNEDALE ROADSTONE LTD.
Neighbourhoods and Climate Change,Technical Services CM0300,Supplies and Services,304221,Equipment and Materials,01/12/2021,3942221-228374,"1,091.09",TYNEDALE ROADSTONE LTD.
Neighbourhoods and Climate Change,Technical Services CM0300,Supplies and Services,304221,Equipment and Materials,01/12/2021,3942221-228476,599.95,TYNEDALE ROADSTONE LTD.
Neighbourhoods and Climate Change,Technical Services CM0300,Supplies and Services,304221,Equipment and Materials,01/12/2021,3942221-228477,"1,085.05",TYNEDALE ROADSTONE LTD.
Neighbourhoods and Climate Change,Technical Services CM0300,Supplies and Services,304221,Equipment and Materials,01/12/2021,3942221-228547,"1,022.68",TYNEDALE ROADSTONE LTD.
Neighbourhoods and Climate Change,Technical Services CM0300,Supplies and Services,304221,Equipment and Materials,01/12/2021,3942221-228548,911.80,TYNEDALE ROADSTONE LTD.
"Regeneration, Economy and Growth",Development and Housing,Cap Exp on Grants & Other Financial Assistance (REFCUS),918501,Exp assets not owned by authority,01/12/2021,3941803-RED-11-2021-261,"50,000.00",DALTON OLD PUMP HOUSE LTD.
Neighbourhoods and Climate Change,Environmental Services,Cap Exp on Grants & Other Financial Assistance (REFCUS),918501,Exp assets not owned by authority,01/12/2021,3941999-1281,"2,209.98",MARSDEN AES LTD.
"Regeneration, Economy and Growth",Development and Housing,Cap Exp on Grants & Other Financial Assistance (REFCUS),918501,Exp assets not owned by authority,01/12/2021,3942099-RED-11-2021-255,"4,050.00",PROPERTY PROJECTS (NE) LTD.
"Regeneration, Economy and Growth",Development and Housing,Cap Exp on Grants & Other Financial Assistance (REFCUS),918501,Exp assets not owned by authority,01/12/2021,3942152-RED-11-2021-258,"3,898.80",ST ANNE`S CHURCH BISHOP AUCKLAND.
Children and Young Peoples Services,Head of Early Help Inclusion & Vulnerable Children.,Supplies and Services,308011,Furniture,01/12/2021,3941683-173048,865.00,ALBANY OFFICE EQUIPMENT (WHOLESALE) LTD.
Resources BK0010,Legal & Democratic Services,Supplies and Services,308011,Furniture,01/12/2021,3941683-173107,700.00,ALBANY OFFICE EQUIPMENT (WHOLESALE) LTD.
"Regeneration, Economy and Growth",Culture Sport and Tourism,Supplies and Services,384199,Miscellaneous Expenses,01/12/2021,3941689-BM0089,500.00,ANDREW ROACH TALENT LTD.
Neighbourhoods and Climate Change,Environmental Services,Supplies and Services,384199,Miscellaneous Expenses,01/12/2021,3941784-JOBO01/20525,625.00,COLIN JOBLING T/A RAINBOW INTERNATIONAL.
"Regeneration, Economy and Growth",Culture Sport and Tourism,Supplies and Services,384700,Miscellaneous Expenses,01/12/2021,3941924-NEI-HCL-11-2021-032,"10,000.00",JACK DRUM ARTS LTD.
Adult and Health Services,Public Health CC0450,Supplies and Services,384155,Miscellaneous Expenses,01/12/2021,3942051-1000071325,"70,269.61",NHS BUSINESS SERVICES AUTHORITY (NHSBSA).
"Regeneration, Economy and Growth",Culture Sport and Tourism,Supplies and Services,384700,Miscellaneous Expenses,01/12/2021,3942059-NEI-HCL-11-2021-033,"8,000.00",NORTHERN HEARTLANDS.
Neighbourhoods and Climate Change,Environmental Services,Supplies and Services,384199,Miscellaneous Expenses,01/12/2021,3942162-0000147055,566.00,STANTON MORTIMER LTD.
"Regeneration, Economy and Growth",Culture Sport and Tourism,Supplies and Services,384700,Miscellaneous Expenses,01/12/2021,3942202-NEI-HCL-11-2021-034,"13,100.00",TIN ARTS LTD.
"Regeneration, Economy and Growth",Culture Sport and Tourism,Supplies and Services,312013,Newspapers books and periodicals E312,01/12/2021,3941701-6591462,645.52,ASKEWS & HOLTS LIBRARY SERVICES LTD.
"Regeneration, Economy and Growth",Culture Sport and Tourism,Supplies and Services,312013,Newspapers books and periodicals E312,01/12/2021,3941701-6596014,525.71,ASKEWS & HOLTS LIBRARY SERVICES LTD.
"Regeneration, Economy and Growth",Culture Sport and Tourism,Supplies and Services,312013,Newspapers books and periodicals E312,01/12/2021,3941701-6600808,758.52,ASKEWS & HOLTS LIBRARY SERVICES LTD.
"Regeneration, Economy and Growth",Culture Sport and Tourism,Supplies and Services,312013,Newspapers books and periodicals E312,01/12/2021,3941701-6600835,616.84,ASKEWS & HOLTS LIBRARY SERVICES LTD.
"Regeneration, Economy and Growth",Culture Sport and Tourism,Supplies and Services,312013,Newspapers books and periodicals E312,01/12/2021,3941701-6600872,875.78,ASKEWS & HOLTS LIBRARY SERVICES LTD.
Adult and Health Services,Head of Adults,Third Party Payments,473101,Purchase of Care,01/12/2021,317237-I-21-2332757,799.20,THE WIDER WORLD PROJECT.
"Regeneration, Economy and Growth",Corporate Property and Land,Third Party Payments,430100,Rendered by Private Contractors,01/12/2021,3941676-IN9157,"1,261.00",ACROL AIR CONDITIONING CO LTD.
"Regeneration, Economy and Growth",Corporate Property and Land,Third Party Payments,430100,Rendered by Private Contractors,01/12/2021,3941676-IN9165,"4,162.11",ACROL AIR CONDITIONING CO LTD.
"Regeneration, Economy and Growth",Corporate Property and Land,Third Party Payments,430100,Rendered by Private Contractors,01/12/2021,3941759-632,523.92,CEILINGS DIRECT LTD.
Neighbourhoods and Climate Change,Technical Services CM0300,Third Party Payments,430100,Rendered by Private Contractors,01/12/2021,3941854-172533A,563.50,ESH CONSTRUCTION LTD FORMERLY LUMSDEN & CARROLL CONSTRUCTION LTD.
Neighbourhoods and Climate Change,Technical Services CM0300,Third Party Payments,430100,Rendered by Private Contractors,01/12/2021,3941903-3320,"3,740.00",HIGHWAY CONSTRUCTION SERVICES LTD.
Neighbourhoods and Climate Change,Technical Services CM0300,Third Party Payments,430100,Rendered by Private Contractors,01/12/2021,3942089-6254,"4,836.65",PINKNEY BUILDING CONTRACTORS LTD.
Neighbourhoods and Climate Change,Technical Services CM0300,Third Party Payments,430127,Rendered by Private Contractors,01/12/2021,3942120-3017,797.00,S & R LANDSCAPES.
"Regeneration, Economy and Growth",Corporate Property and Land,Third Party Payments,430100,Rendered by Private Contractors,01/12/2021,3942122-6556,"2,600.00",SAFE STRIP UK LTD.
"Regeneration, Economy and Growth",Corporate Property and Land,Third Party Payments,430100,Rendered by Private Contractors,01/12/2021,3942171-180643,"3,458.00",SUPATINT LTD T/A SUPATINT WINDOW FILMS & BLINDS.
Neighbourhoods and Climate Change,Environmental Services,Third Party Payments,430100,Rendered by Private Contractors,01/12/2021,3942197-0742,825.00,THE SKILL MILL LTD.
"Regeneration, Economy and Growth",Corporate Property and Land,Third Party Payments,430100,Rendered by Private Contractors,01/12/2021,3942219-17055,"1,533.94",TYNE TEES THERMAL LTD.
"Regeneration, Economy and Growth",Corporate Property and Land,Third Party Payments,430100,Rendered by Private Contractors,01/12/2021,3942220-DCC/GT/231,920.40,TYNE VALLEY FLOORING & CARPETS.
Neighbourhoods and Climate Change,Environmental Services,Transport,215005,Running Costs of Vehicles,01/12/2021,3942255-832248,"2,392.99",YOUR NRG LTD.
Dedicated Schools Grant BG0015,DSG Early Years Block,Transfer Payments,510030,School Children,01/12/2021,3941703-27871,"9,660.27",AYCLIFFE DAY NURSERY.
Dedicated Schools Grant BG0015,DSG Early Years Block,Transfer Payments,510032,School Children,01/12/2021,3941703-27650,"4,142.25",AYCLIFFE DAY NURSERY.
Dedicated Schools Grant BG0015,DSG Early Years Block,Transfer Payments,510030,School Children,01/12/2021,3941714-27874,"7,577.78",BISHOP AUCKLAND COLLEGE NURSERY.
Dedicated Schools Grant BG0015,DSG Early Years Block,Transfer Payments,510032,School Children,01/12/2021,3941714-27654,"6,848.52",BISHOP AUCKLAND COLLEGE NURSERY.
Dedicated Schools Grant BG0015,DSG Early Years Block,Transfer Payments,510030,School Children,01/12/2021,3941715-27876,"3,678.60",BISHOP CHADWICK CATHOLIC EDUCATION TRUST (NSCET).
Dedicated Schools Grant BG0015,DSG Early Years Block,Transfer Payments,510030,School Children,01/12/2021,3941716-28005,"8,799.18",BISHOP CHADWICK CATHOLIC EDUCATION TRUST (NSCET).
Dedicated Schools Grant BG0015,DSG Early Years Block,Transfer Payments,510032,School Children,01/12/2021,3941716-27767,"1,420.20",BISHOP CHADWICK CATHOLIC EDUCATION TRUST (NSCET).
Dedicated Schools Grant BG0015,DSG Early Years Block,Transfer Payments,510030,School Children,01/12/2021,3941717-28036,"1,135.26",BISHOP HOGARTH CATHOLIC EDUCATION TRUST T/A ST JOSEPHS PRIMARY SCHOOL.
Dedicated Schools Grant BG0015,DSG Early Years Block,Transfer Payments,510030,School Children,01/12/2021,3941718-28042,"16,917.60",BISHOP HOGARTH CATHOLIC EDUCATION TRUST.
Dedicated Schools Grant BG0015,DSG Early Years Block,Transfer Payments,510030,School Children,01/12/2021,3941719-28037,"4,554.67",BISHOP HOGARTH CATHOLIC EDUCATION TRUST.
Dedicated Schools Grant BG0015,DSG Early Years Block,Transfer Payments,510030,School Children,01/12/2021,3941720-28041,747.60,BISHOP HOGARTH CATHOLIC EDUCATION TRUST.
Dedicated Schools Grant BG0015,DSG Early Years Block,Transfer Payments,510030,School Children,01/12/2021,3941721-28035,848.40,BISHOP HOGARTH CATHOLIC EDUCATION TRUST.
Dedicated Schools Grant BG0015,DSG Early Years Block,Transfer Payments,510030,School Children,01/12/2021,3941722-27875,"2,746.50",BISHOP IAN RAMSEY C OF E PRIMARY SCHOOL.
Dedicated Schools Grant BG0015,DSG Early Years Block,Transfer Payments,510032,School Children,01/12/2021,3941722-27655,"1,499.10",BISHOP IAN RAMSEY C OF E PRIMARY SCHOOL.
Dedicated Schools Grant BG0015,DSG Early Years Block,Transfer Payments,510030,School Children,01/12/2021,3941724-28038,"3,116.40",BISHOP WILKINSON CE TRUST.
Dedicated Schools Grant BG0015,DSG Early Years Block,Transfer Payments,510030,School Children,01/12/2021,3941725-28034,"2,147.43",BISHOP WILKINSON CE TRUST.
Dedicated Schools Grant BG0015,DSG Early Years Block,Transfer Payments,510030,School Children,01/12/2021,3941729-27989,"10,470.68",BLUE SKY CHILDCARE.
Dedicated Schools Grant BG0015,DSG Early Years Block,Transfer Payments,510032,School Children,01/12/2021,3941729-27751,"7,818.99",BLUE SKY CHILDCARE.
Dedicated Schools Grant BG0015,DSG Early Years Block,Transfer Payments,510030,School Children,01/12/2021,3941731-27919,"13,176.99",BOW SCHOOL & NURSERY.
Dedicated Schools Grant BG0015,DSG Early Years Block,Transfer Payments,510030,School Children,01/12/2021,3941733-27879,"3,548.68",BOWES PRE SCHOOL.
Dedicated Schools Grant BG0015,DSG Early Years Block,Transfer Payments,510032,School Children,01/12/2021,3941733-27658,"1,288.70",BOWES PRE SCHOOL.
Dedicated Schools Grant BG0015,DSG Early Years Block,Transfer Payments,510030,School Children,01/12/2021,3941737-27881,"32,494.72",BRIGHT STAR NURSERY.
Dedicated Schools Grant BG0015,DSG Early Years Block,Transfer Payments,510032,School Children,01/12/2021,3941737-27660,"19,111.04",BRIGHT STAR NURSERY.
Dedicated Schools Grant BG0015,DSG Early Years Block,Transfer Payments,510030,School Children,01/12/2021,3941741-27882,"3,474.67",BUDDIES CHILDCARE CENTRE.
Dedicated Schools Grant BG0015,DSG Early Years Block,Transfer Payments,510032,School Children,01/12/2021,3941741-27661,"2,135.56",BUDDIES CHILDCARE CENTRE.
Dedicated Schools Grant BG0015,DSG Early Years Block,Transfer Payments,510030,School Children,01/12/2021,3941742-27883,698.24,BURNOPFIELD DAY CARE.
Dedicated Schools Grant BG0015,DSG Early Years Block,Transfer Payments,510032,School Children,01/12/2021,3941742-27662,"2,156.60",BURNOPFIELD DAY CARE.
Dedicated Schools Grant BG0015,DSG Early Years Block,Transfer Payments,510030,School Children,01/12/2021,3941745-27884,"23,489.55",BUSY BEARS (DURHAM) LTD.
Dedicated Schools Grant BG0015,DSG Early Years Block,Transfer Payments,510032,School Children,01/12/2021,3941745-27663,"8,797.35",BUSY BEARS (DURHAM) LTD.
Dedicated Schools Grant BG0015,DSG Early Years Block,Transfer Payments,510030,School Children,01/12/2021,3941746-27885,"36,269.40",BUSY BEES (DURHAM) LTD.
Dedicated Schools Grant BG0015,DSG Early Years Block,Transfer Payments,510032,School Children,01/12/2021,3941746-27664,"7,082.59",BUSY BEES (DURHAM) LTD.
Dedicated Schools Grant BG0015,DSG Early Years Block,Transfer Payments,510030,School Children,01/12/2021,3941747-27886,"2,799.30",BUTTERFLIES DAY CARE.
Dedicated Schools Grant BG0015,DSG Early Years Block,Transfer Payments,510032,School Children,01/12/2021,3941747-27665,552.30,BUTTERFLIES DAY CARE.
Dedicated Schools Grant BG0015,DSG Early Years Block,Transfer Payments,510030,School Children,01/12/2021,3941748-27887,"2,537.64",BYERLEY ROAD PRE SCHOOL.
Dedicated Schools Grant BG0015,DSG Early Years Block,Transfer Payments,510032,School Children,01/12/2021,3941748-27666,"3,550.50",BYERLEY ROAD PRE SCHOOL.
Dedicated Schools Grant BG0015,DSG Early Years Block,Transfer Payments,510030,School Children,01/12/2021,3941754-27891,"9,816.90",CASTLE KINDERGARTEN LTD.
Dedicated Schools Grant BG0015,DSG Early Years Block,Transfer Payments,510030,School Children,01/12/2021,3941755-27892,"1,256.84",CASTLE KINDERGARTEN LTD.
Dedicated Schools Grant BG0015,DSG Early Years Block,Transfer Payments,510032,School Children,01/12/2021,3941754-27668,"6,354.08",CASTLE KINDERGARTEN LTD.
Dedicated Schools Grant BG0015,DSG Early Years Block,Transfer Payments,510032,School Children,01/12/2021,3941755-27669,"2,848.29",CASTLE KINDERGARTEN LTD.
Dedicated Schools Grant BG0015,DSG Early Years Block,Transfer Payments,510030,School Children,01/12/2021,3941756-27893,"24,066.23",CASTLE VIEW PRIVATE DAY NURSERY LTD.
Dedicated Schools Grant BG0015,DSG Early Years Block,Transfer Payments,510032,School Children,01/12/2021,3941756-27670,"2,202.40",CASTLE VIEW PRIVATE DAY NURSERY LTD.
Dedicated Schools Grant BG0015,DSG Early Years Block,Transfer Payments,510030,School Children,01/12/2021,3941777-27901,"7,648.84",CLEVER CLOGS DAY NURSERIES LTD.
Dedicated Schools Grant BG0015,DSG Early Years Block,Transfer Payments,510032,School Children,01/12/2021,3941777-27676,"2,209.20",CLEVER CLOGS DAY NURSERIES LTD.
Dedicated Schools Grant BG0015,DSG Early Years Block,Transfer Payments,510030,School Children,01/12/2021,3941778-27902,"7,377.17",CLEVER CLOGS DAY NURSERY (DURHAM) LTD.
Dedicated Schools Grant BG0015,DSG Early Years Block,Transfer Payments,510032,School Children,01/12/2021,3941778-27677,"6,375.12",CLEVER CLOGS DAY NURSERY (DURHAM) LTD.
Dedicated Schools Grant BG0015,DSG Early Years Block,Transfer Payments,510030,School Children,01/12/2021,3941779-27903,"12,447.57",CLEVES CROSS ACADEMY.
Dedicated Schools Grant BG0015,DSG Early Years Block,Transfer Payments,510030,School Children,01/12/2021,3941788-27904,"2,080.54",CONKERS LIFE LTD (NURSERY SCHOOL).
Dedicated Schools Grant BG0015,DSG Early Years Block,Transfer Payments,510030,School Children,01/12/2021,3941791-27949,"2,538.70",CORECARE NA LTD.
Dedicated Schools Grant BG0015,DSG Early Years Block,Transfer Payments,510032,School Children,01/12/2021,3941791-27714,"10,864.53",CORECARE NA LTD.
Dedicated Schools Grant BG0015,DSG Early Years Block,Transfer Payments,510030,School Children,01/12/2021,3941794-27905,"5,733.29",COUNDON & LEEHOLME EARLY YEARS CENTRE LTD.
Dedicated Schools Grant BG0015,DSG Early Years Block,Transfer Payments,510032,School Children,01/12/2021,3941794-27678,"5,799.15",COUNDON & LEEHOLME EARLY YEARS CENTRE LTD.
Dedicated Schools Grant BG0015,DSG Early Years Block,Transfer Payments,510030,School Children,01/12/2021,3941796-27906,551.25,CRAGHEAD CHILDCARE CENTRE.
Dedicated Schools Grant BG0015,DSG Early Years Block,Transfer Payments,510030,School Children,01/12/2021,3941796-27907,"5,853.72",CRAGHEAD CHILDCARE CENTRE.
Dedicated Schools Grant BG0015,DSG Early Years Block,Transfer Payments,510032,School Children,01/12/2021,3941796-27680,"5,633.46",CRAGHEAD CHILDCARE CENTRE.
Dedicated Schools Grant BG0015,DSG Early Years Block,Transfer Payments,510030,School Children,01/12/2021,3941811-27909,536.81,DAWN TILL DUSK CHILDCARE.
Dedicated Schools Grant BG0015,DSG Early Years Block,Transfer Payments,510032,School Children,01/12/2021,3941811-27682,"1,057.26",DAWN TILL DUSK CHILDCARE.
Dedicated Schools Grant BG0015,DSG Early Years Block,Transfer Payments,510030,School Children,01/12/2021,3941812-28075,"7,566.94",DAYPARK LTD T/A YELLOW WELLIES.
Dedicated Schools Grant BG0015,DSG Early Years Block,Transfer Payments,510030,School Children,01/12/2021,3941813-28076,"7,148.77",DAYPARK LTD T/A YELLOW WELLIES.
Dedicated Schools Grant BG0015,DSG Early Years Block,Transfer Payments,510032,School Children,01/12/2021,3941812-27804,"16,838.55",DAYPARK LTD T/A YELLOW WELLIES.
Dedicated Schools Grant BG0015,DSG Early Years Block,Transfer Payments,510032,School Children,01/12/2021,3941813-27805,"2,566.44",DAYPARK LTD T/A YELLOW WELLIES.
Dedicated Schools Grant BG0015,DSG Early Years Block,Transfer Payments,510030,School Children,01/12/2021,3941815-27912,"7,689.57",DEERNESS VALLEY NURSERY SCHOOL.
Dedicated Schools Grant BG0015,DSG Early Years Block,Transfer Payments,510032,School Children,01/12/2021,3941815-27685,"1,546.44",DEERNESS VALLEY NURSERY SCHOOL.
Dedicated Schools Grant BG0015,DSG Early Years Block,Transfer Payments,510030,School Children,01/12/2021,3941822-27916,"10,282.80",DO RE MI DAY NURSERY.
Dedicated Schools Grant BG0015,DSG Early Years Block,Transfer Payments,510032,School Children,01/12/2021,3941822-27688,"1,933.05",DO RE MI DAY NURSERY.
Dedicated Schools Grant BG0015,DSG Early Years Block,Transfer Payments,510030,School Children,01/12/2021,3941826-27952,"2,050.30",DURHAM & NEWCASTLE DIOCESAN LEARNING TRUST T/A INGLETON CE PRIMARY SCHOOL
Dedicated Schools Grant BG0015,DSG Early Years Block,Transfer Payments,510030,School Children,01/12/2021,3941827-28043,"19,315.09",DURHAM & NEWCASTLE DIOCESAN LEARNING TRUST T/A STANHOPE BARRINGTON C OF E PRIMARY SCHOOL.
Dedicated Schools Grant BG0015,DSG Early Years Block,Transfer Payments,510030,School Children,01/12/2021,3941833-27921,"2,107.91",EARLY LEARNERS PRIVATE DAY NURSERY.
Dedicated Schools Grant BG0015,DSG Early Years Block,Transfer Payments,510032,School Children,01/12/2021,3941833-27690,"3,589.95",EARLY LEARNERS PRIVATE DAY NURSERY.
Dedicated Schools Grant BG0015,DSG Early Years Block,Transfer Payments,510030,School Children,01/12/2021,3941834-28013,"5,008.50",EAST DURHAM COLLEGE.
Dedicated Schools Grant BG0015,DSG Early Years Block,Transfer Payments,510032,School Children,01/12/2021,3941834-27772,"2,209.20",EAST DURHAM COLLEGE.
Dedicated Schools Grant BG0015,DSG Early Years Block,Transfer Payments,510030,School Children,01/12/2021,3941837-27878,"3,747.10",EDEN ACADEMY TRUST LTD T/A BLUEBELL MEADOW PRIMARY SCHOOL.
Dedicated Schools Grant BG0015,DSG Early Years Block,Transfer Payments,510032,School Children,01/12/2021,3941837-27657,"3,866.10",EDEN ACADEMY TRUST LTD T/A BLUEBELL MEADOW PRIMARY SCHOOL.
Dedicated Schools Grant BG0015,DSG Early Years Block,Transfer Payments,510030,School Children,01/12/2021,3941838-27922,"4,455.38",EDEN GARDEN NURSERY.
Dedicated Schools Grant BG0015,DSG Early Years Block,Transfer Payments,510032,School Children,01/12/2021,3941838-27691,"6,091.08",EDEN GARDEN NURSERY.
Dedicated Schools Grant BG0015,DSG Early Years Block,Transfer Payments,510030,School Children,01/12/2021,3941839-27896,"9,905.70",EDEN LEARNING TRUST T/A CHILTON ACADEMY.
Dedicated Schools Grant BG0015,DSG Early Years Block,Transfer Payments,510030,School Children,01/12/2021,3941852-27924,"6,227.70",EMERALDS LITTLE GEMS DAYCARE LTD.
Dedicated Schools Grant BG0015,DSG Early Years Block,Transfer Payments,510030,School Children,01/12/2021,3941852-27925,"22,033.56",EMERALDS LITTLE GEMS DAYCARE LTD.
Dedicated Schools Grant BG0015,DSG Early Years Block,Transfer Payments,510032,School Children,01/12/2021,3941852-27694,"11,961.24",EMERALDS LITTLE GEMS DAYCARE LTD.
Dedicated Schools Grant BG0015,DSG Early Years Block,Transfer Payments,510032,School Children,01/12/2021,3941852-27695,"13,694.94",EMERALDS LITTLE GEMS DAYCARE LTD.
Dedicated Schools Grant BG0015,DSG Early Years Block,Transfer Payments,510030,School Children,01/12/2021,3941858-27927,"15,688.25",EXPLORERS DAY CARE.
Dedicated Schools Grant BG0015,DSG Early Years Block,Transfer Payments,510030,School Children,01/12/2021,3941863-27929,"4,678.27",FIRST STEPS NURSERY.
Dedicated Schools Grant BG0015,DSG Early Years Block,Transfer Payments,510032,School Children,01/12/2021,3941863-27697,"1,104.60",FIRST STEPS NURSERY.
Dedicated Schools Grant BG0015,DSG Early Years Block,Transfer Payments,510030,School Children,01/12/2021,3941864-27930,"1,892.10",FLOWERPOTS NURSERY.
Dedicated Schools Grant BG0015,DSG Early Years Block,Transfer Payments,510032,School Children,01/12/2021,3941864-27698,"5,530.89",FLOWERPOTS NURSERY.
Dedicated Schools Grant BG0015,DSG Early Years Block,Transfer Payments,510030,School Children,01/12/2021,3941875-27933,"12,744.81",GIANT STEPS LTD.
Dedicated Schools Grant BG0015,DSG Early Years Block,Transfer Payments,510030,School Children,01/12/2021,3941876-27932,"4,485.60",GIANT STEPS LTD.
Dedicated Schools Grant BG0015,DSG Early Years Block,Transfer Payments,510030,School Children,01/12/2021,3941877-27934,"3,117.45",GIANT STEPS LTD.
Dedicated Schools Grant BG0015,DSG Early Years Block,Transfer Payments,510032,School Children,01/12/2021,3941875-27700,"5,523.00",GIANT STEPS LTD.
Dedicated Schools Grant BG0015,DSG Early Years Block,Transfer Payments,510032,School Children,01/12/2021,3941876-27699,"1,538.55",GIANT STEPS LTD.
Dedicated Schools Grant BG0015,DSG Early Years Block,Transfer Payments,510032,School Children,01/12/2021,3941877-27701,"2,761.50",GIANT STEPS LTD.
Dedicated Schools Grant BG0015,DSG Early Years Block,Transfer Payments,510030,School Children,01/12/2021,3941881-27935,"10,558.77",GREEN LANE NURSERY & CHILDCARE CENTRE.
Dedicated Schools Grant BG0015,DSG Early Years Block,Transfer Payments,510032,School Children,01/12/2021,3941881-27702,"1,656.90",GREEN LANE NURSERY & CHILDCARE CENTRE.
Dedicated Schools Grant BG0015,DSG Early Years Block,Transfer Payments,510030,School Children,01/12/2021,3941889-27936,551.25,HAPPY TIMES DAYCARE LTD.
Dedicated Schools Grant BG0015,DSG Early Years Block,Transfer Payments,510032,School Children,01/12/2021,3941889-27703,"5,799.15",HAPPY TIMES DAYCARE LTD.
Dedicated Schools Grant BG0015,DSG Early Years Block,Transfer Payments,510030,School Children,01/12/2021,3941890-27880,"2,091.07",HAPPYTIMES DAYCARE.
Dedicated Schools Grant BG0015,DSG Early Years Block,Transfer Payments,510030,School Children,01/12/2021,3941890-28194,565.65,HAPPYTIMES DAYCARE.
Dedicated Schools Grant BG0015,DSG Early Years Block,Transfer Payments,510032,School Children,01/12/2021,3941890-27659,"4,418.40",HAPPYTIMES DAYCARE.
Dedicated Schools Grant BG0015,DSG Early Years Block,Transfer Payments,510030,School Children,01/12/2021,3941893-27937,967.98,HARTSIDE PRIMARY ACADEMY.
Dedicated Schools Grant BG0015,DSG Early Years Block,Transfer Payments,510030,School Children,01/12/2021,3941895-27939,"13,078.20",HAYSTACKS NURSERY..
Dedicated Schools Grant BG0015,DSG Early Years Block,Transfer Payments,510030,School Children,01/12/2021,3941896-27940,"1,099.87",HAZEL DENE CHILDCARE LTD.
Dedicated Schools Grant BG0015,DSG Early Years Block,Transfer Payments,510032,School Children,01/12/2021,3941896-27706,"2,485.35",HAZEL DENE CHILDCARE LTD.
Dedicated Schools Grant BG0015,DSG Early Years Block,Transfer Payments,510030,School Children,01/12/2021,3941904-27945,"7,541.77",HIPPITOTS LTD.
Dedicated Schools Grant BG0015,DSG Early Years Block,Transfer Payments,510032,School Children,01/12/2021,3941904-27710,635.14,HIPPITOTS LTD.
Dedicated Schools Grant BG0015,DSG Early Years Block,Transfer Payments,510030,School Children,01/12/2021,3941908-27946,"6,642.82",HORDEN YOUTH & COMMUNITY CENTRE NURSERY.
Dedicated Schools Grant BG0015,DSG Early Years Block,Transfer Payments,510032,School Children,01/12/2021,3941908-27711,"3,037.65",HORDEN YOUTH & COMMUNITY CENTRE NURSERY.
Dedicated Schools Grant BG0015,DSG Early Years Block,Transfer Payments,510030,School Children,01/12/2021,3941909-27947,"14,076.30",HOUSE OF EDEN LTD.
Dedicated Schools Grant BG0015,DSG Early Years Block,Transfer Payments,510030,School Children,01/12/2021,3941910-27948,"8,407.68",HOUSE OF EDEN LTD.
Dedicated Schools Grant BG0015,DSG Early Years Block,Transfer Payments,510032,School Children,01/12/2021,3941909-27712,"4,142.25",HOUSE OF EDEN LTD.
Dedicated Schools Grant BG0015,DSG Early Years Block,Transfer Payments,510032,School Children,01/12/2021,3941910-27713,"10,619.94",HOUSE OF EDEN LTD.
Dedicated Schools Grant BG0015,DSG Early Years Block,Transfer Payments,510030,School Children,01/12/2021,3941911-27950,"4,247.10",HOWLETCH & SHOTTON CHILDCARE LTD.
Dedicated Schools Grant BG0015,DSG Early Years Block,Transfer Payments,510030,School Children,01/12/2021,3941912-27951,"3,630.25",HOWLETCH & SHOTTON CHILDCARE LTD.
Dedicated Schools Grant BG0015,DSG Early Years Block,Transfer Payments,510032,School Children,01/12/2021,3941911-27715,"13,034.28",HOWLETCH & SHOTTON CHILDCARE LTD.
Dedicated Schools Grant BG0015,DSG Early Years Block,Transfer Payments,510032,School Children,01/12/2021,3941912-27716,"5,246.85",HOWLETCH & SHOTTON CHILDCARE LTD.
Dedicated Schools Grant BG0015,DSG Early Years Block,Transfer Payments,510030,School Children,01/12/2021,3941933-28006,"4,378.05",JIGSAW LEARNING TRUST.
Dedicated Schools Grant BG0015,DSG Early Years Block,Transfer Payments,510030,School Children,01/12/2021,3941949-27964,"3,976.35",KELLOE PHOENIX CENTRE (CHILDCARE).
Dedicated Schools Grant BG0015,DSG Early Years Block,Transfer Payments,510032,School Children,01/12/2021,3941949-27728,"5,246.85",KELLOE PHOENIX CENTRE (CHILDCARE).
Dedicated Schools Grant BG0015,DSG Early Years Block,Transfer Payments,510030,School Children,01/12/2021,3941952-27966,"11,707.92",KIDS 1ST NURSERIES DURHAM.
Dedicated Schools Grant BG0015,DSG Early Years Block,Transfer Payments,510030,School Children,01/12/2021,3941953-27967,"5,565.00",KIDZ VILLAGE LTD.
Dedicated Schools Grant BG0015,DSG Early Years Block,Transfer Payments,510032,School Children,01/12/2021,3941953-27731,"2,808.84",KIDZ VILLAGE LTD.
Dedicated Schools Grant BG0015,DSG Early Years Block,Transfer Payments,510030,School Children,01/12/2021,3941954-27968,"9,898.87",KIDZONE.
Dedicated Schools Grant BG0015,DSG Early Years Block,Transfer Payments,510032,School Children,01/12/2021,3941954-27732,"3,913.44",KIDZONE.
Dedicated Schools Grant BG0015,DSG Early Years Block,Transfer Payments,510030,School Children,01/12/2021,3941956-27969,"5,955.39",KIRK MERRINGTON PRE SCHOOL.
Dedicated Schools Grant BG0015,DSG Early Years Block,Transfer Payments,510030,School Children,01/12/2021,3941957-27970,"6,602.93",KIRKLANDS DAY NURSERY.
Dedicated Schools Grant BG0015,DSG Early Years Block,Transfer Payments,510030,School Children,01/12/2021,3941971-27975,"7,066.50",LEADGATE CHILD CENTRE LTD.
Dedicated Schools Grant BG0015,DSG Early Years Block,Transfer Payments,510032,School Children,01/12/2021,3941971-27738,"3,747.75",LEADGATE CHILD CENTRE LTD.
Dedicated Schools Grant BG0015,DSG Early Years Block,Transfer Payments,510030,School Children,01/12/2021,3941979-27978,"17,774.40",LITTLE ACORNS NORTH EAST LTD.
Dedicated Schools Grant BG0015,DSG Early Years Block,Transfer Payments,510032,School Children,01/12/2021,3941979-27742,"9,120.84",LITTLE ACORNS NORTH EAST LTD.
Dedicated Schools Grant BG0015,DSG Early Years Block,Transfer Payments,510030,School Children,01/12/2021,3941980-27979,"11,382.72",LITTLE CUBS DAY NURSERY.
Dedicated Schools Grant BG0015,DSG Early Years Block,Transfer Payments,510032,School Children,01/12/2021,3941980-27743,"3,137.59",LITTLE CUBS DAY NURSERY.
Dedicated Schools Grant BG0015,DSG Early Years Block,Transfer Payments,510030,School Children,01/12/2021,3941981-27980,"2,325.83",LITTLE STARS EARLY YEARS.
Dedicated Schools Grant BG0015,DSG Early Years Block,Transfer Payments,510032,School Children,01/12/2021,3941981-27745,"3,653.07",LITTLE STARS EARLY YEARS.
Dedicated Schools Grant BG0015,DSG Early Years Block,Transfer Payments,510030,School Children,01/12/2021,3941982-27983,"7,515.60",LITTLE WAVES DAY NURSERY LTD.
Dedicated Schools Grant BG0015,DSG Early Years Block,Transfer Payments,510032,School Children,01/12/2021,3941982-27748,"2,690.49",LITTLE WAVES DAY NURSERY LTD.
Dedicated Schools Grant BG0015,DSG Early Years Block,Transfer Payments,510030,School Children,01/12/2021,3942044-28001,"4,309.95",NELLIE`S DAY NURSERY LTD.
Dedicated Schools Grant BG0015,DSG Early Years Block,Transfer Payments,510032,School Children,01/12/2021,3942044-27763,"6,383.01",NELLIE`S DAY NURSERY LTD.
Dedicated Schools Grant BG0015,DSG Early Years Block,Transfer Payments,510030,School Children,01/12/2021,3942045-28002,"6,383.88",NEW BEGINNINGS (MOORSIDE) CO LTD.
Dedicated Schools Grant BG0015,DSG Early Years Block,Transfer Payments,510032,School Children,01/12/2021,3942045-27764,"2,485.35",NEW BEGINNINGS (MOORSIDE) CO LTD.
Dedicated Schools Grant BG0015,DSG Early Years Block,Transfer Payments,510030,School Children,01/12/2021,3942060-28010,"8,700.46",NORTHUMBRIAN TRUST DAY NURSERIES LTD.
Dedicated Schools Grant BG0015,DSG Early Years Block,Transfer Payments,510032,School Children,01/12/2021,3942060-27770,"5,238.96",NORTHUMBRIAN TRUST DAY NURSERIES LTD.
Dedicated Schools Grant BG0015,DSG Early Years Block,Transfer Payments,510030,School Children,01/12/2021,3942064-28003,"12,020.40",NURSERYTIME LTD.
Dedicated Schools Grant BG0015,DSG Early Years Block,Transfer Payments,510032,School Children,01/12/2021,3942064-27765,"4,741.89",NURSERYTIME LTD.
Dedicated Schools Grant BG0015,DSG Early Years Block,Transfer Payments,510030,School Children,01/12/2021,3942065-28004,"1,956.15",OLD BRIDGE NURSERY.
Dedicated Schools Grant BG0015,DSG Early Years Block,Transfer Payments,510032,School Children,01/12/2021,3942065-27766,"1,104.60",OLD BRIDGE NURSERY.
Dedicated Schools Grant BG0015,DSG Early Years Block,Transfer Payments,510030,School Children,01/12/2021,3942092-28011,"10,341.45",PLAYDAY NURSERY.
Dedicated Schools Grant BG0015,DSG Early Years Block,Transfer Payments,510032,School Children,01/12/2021,3942092-27771,"3,818.76",PLAYDAY NURSERY.
Dedicated Schools Grant BG0015,DSG Early Years Block,Transfer Payments,510030,School Children,01/12/2021,3942093-28012,"4,229.40",PLAYOLOGY LTD.
Dedicated Schools Grant BG0015,DSG Early Years Block,Transfer Payments,510030,School Children,01/12/2021,3942102-28016,"6,055.05",RAINBOW NURSERY DURHAM HIGH SCHOOL.
Dedicated Schools Grant BG0015,DSG Early Years Block,Transfer Payments,510030,School Children,01/12/2021,3942103-28017,"15,860.25",RAINBOW NURSERY LTD (MIDDLESTONE MOOR).
Dedicated Schools Grant BG0015,DSG Early Years Block,Transfer Payments,510030,School Children,01/12/2021,3941688-27862,"2,068.50",REDACTED - PAYMENT TO INDIVIDUAL
Dedicated Schools Grant BG0015,DSG Early Years Block,Transfer Payments,510030,School Children,01/12/2021,3941691-27866,923.93,REDACTED - PAYMENT TO INDIVIDUAL
Dedicated Schools Grant BG0015,DSG Early Years Block,Transfer Payments,510030,School Children,01/12/2021,3941693-27868,"2,070.97",REDACTED - PAYMENT TO INDIVIDUAL
Dedicated Schools Grant BG0015,DSG Early Years Block,Transfer Payments,510030,School Children,01/12/2021,3941712-27873,"2,355.84",REDACTED - PAYMENT TO INDIVIDUAL
Dedicated Schools Grant BG0015,DSG Early Years Block,Transfer Payments,510030,School Children,01/12/2021,3941750-27889,"1,850.10",REDACTED - PAYMENT TO INDIVIDUAL
Dedicated Schools Grant BG0015,DSG Early Years Block,Transfer Payments,510030,School Children,01/12/2021,3941819-27915,712.33,REDACTED - PAYMENT TO INDIVIDUAL
Dedicated Schools Grant BG0015,DSG Early Years Block,Transfer Payments,510030,School Children,01/12/2021,3941824-27918,837.90,REDACTED - PAYMENT TO INDIVIDUAL
Dedicated Schools Grant BG0015,DSG Early Years Block,Transfer Payments,510030,School Children,01/12/2021,3941847-27923,827.40,REDACTED - PAYMENT TO INDIVIDUAL
Dedicated Schools Grant BG0015,DSG Early Years Block,Transfer Payments,510030,School Children,01/12/2021,3941873-27931,733.25,REDACTED - PAYMENT TO INDIVIDUAL
Dedicated Schools Grant BG0015,DSG Early Years Block,Transfer Payments,510030,School Children,01/12/2021,3941886-27981,"3,167.10",REDACTED - PAYMENT TO INDIVIDUAL
Dedicated Schools Grant BG0015,DSG Early Years Block,Transfer Payments,510030,School Children,01/12/2021,3941894-27938,858.90,REDACTED - PAYMENT TO INDIVIDUAL
Dedicated Schools Grant BG0015,DSG Early Years Block,Transfer Payments,510030,School Children,01/12/2021,3941898-27941,"1,198.05",REDACTED - PAYMENT TO INDIVIDUAL
Dedicated Schools Grant BG0015,DSG Early Years Block,Transfer Payments,510030,School Children,01/12/2021,3941900-27943,667.80,REDACTED - PAYMENT TO INDIVIDUAL
Dedicated Schools Grant BG0015,DSG Early Years Block,Transfer Payments,510030,School Children,01/12/2021,3941925-27954,"1,503.07",REDACTED - PAYMENT TO INDIVIDUAL
Dedicated Schools Grant BG0015,DSG Early Years Block,Transfer Payments,510030,School Children,01/12/2021,3941927-27956,612.67,REDACTED - PAYMENT TO INDIVIDUAL
Dedicated Schools Grant BG0015,DSG Early Years Block,Transfer Payments,510030,School Children,01/12/2021,3941937-27910,"9,100.10",REDACTED - PAYMENT TO INDIVIDUAL
Dedicated Schools Grant BG0015,DSG Early Years Block,Transfer Payments,510030,School Children,01/12/2021,3941944-27960,"1,611.27",REDACTED - PAYMENT TO INDIVIDUAL
Dedicated Schools Grant BG0015,DSG Early Years Block,Transfer Payments,510030,School Children,01/12/2021,3941945-27962,"1,386.51",REDACTED - PAYMENT TO INDIVIDUAL
Dedicated Schools Grant BG0015,DSG Early Years Block,Transfer Payments,510030,School Children,01/12/2021,3941948-27963,628.42,REDACTED - PAYMENT TO INDIVIDUAL
Dedicated Schools Grant BG0015,DSG Early Years Block,Transfer Payments,510030,School Children,01/12/2021,3941966-27973,"1,034.25",REDACTED - PAYMENT TO INDIVIDUAL
Dedicated Schools Grant BG0015,DSG Early Years Block,Transfer Payments,510030,School Children,01/12/2021,3941969-27974,"1,766.10",REDACTED - PAYMENT TO INDIVIDUAL
Dedicated Schools Grant BG0015,DSG Early Years Block,Transfer Payments,510030,School Children,01/12/2021,3941985-27984,869.40,REDACTED - PAYMENT TO INDIVIDUAL
Dedicated Schools Grant BG0015,DSG Early Years Block,Transfer Payments,510030,School Children,01/12/2021,3941998-27992,827.40,REDACTED - PAYMENT TO INDIVIDUAL
Dedicated Schools Grant BG0015,DSG Early Years Block,Transfer Payments,510030,School Children,01/12/2021,3942007-27996,879.90,REDACTED - PAYMENT TO INDIVIDUAL
Dedicated Schools Grant BG0015,DSG Early Years Block,Transfer Payments,510030,School Children,01/12/2021,3942008-27997,816.90,REDACTED - PAYMENT TO INDIVIDUAL
Dedicated Schools Grant BG0015,DSG Early Years Block,Transfer Payments,510030,School Children,01/12/2021,3942040-28000,"1,431.15",REDACTED - PAYMENT TO INDIVIDUAL
Dedicated Schools Grant BG0015,DSG Early Years Block,Transfer Payments,510030,School Children,01/12/2021,3942083-28007,"1,113.00",REDACTED - PAYMENT TO INDIVIDUAL
Dedicated Schools Grant BG0015,DSG Early Years Block,Transfer Payments,510030,School Children,01/12/2021,3942088-28009,694.36,REDACTED - PAYMENT TO INDIVIDUAL
Dedicated Schools Grant BG0015,DSG Early Years Block,Transfer Payments,510030,School Children,01/12/2021,3942100-28014,645.75,REDACTED - PAYMENT TO INDIVIDUAL
Dedicated Schools Grant BG0015,DSG Early Years Block,Transfer Payments,510030,School Children,01/12/2021,3942101-28015,"1,073.62",REDACTED - PAYMENT TO INDIVIDUAL
Dedicated Schools Grant BG0015,DSG Early Years Block,Transfer Payments,510030,School Children,01/12/2021,3942125-28022,763.35,REDACTED - PAYMENT TO INDIVIDUAL
Dedicated Schools Grant BG0015,DSG Early Years Block,Transfer Payments,510030,School Children,01/12/2021,3942128-28023,827.40,REDACTED - PAYMENT TO INDIVIDUAL
Dedicated Schools Grant BG0015,DSG Early Years Block,Transfer Payments,510030,School Children,01/12/2021,3942135-28027,521.06,REDACTED - PAYMENT TO INDIVIDUAL
Dedicated Schools Grant BG0015,DSG Early Years Block,Transfer Payments,510030,School Children,01/12/2021,3942136-28028,"1,188.14",REDACTED - PAYMENT TO INDIVIDUAL
Dedicated Schools Grant BG0015,DSG Early Years Block,Transfer Payments,510030,School Children,01/12/2021,3942017-27982,"5,024.10",REDACTED - PAYMENT TO INDIVIDUAL
Dedicated Schools Grant BG0015,DSG Early Years Block,Transfer Payments,510030,School Children,01/12/2021,3942017-28195,807.30,REDACTED - PAYMENT TO INDIVIDUAL
Dedicated Schools Grant BG0015,DSG Early Years Block,Transfer Payments,510030,School Children,01/12/2021,3942037-28051,953.25,REDACTED - PAYMENT TO INDIVIDUAL
Dedicated Schools Grant BG0015,DSG Early Years Block,Transfer Payments,510032,School Children,01/12/2021,3941693-27648,"1,104.60",REDACTED - PAYMENT TO INDIVIDUAL
Dedicated Schools Grant BG0015,DSG Early Years Block,Transfer Payments,510032,School Children,01/12/2021,3941712-27653,"1,009.92",REDACTED - PAYMENT TO INDIVIDUAL
Dedicated Schools Grant BG0015,DSG Early Years Block,Transfer Payments,510032,School Children,01/12/2021,3941752-27667,552.30,REDACTED - PAYMENT TO INDIVIDUAL
Dedicated Schools Grant BG0015,DSG Early Years Block,Transfer Payments,510032,School Children,01/12/2021,3941774-27674,552.30,REDACTED - PAYMENT TO INDIVIDUAL
Dedicated Schools Grant BG0015,DSG Early Years Block,Transfer Payments,510032,School Children,01/12/2021,3941775-27675,"1,380.75",REDACTED - PAYMENT TO INDIVIDUAL
Dedicated Schools Grant BG0015,DSG Early Years Block,Transfer Payments,510032,School Children,01/12/2021,3941894-27704,"1,025.70",REDACTED - PAYMENT TO INDIVIDUAL
Dedicated Schools Grant BG0015,DSG Early Years Block,Transfer Payments,510032,School Children,01/12/2021,3941898-27707,"1,380.75",REDACTED - PAYMENT TO INDIVIDUAL
Dedicated Schools Grant BG0015,DSG Early Years Block,Transfer Payments,510032,School Children,01/12/2021,3941900-27708,"1,262.40",REDACTED - PAYMENT TO INDIVIDUAL
Dedicated Schools Grant BG0015,DSG Early Years Block,Transfer Payments,510032,School Children,01/12/2021,3941928-27718,"1,104.60",REDACTED - PAYMENT TO INDIVIDUAL
Dedicated Schools Grant BG0015,DSG Early Years Block,Transfer Payments,510032,School Children,01/12/2021,3941937-27683,"1,017.81",REDACTED - PAYMENT TO INDIVIDUAL
Dedicated Schools Grant BG0015,DSG Early Years Block,Transfer Payments,510032,School Children,01/12/2021,3941938-27719,"1,104.60",REDACTED - PAYMENT TO INDIVIDUAL
Dedicated Schools Grant BG0015,DSG Early Years Block,Transfer Payments,510032,School Children,01/12/2021,3941946-27726,828.45,REDACTED - PAYMENT TO INDIVIDUAL
Dedicated Schools Grant BG0015,DSG Early Years Block,Transfer Payments,510032,School Children,01/12/2021,3941948-27727,"1,104.60",REDACTED - PAYMENT TO INDIVIDUAL
Dedicated Schools Grant BG0015,DSG Early Years Block,Transfer Payments,510032,School Children,01/12/2021,3941951-27730,"1,104.60",REDACTED - PAYMENT TO INDIVIDUAL
Dedicated Schools Grant BG0015,DSG Early Years Block,Transfer Payments,510032,School Children,01/12/2021,3941958-27734,"1,104.60",REDACTED - PAYMENT TO INDIVIDUAL
Dedicated Schools Grant BG0015,DSG Early Years Block,Transfer Payments,510032,School Children,01/12/2021,3941960-27744,"2,485.35",REDACTED - PAYMENT TO INDIVIDUAL
Dedicated Schools Grant BG0015,DSG Early Years Block,Transfer Payments,510032,School Children,01/12/2021,3941969-27737,828.45,REDACTED - PAYMENT TO INDIVIDUAL
Dedicated Schools Grant BG0015,DSG Early Years Block,Transfer Payments,510032,School Children,01/12/2021,3941972-27739,662.76,REDACTED - PAYMENT TO INDIVIDUAL
Dedicated Schools Grant BG0015,DSG Early Years Block,Transfer Payments,510032,School Children,01/12/2021,3941978-27740,789.00,REDACTED - PAYMENT TO INDIVIDUAL
Dedicated Schools Grant BG0015,DSG Early Years Block,Transfer Payments,510032,School Children,01/12/2021,3941985-27749,828.45,REDACTED - PAYMENT TO INDIVIDUAL
Dedicated Schools Grant BG0015,DSG Early Years Block,Transfer Payments,510032,School Children,01/12/2021,3941996-27753,"1,420.20",REDACTED - PAYMENT TO INDIVIDUAL
Dedicated Schools Grant BG0015,DSG Early Years Block,Transfer Payments,510032,School Children,01/12/2021,3942000-27755,"1,104.60",REDACTED - PAYMENT TO INDIVIDUAL
Dedicated Schools Grant BG0015,DSG Early Years Block,Transfer Payments,510032,School Children,01/12/2021,3942004-27758,552.30,REDACTED - PAYMENT TO INDIVIDUAL
Dedicated Schools Grant BG0015,DSG Early Years Block,Transfer Payments,510032,School Children,01/12/2021,3942040-27762,"2,942.97",REDACTED - PAYMENT TO INDIVIDUAL
Dedicated Schools Grant BG0015,DSG Early Years Block,Transfer Payments,510032,School Children,01/12/2021,3942075-27768,"1,546.44",REDACTED - PAYMENT TO INDIVIDUAL
Dedicated Schools Grant BG0015,DSG Early Years Block,Transfer Payments,510032,School Children,01/12/2021,3942101-27774,828.45,REDACTED - PAYMENT TO INDIVIDUAL
Dedicated Schools Grant BG0015,DSG Early Years Block,Transfer Payments,510032,School Children,01/12/2021,3942125-27777,552.30,REDACTED - PAYMENT TO INDIVIDUAL
Dedicated Schools Grant BG0015,DSG Early Years Block,Transfer Payments,510032,School Children,01/12/2021,3942136-27782,828.45,REDACTED - PAYMENT TO INDIVIDUAL
Dedicated Schools Grant BG0015,DSG Early Years Block,Transfer Payments,510032,School Children,01/12/2021,3942017-27747,"4,497.30",REDACTED - PAYMENT TO INDIVIDUAL
Dedicated Schools Grant BG0015,DSG Early Years Block,Transfer Payments,510032,School Children,01/12/2021,3942026-27696,"1,104.60",REDACTED - PAYMENT TO INDIVIDUAL
Dedicated Schools Grant BG0015,DSG Early Years Block,Transfer Payments,510032,School Children,01/12/2021,3942037-27791,789.00,REDACTED - PAYMENT TO INDIVIDUAL
Dedicated Schools Grant BG0015,DSG Early Years Block,Transfer Payments,510030,School Children,01/12/2021,3942110-28019,"16,262.52",RIBBON ACADEMY TRUST.
Dedicated Schools Grant BG0015,DSG Early Years Block,Transfer Payments,510030,School Children,01/12/2021,3942111-28020,"3,650.64",RIBBON DAYCARE.
Dedicated Schools Grant BG0015,DSG Early Years Block,Transfer Payments,510032,School Children,01/12/2021,3942111-27775,"12,261.06",RIBBON DAYCARE.
Dedicated Schools Grant BG0015,DSG Early Years Block,Transfer Payments,510030,School Children,01/12/2021,3942121-28021,"2,812.71",SACRISTON ACADEMY - EARLY YEARS T/A PRIVATE NURSERY.
Dedicated Schools Grant BG0015,DSG Early Years Block,Transfer Payments,510032,School Children,01/12/2021,3942124-27776,"2,485.35",SAPLINGS NATURE KINDERGARTEN & FOREST SCHOOL.
Dedicated Schools Grant BG0015,DSG Early Years Block,Transfer Payments,510030,School Children,01/12/2021,3942131-28024,"21,656.79",SEAHAM HOUSE DAY NURSERY.
Dedicated Schools Grant BG0015,DSG Early Years Block,Transfer Payments,510032,School Children,01/12/2021,3942131-27780,"8,753.88",SEAHAM HOUSE DAY NURSERY.
Dedicated Schools Grant BG0015,DSG Early Years Block,Transfer Payments,510032,School Children,01/12/2021,3942132-27781,"4,181.70",SEASIDE LANE NURSERY.
Dedicated Schools Grant BG0015,DSG Early Years Block,Transfer Payments,510030,School Children,01/12/2021,3942134-28026,"3,263.82",SEDGEFIELD OUT OF SCHOOL FUN CLUB.
Dedicated Schools Grant BG0015,DSG Early Years Block,Transfer Payments,510030,School Children,01/12/2021,3942138-28029,"2,003.40",SHIELD ROW ACADEMY.
Dedicated Schools Grant BG0015,DSG Early Years Block,Transfer Payments,510030,School Children,01/12/2021,3942139-28030,"16,959.03",SHOTLEY BRIDGE NURSERY SCHOOL LTD.
Dedicated Schools Grant BG0015,DSG Early Years Block,Transfer Payments,510030,School Children,01/12/2021,3942155-28039,"6,915.86",ST OSWALD`S PRE SCHOOL LEARNING CENTRE.
Dedicated Schools Grant BG0015,DSG Early Years Block,Transfer Payments,510032,School Children,01/12/2021,3942155-27785,"2,047.93",ST OSWALD`S PRE SCHOOL LEARNING CENTRE.
Dedicated Schools Grant BG0015,DSG Early Years Block,Transfer Payments,510030,School Children,01/12/2021,3942156-28040,"4,284.02",ST OSWALD`S SUNSHINE CLUB.
Dedicated Schools Grant BG0015,DSG Early Years Block,Transfer Payments,510030,School Children,01/12/2021,3942159-28033,"8,456.40",STANLEY LEARNING PARTNERSHIP.
Dedicated Schools Grant BG0015,DSG Early Years Block,Transfer Payments,510030,School Children,01/12/2021,3942160-27877,"2,226.00",STANLEY LEARNING PARTNERSHIP.
Dedicated Schools Grant BG0015,DSG Early Years Block,Transfer Payments,510032,School Children,01/12/2021,3942159-27784,"1,578.00",STANLEY LEARNING PARTNERSHIP.
Dedicated Schools Grant BG0015,DSG Early Years Block,Transfer Payments,510032,School Children,01/12/2021,3942160-27656,"2,114.52",STANLEY LEARNING PARTNERSHIP.
Dedicated Schools Grant BG0015,DSG Early Years Block,Transfer Payments,510030,School Children,01/12/2021,3942163-28044,"23,013.90",STEPHENSON WAY ACADEMY & NURSERY SCHOOL.
Dedicated Schools Grant BG0015,DSG Early Years Block,Transfer Payments,510030,School Children,01/12/2021,3942164-28045,"3,876.80",STEPPING STONES CO-OP NURSERY LTD.
Dedicated Schools Grant BG0015,DSG Early Years Block,Transfer Payments,510032,School Children,01/12/2021,3942164-27786,552.30,STEPPING STONES CO-OP NURSERY LTD.
Dedicated Schools Grant BG0015,DSG Early Years Block,Transfer Payments,510030,School Children,01/12/2021,3942165-28046,"2,654.92",STEPPING STONES DAY NURSERY (DURHAM).
Dedicated Schools Grant BG0015,DSG Early Years Block,Transfer Payments,510030,School Children,01/12/2021,3942167-28049,"9,628.38",SUNSHINE DAY NURSERY LTD.
Dedicated Schools Grant BG0015,DSG Early Years Block,Transfer Payments,510030,School Children,01/12/2021,3942168-28047,"11,725.51",SUNSHINE DAY NURSERY LTD.
Dedicated Schools Grant BG0015,DSG Early Years Block,Transfer Payments,510030,School Children,01/12/2021,3942169-28048,"8,462.70",SUNSHINE DAY NURSERY LTD.
Dedicated Schools Grant BG0015,DSG Early Years Block,Transfer Payments,510032,School Children,01/12/2021,3942167-27790,"4,970.70",SUNSHINE DAY NURSERY LTD.
Dedicated Schools Grant BG0015,DSG Early Years Block,Transfer Payments,510032,School Children,01/12/2021,3942168-27788,"8,008.35",SUNSHINE DAY NURSERY LTD.
Dedicated Schools Grant BG0015,DSG Early Years Block,Transfer Payments,510032,School Children,01/12/2021,3942169-27789,"7,897.89",SUNSHINE DAY NURSERY LTD.
Dedicated Schools Grant BG0015,DSG Early Years Block,Transfer Payments,510030,School Children,01/12/2021,3942192-28056,983.04,THE EDUCATION PARTNERSHIP (UK) LTD.
Dedicated Schools Grant BG0015,DSG Early Years Block,Transfer Payments,510030,School Children,01/12/2021,3942195-28057,"4,197.60",THE LAURELS CHILD CARE COMPANY LTD.
Dedicated Schools Grant BG0015,DSG Early Years Block,Transfer Payments,510032,School Children,01/12/2021,3942195-27792,"3,471.60",THE LAURELS CHILD CARE COMPANY LTD.
Dedicated Schools Grant BG0015,DSG Early Years Block,Transfer Payments,510030,School Children,01/12/2021,3942196-28058,"12,103.50",THE NURSERY.
Dedicated Schools Grant BG0015,DSG Early Years Block,Transfer Payments,510032,School Children,01/12/2021,3942196-27793,"8,024.13",THE NURSERY.
Dedicated Schools Grant BG0015,DSG Early Years Block,Transfer Payments,510030,School Children,01/12/2021,3942201-28060,"7,150.25",TILLY MINTS CHERUBS DAY NURSERY LTD.
Dedicated Schools Grant BG0015,DSG Early Years Block,Transfer Payments,510032,School Children,01/12/2021,3942201-27794,"3,487.38",TILLY MINTS CHERUBS DAY NURSERY LTD.
Dedicated Schools Grant BG0015,DSG Early Years Block,Transfer Payments,510030,School Children,01/12/2021,3942205-27953,"10,112.40",TM NURSERY ENTERPRISES LTD T/A JACK IN THE BOX DAYCARE.
Dedicated Schools Grant BG0015,DSG Early Years Block,Transfer Payments,510032,School Children,01/12/2021,3942205-27717,"5,648.19",TM NURSERY ENTERPRISES LTD T/A JACK IN THE BOX DAYCARE.
Dedicated Schools Grant BG0015,DSG Early Years Block,Transfer Payments,510030,School Children,01/12/2021,3942211-28061,"3,770.29",TOTS `R` US.
Dedicated Schools Grant BG0015,DSG Early Years Block,Transfer Payments,510032,School Children,01/12/2021,3942211-27795,"2,871.64",TOTS `R` US.
Dedicated Schools Grant BG0015,DSG Early Years Block,Transfer Payments,510030,School Children,01/12/2021,3942215-28063,768.60,TRIMDON`S LITTLE TYKES LTD.
Dedicated Schools Grant BG0015,DSG Early Years Block,Transfer Payments,510030,School Children,01/12/2021,3942217-28032,"18,679.85",TUDHOE LEARNING TRUST T/A SOUTH HETTON PRIMARY SCHOOL.
Dedicated Schools Grant BG0015,DSG Early Years Block,Transfer Payments,510030,School Children,01/12/2021,3942223-27920,"5,948.55",UNIVERSITY OF DURHAM DAY NURSERY.
Dedicated Schools Grant BG0015,DSG Early Years Block,Transfer Payments,510032,School Children,01/12/2021,3942223-27689,"1,104.60",UNIVERSITY OF DURHAM DAY NURSERY.
Dedicated Schools Grant BG0015,DSG Early Years Block,Transfer Payments,510030,School Children,01/12/2021,3942226-28064,584.86,USHAW MOOR DAYCARE.
Dedicated Schools Grant BG0015,DSG Early Years Block,Transfer Payments,510032,School Children,01/12/2021,3942226-27797,"10,493.70",USHAW MOOR DAYCARE.
Dedicated Schools Grant BG0015,DSG Early Years Block,Transfer Payments,510032,School Children,01/12/2021,3942227-27798,552.30,VICTORIA ANNE DONNELLY.
Dedicated Schools Grant BG0015,DSG Early Years Block,Transfer Payments,510030,School Children,01/12/2021,3942229-28068,"8,038.90",VICTORIA LANE ACADEMY.
Dedicated Schools Grant BG0015,DSG Early Years Block,Transfer Payments,510030,School Children,01/12/2021,3942236-27895,"6,965.70",WAYMAN DEVELOPMENTS LTD T/A CHILDSPLAY PRIVATE NURSERY.
Dedicated Schools Grant BG0015,DSG Early Years Block,Transfer Payments,510030,School Children,01/12/2021,3942237-27894,"1,908.30",WAYMAN DEVELOPMENTS LTD T/A CHILDSPLAY PRIVATE NURSERY.
Dedicated Schools Grant BG0015,DSG Early Years Block,Transfer Payments,510032,School Children,01/12/2021,3942236-27673,"4,142.25",WAYMAN DEVELOPMENTS LTD T/A CHILDSPLAY PRIVATE NURSERY.
Dedicated Schools Grant BG0015,DSG Early Years Block,Transfer Payments,510032,School Children,01/12/2021,3942237-27672,"6,454.02",WAYMAN DEVELOPMENTS LTD T/A CHILDSPLAY PRIVATE NURSERY.
Dedicated Schools Grant BG0015,DSG Early Years Block,Transfer Payments,510030,School Children,01/12/2021,3942242-28071,"11,265.25",WESTFIELD HOUSE NURSERY.
Dedicated Schools Grant BG0015,DSG Early Years Block,Transfer Payments,510032,School Children,01/12/2021,3942242-27800,"3,597.84",WESTFIELD HOUSE NURSERY.
Dedicated Schools Grant BG0015,DSG Early Years Block,Transfer Payments,510030,School Children,01/12/2021,3942244-28072,"9,448.47",WHEATLEY HILL COMMUNITY NURSERY LTD.
Dedicated Schools Grant BG0015,DSG Early Years Block,Transfer Payments,510032,School Children,01/12/2021,3942244-27801,"9,709.96",WHEATLEY HILL COMMUNITY NURSERY LTD.
Dedicated Schools Grant BG0015,DSG Early Years Block,Transfer Payments,510032,School Children,01/12/2021,3942246-27802,"9,112.95",WINGATE COMMUNITY CHILDCARE LTD.
Dedicated Schools Grant BG0015,DSG Early Years Block,Transfer Payments,510030,School Children,01/12/2021,3942247-28073,"8,813.17",WITTON GILBERT PRE SCHOOL.
Dedicated Schools Grant BG0015,DSG Early Years Block,Transfer Payments,510030,School Children,01/12/2021,3942248-28074,"1,220.56",WOODLANDS DAY NURSERY.
Dedicated Schools Grant BG0015,DSG Early Years Block,Transfer Payments,510032,School Children,01/12/2021,3942248-27803,"2,485.35",WOODLANDS DAY NURSERY.
Dedicated Schools Grant BG0015,DSG Early Years Block,Transfer Payments,510030,School Children,01/12/2021,3942252-28077,"9,553.58",YORK HOUSE NURSERY.
Dedicated Schools Grant BG0015,DSG Early Years Block,Transfer Payments,510032,School Children,01/12/2021,3942252-27806,"3,313.80",YORK HOUSE NURSERY.
"Regeneration, Economy and Growth",Corporate Property and Land,Premises,108099,Service Repairs and Maintenance,01/12/2021,317219-16567,941.55,CIAT OZONAIR LTD.
Neighbourhoods and Climate Change,Environmental Services,Premises,108099,Service Repairs and Maintenance,01/12/2021,3941936-634,600.80,JN KEARTON.
Neighbourhoods and Climate Change,Environmental Services,Premises,108099,Service Repairs and Maintenance,01/12/2021,3942197-0741,"1,125.00",THE SKILL MILL LTD.
Neighbourhoods and Climate Change,Technical Services CM0300,Supplies and Services,338066,Services,01/12/2021,3941728-SIN028745,"80,927.86",BLOOM PROCUREMENT SERVICES LTD (FORMERLY NEPRO LTD).
"Regeneration, Economy and Growth",Culture Sport and Tourism,Supplies and Services,338047,Services,01/12/2021,3941761-SVT/121-000017,"2,316.39",CHAMBERS TOURING LTD.
"Regeneration, Economy and Growth",Culture Sport and Tourism,Supplies and Services,338047,Services,01/12/2021,3941785-10007,"2,639.79",COMEDY STORE MANAGEMENT T/A THE COMEDY STORE LTD.
"Regeneration, Economy and Growth",Business Durham CL0850,Supplies and Services,338066,Services,01/12/2021,3941859-DCI012,500.00,FAR NORTH LTD.
"Regeneration, Economy and Growth",Business Durham CL0850,Supplies and Services,338066,Services,01/12/2021,3942003-INV-0489,660.00,MCDONOUGH MARKETING COMMUNICATIONS LTD T/A MMC.
Children and Young Peoples Services,Head of Education and Skills,Supplies and Services,338027,Services,01/12/2021,3942011-3-29112021,"2,475.00",REDACTED - PAYMENT TO INDIVIDUAL
Children and Young Peoples Services,Head of Childrens Social Care,Supplies and Services,338089,Services,01/12/2021,3942095-P17523,"3,300.00",PRACTIVE LTD.
Children and Young Peoples Services,Head of Childrens Social Care,Supplies and Services,338089,Services,01/12/2021,3942095-P17543,"1,650.00",PRACTIVE LTD.
Children and Young Peoples Services,Head of Childrens Social Care,Supplies and Services,338089,Services,01/12/2021,3942095-P17567,"1,650.00",PRACTIVE LTD.
Adult and Health Services,Head of Adults,Supplies and Services,338089,Services,01/12/2021,3942097-4107,"2,700.00",PRICE TRAINING LTD.
Adult and Health Services,Head of Adults,Supplies and Services,338089,Services,01/12/2021,3942097-4108,"1,860.00",PRICE TRAINING LTD.
Children and Young Peoples Services,Head of Early Help Inclusion & Vulnerable Children.,Supplies and Services,338094,Services,01/12/2021,3942191-6587,"1,136.50",THE DURHAM CENTRE LTD.
Neighbourhoods and Climate Change,Environmental Services,Stock A926,926004,Stock,01/12/2021,3941816-96415613,906.06,DENNIS EAGLE LTD T/A TERBERG MATEC (UK) LTD.
Neighbourhoods and Climate Change,Environmental Services,Stock A926,926004,Stock,01/12/2021,3942053-37006,"1,708.10",NIGEL BUCHANAN T/A PREMIER PARTS UK LTD.
Neighbourhoods and Climate Change,Technical Services CM0300,Stock A926,926900,Stock in hand-Inventory system,01/12/2021,3941915-156024,"7,975.00",HYDRAM ENGINEERING LTD.
Neighbourhoods and Climate Change,Technical Services CM0300,Stock A926,926900,Stock in hand-Inventory system,01/12/2021,3942078-XL278965,710.50,PARK ELECTRICAL DISTRIBUTORS LTD.
Neighbourhoods and Climate Change,Technical Services CM0300,Stock A926,926900,Stock in hand-Inventory system,01/12/2021,3942078-XL278966,"3,321.60",PARK ELECTRICAL DISTRIBUTORS LTD.
Neighbourhoods and Climate Change,Technical Services CM0300,Stock A926,926900,Stock in hand-Inventory system,01/12/2021,3942256-145451464,"3,278.16",ZG LIGHTING (UK) LTD.
Neighbourhoods and Climate Change,Technical Services CM0300,Stock A926,926900,Stock in hand-Inventory system,01/12/2021,3942256-145451465,"14,869.26",ZG LIGHTING (UK) LTD.
Neighbourhoods and Climate Change,Technical Services CM0300,Stock A926,926900,Stock in hand-Inventory system,01/12/2021,3942256-145451468,"11,181.62",ZG LIGHTING (UK) LTD.
Neighbourhoods and Climate Change,Technical Services CM0300,Stock A926,926900,Stock in hand-Inventory system,01/12/2021,3942256-145451469,"3,187.10",ZG LIGHTING (UK) LTD.
Neighbourhoods and Climate Change,Technical Services CM0300,Stock A926,926900,Stock in hand-Inventory system,01/12/2021,3942256-145451470,"1,415.00",ZG LIGHTING (UK) LTD.
Neighbourhoods and Climate Change,Technical Services CM0300,Stock A926,926900,Stock in hand-Inventory system,01/12/2021,3942256-145451471,"9,192.11",ZG LIGHTING (UK) LTD.
Neighbourhoods and Climate Change,Technical Services CM0300,Supplies and Services,372009,Subscriptions E372,01/12/2021,3941769-3160115,"1,795.00",CIPFA BUSINESS LTD.
"Regeneration, Economy and Growth",Business Durham CL0850,Supplies and Services,336005,Advertising E336,02/12/2021,3942500-INV-2120,"1,400.00",REALITY MEDIA GROUP LTD.
"Regeneration, Economy and Growth",Business Durham CL0850,Supplies and Services,336005,Advertising E336,02/12/2021,3942500-INV-2121,700.00,REALITY MEDIA GROUP LTD.
Neighbourhoods and Climate Change,Environmental Services,Construction work A908,908113,Capital - Landscaping,02/12/2021,3942405-20211103.,"4,850.00",JUB HOLLAND.
"Regeneration, Economy and Growth",Culture Sport and Tourism,Premises,145023,Cleaning and Domestic Supplies,02/12/2021,3942294-22SI2274998,963.60,BRENNTAG UK LTD.
"Regeneration, Economy and Growth",Culture Sport and Tourism,Supplies and Services,328041,Clothing uniforms and laundry E328,02/12/2021,3942551-NSIN00065699,"1,388.41",THOMAS OWEN & SONS (NEWCASTLE) LTD.
"Regeneration, Economy and Growth",Transport and Contracted Services,Vehicles Equipment Furniture and Fittings,912701,Computer equipment,02/12/2021,3942562-3IN/20183925,"43,450.00",TUNSTALL HEALTHCARE (UK) LTD.
"Regeneration, Economy and Growth",Transport and Contracted Services,Vehicles Equipment Furniture and Fittings,912701,Computer equipment,02/12/2021,3942562-3IN/20183925A,"27,853.70",TUNSTALL HEALTHCARE (UK) LTD.
"Regeneration, Economy and Growth",Culture Sport and Tourism,Supplies and Services,342053,Computers and Communications,02/12/2021,3942291-INV-11810,"4,190.00",BRAMBLE HUB LTD.
Resources BK0010,Digital and Customer Services,Supplies and Services,342033,Computers and Communications,02/12/2021,3942331-7402765146,745.30,DELL COMPUTER CORPORATION LTD.
Children and Young Peoples Services,Head of Childrens Social Care,Supplies and Services,342033,Computers and Communications,02/12/2021,3942384-2100036065-21,"3,600.00",INSIGHT DIRECT (UK) LTD.
Neighbourhoods and Climate Change,Environmental Services,Construction work A908,908105,Construction work,02/12/2021,3942304-73313,"2,775.00",CEMETERY DEVELOPMENT SERVICES LTD.
Neighbourhoods and Climate Change,Technical Services CM0300,Construction work A908,908105,Construction work,02/12/2021,3942388-25853,"1,877.63",JACK COUPE & SONS LTD T/A COUPE LINE.
Neighbourhoods and Climate Change,Technical Services CM0300,Construction work A908,908105,Construction work,02/12/2021,3942388-25854,729.61,JACK COUPE & SONS LTD T/A COUPE LINE.
Neighbourhoods and Climate Change,Technical Services CM0300,Construction work A908,908105,Construction work,02/12/2021,3942388-25856,502.08,JACK COUPE & SONS LTD T/A COUPE LINE.
Neighbourhoods and Climate Change,Technical Services CM0300,Construction work A908,908105,Construction work,02/12/2021,3942388-25857,"2,362.03",JACK COUPE & SONS LTD T/A COUPE LINE.
Neighbourhoods and Climate Change,Technical Services CM0300,Construction work A908,908105,Construction work,02/12/2021,3942388-25871,811.48,JACK COUPE & SONS LTD T/A COUPE LINE.
Neighbourhoods and Climate Change,Technical Services CM0300,Construction work A908,908105,Construction work,02/12/2021,3942388-25872,"6,750.99",JACK COUPE & SONS LTD T/A COUPE LINE.
Children and Young Peoples Services,Head of Education and Skills,Construction work A908,908105,Construction work,02/12/2021,3942436-21088,"1,137.75",MARIA FERGUSON PLANNING LTD.
Children and Young Peoples Services,Head of Education and Skills,Transport,230008,Contract Hire,02/12/2021,3942266-NOV21,"2,738.12",ANDREW PYGALL T/A ARP TAXIS.
Adult and Health Services,Head of Adults,Transport,230005,Contract Hire,02/12/2021,3942276-301121,"1,320.00",AVALON TAXIS.
Children and Young Peoples Services,Head of Education and Skills,Transport,230007,Contract Hire,02/12/2021,3942276-3011213,"2,440.00",AVALON TAXIS.
Children and Young Peoples Services,Head of Education and Skills,Transport,230034,Contract Hire,02/12/2021,3942276-3011212,"1,890.00",AVALON TAXIS.
Children and Young Peoples Services,Head of Education and Skills,Transport,230008,Contract Hire,02/12/2021,3942282-INV-526,"1,232.00",BILL SCOTT TAXIS LTD.
Children and Young Peoples Services,Head of Education and Skills,Transport,230035,Contract Hire,02/12/2021,3942285-37809,"1,006.72",BLUELINE TAXIS.
Children and Young Peoples Services,Head of Education and Skills,Transport,230004,Contract Hire,02/12/2021,3942288-C2,550.00,BOBS TAXIS.
Children and Young Peoples Services,Head of Education and Skills,Transport,230010,Contract Hire,02/12/2021,3942288-C3,770.00,BOBS TAXIS.
Children and Young Peoples Services,Head of Education and Skills,Transport,230007,Contract Hire,02/12/2021,3942288-CNOV21,"3,062.00",BOBS TAXIS.
Children and Young Peoples Services,Head of Education and Skills,Transport,230007,Contract Hire,02/12/2021,3942288-C1,946.00,BOBS TAXIS.
Children and Young Peoples Services,Head of Education and Skills,Transport,230008,Contract Hire,02/12/2021,3942306-068,"2,600.00",CHANNER`S CABS.
Children and Young Peoples Services,Head of Education and Skills,Transport,230007,Contract Hire,02/12/2021,3942307-11-NOV21,"1,296.00",CHAPMAN TRAVEL.
Children and Young Peoples Services,Head of Education and Skills,Transport,230006,Contract Hire,02/12/2021,3942307-03-NOV21,"1,450.00",CHAPMAN TRAVEL.
Children and Young Peoples Services,Head of Education and Skills,Transport,230008,Contract Hire,02/12/2021,3942319-1742,"2,428.80",CONNORS MINI BUSES.*
Children and Young Peoples Services,Head of Education and Skills,Transport,230016,Contract Hire,02/12/2021,3942323-111748,"2,128.32",CROFT BUSINESS SERVICES LTD T/A CROFT TRAVEL.
Children and Young Peoples Services,Head of Education and Skills,Transport,230008,Contract Hire,02/12/2021,3942323-111750,"3,228.72",CROFT BUSINESS SERVICES LTD T/A CROFT TRAVEL.
Children and Young Peoples Services,Head of Education and Skills,Transport,230008,Contract Hire,02/12/2021,3942323-111751,"3,317.60",CROFT BUSINESS SERVICES LTD T/A CROFT TRAVEL.
Children and Young Peoples Services,Head of Education and Skills,Transport,230008,Contract Hire,02/12/2021,3942323-111756,"2,420.00",CROFT BUSINESS SERVICES LTD T/A CROFT TRAVEL.
Children and Young Peoples Services,Head of Education and Skills,Transport,230006,Contract Hire,02/12/2021,3942323-111744,"2,454.66",CROFT BUSINESS SERVICES LTD T/A CROFT TRAVEL.
Children and Young Peoples Services,Head of Education and Skills,Transport,230006,Contract Hire,02/12/2021,3942323-111745,"1,637.68",CROFT BUSINESS SERVICES LTD T/A CROFT TRAVEL.
Children and Young Peoples Services,Head of Education and Skills,Transport,230006,Contract Hire,02/12/2021,3942323-111746,"2,021.28",CROFT BUSINESS SERVICES LTD T/A CROFT TRAVEL.
Children and Young Peoples Services,Head of Education and Skills,Transport,230008,Contract Hire,02/12/2021,3942323-111740,"2,530.00",CROFT BUSINESS SERVICES LTD T/A CROFT TRAVEL.
Children and Young Peoples Services,Head of Education and Skills,Transport,230007,Contract Hire,02/12/2021,3942323-111737,"4,294.84",CROFT BUSINESS SERVICES LTD T/A CROFT TRAVEL.
Adult and Health Services,Head of Adults,Transport,230005,Contract Hire,02/12/2021,3942341-1204,"2,352.00",EAST DURHAM TAXIS.
Children and Young Peoples Services,Head of Education and Skills,Transport,230006,Contract Hire,02/12/2021,3942341-1200,"3,248.96",EAST DURHAM TAXIS.
Children and Young Peoples Services,Head of Education and Skills,Transport,230006,Contract Hire,02/12/2021,3942341-1205,"5,078.48",EAST DURHAM TAXIS.
Children and Young Peoples Services,Head of Education and Skills,Transport,230006,Contract Hire,02/12/2021,3942341-1207,"4,246.00",EAST DURHAM TAXIS.
Children and Young Peoples Services,Head of Education and Skills,Transport,230008,Contract Hire,02/12/2021,3942341-1191,"3,084.84",EAST DURHAM TAXIS.
Children and Young Peoples Services,Head of Education and Skills,Transport,230008,Contract Hire,02/12/2021,3942341-1192,"3,132.00",EAST DURHAM TAXIS.
Children and Young Peoples Services,Head of Education and Skills,Transport,230008,Contract Hire,02/12/2021,3942341-1201,"2,596.00",EAST DURHAM TAXIS.
Children and Young Peoples Services,Head of Education and Skills,Transport,230006,Contract Hire,02/12/2021,3942341-1195,"4,048.00",EAST DURHAM TAXIS.
Children and Young Peoples Services,Head of Education and Skills,Transport,230008,Contract Hire,02/12/2021,3942341-1196,"4,136.00",EAST DURHAM TAXIS.
Children and Young Peoples Services,Head of Education and Skills,Transport,230009,Contract Hire,02/12/2021,3942341-1198,"2,948.00",EAST DURHAM TAXIS.
Children and Young Peoples Services,Head of Education and Skills,Transport,230016,Contract Hire,02/12/2021,3942341-1203,"3,864.00",EAST DURHAM TAXIS.
Children and Young Peoples Services,Head of Education and Skills,Transport,230008,Contract Hire,02/12/2021,3942341-1193,"2,814.00",EAST DURHAM TAXIS.
Children and Young Peoples Services,Head of Education and Skills,Transport,230008,Contract Hire,02/12/2021,3942353-NOV21-E003,"2,860.00",FAIR FARE TRAVEL (TAXIS).
Children and Young Peoples Services,Head of Education and Skills,Transport,230008,Contract Hire,02/12/2021,3942357-102640,"3,238.00",G & P JOHNSON LTD T/A NIGHTINGALE COACHES.
Children and Young Peoples Services,Head of Education and Skills,Transport,230007,Contract Hire,02/12/2021,3942360-23185,"6,996.00",GARNETTS LTD (COACHES).
Children and Young Peoples Services,Head of Education and Skills,Transport,230007,Contract Hire,02/12/2021,3942360-23187,"2,980.00",GARNETTS LTD (COACHES).
Children and Young Peoples Services,Head of Education and Skills,Transport,230007,Contract Hire,02/12/2021,3942360-23176,"12,516.00",GARNETTS LTD (COACHES).
Children and Young Peoples Services,Head of Education and Skills,Transport,230007,Contract Hire,02/12/2021,3942360-23178,"4,900.00",GARNETTS LTD (COACHES).
Children and Young Peoples Services,Head of Education and Skills,Transport,230003,Contract Hire,02/12/2021,3942360-23196-3302,"3,938.00",GARNETTS LTD (COACHES).
Children and Young Peoples Services,Head of Education and Skills,Transport,230007,Contract Hire,02/12/2021,3942360-23183-3007,"3,256.00",GARNETTS LTD (COACHES).
Children and Young Peoples Services,Head of Education and Skills,Transport,230007,Contract Hire,02/12/2021,3942360-23183-3315,"3,058.00",GARNETTS LTD (COACHES).
Children and Young Peoples Services,Head of Education and Skills,Transport,230007,Contract Hire,02/12/2021,3942360-23183-3435,"4,136.00",GARNETTS LTD (COACHES).
Children and Young Peoples Services,Head of Education and Skills,Transport,230007,Contract Hire,02/12/2021,3942360-23179-4034,"2,780.00",GARNETTS LTD (COACHES).
Children and Young Peoples Services,Head of Education and Skills,Transport,230007,Contract Hire,02/12/2021,3942360-23179-4035,"2,900.00",GARNETTS LTD (COACHES).
Children and Young Peoples Services,Head of Education and Skills,Transport,230007,Contract Hire,02/12/2021,3942360-23179-4037,"5,560.00",GARNETTS LTD (COACHES).
Children and Young Peoples Services,Head of Education and Skills,Transport,230007,Contract Hire,02/12/2021,3942360-23179-4038,"3,300.00",GARNETTS LTD (COACHES).
Children and Young Peoples Services,Head of Education and Skills,Transport,230003,Contract Hire,02/12/2021,3942360-23196-3301,"3,938.00",GARNETTS LTD (COACHES).
Children and Young Peoples Services,Head of Education and Skills,Transport,230003,Contract Hire,02/12/2021,3942360-23196-3303,"3,938.00",GARNETTS LTD (COACHES).
Children and Young Peoples Services,Head of Education and Skills,Transport,230003,Contract Hire,02/12/2021,3942360-23197-3004,"4,488.00",GARNETTS LTD (COACHES).
Children and Young Peoples Services,Head of Education and Skills,Transport,230003,Contract Hire,02/12/2021,3942360-23197-3005,"6,556.00",GARNETTS LTD (COACHES).
Children and Young Peoples Services,Head of Education and Skills,Transport,230003,Contract Hire,02/12/2021,3942360-23197-3008,"3,718.00",GARNETTS LTD (COACHES).
Children and Young Peoples Services,Head of Education and Skills,Transport,230003,Contract Hire,02/12/2021,3942360-23197-3203,"3,498.00",GARNETTS LTD (COACHES).
Children and Young Peoples Services,Head of Education and Skills,Transport,230003,Contract Hire,02/12/2021,3942360-23197-3223,"6,996.00",GARNETTS LTD (COACHES).
Children and Young Peoples Services,Head of Education and Skills,Transport,230003,Contract Hire,02/12/2021,3942360-23197-3262,"4,114.00",GARNETTS LTD (COACHES).
Children and Young Peoples Services,Head of Education and Skills,Transport,230003,Contract Hire,02/12/2021,3942360-23197-3333,"3,696.00",GARNETTS LTD (COACHES).
Children and Young Peoples Services,Head of Education and Skills,Transport,230007,Contract Hire,02/12/2021,3942360-23180-3029,"2,860.00",GARNETTS LTD (COACHES).
Children and Young Peoples Services,Head of Education and Skills,Transport,230007,Contract Hire,02/12/2021,3942360-23180-3199,"2,720.00",GARNETTS LTD (COACHES).
Children and Young Peoples Services,Head of Education and Skills,Transport,230003,Contract Hire,02/12/2021,3942360-23180-3020,"2,880.00",GARNETTS LTD (COACHES).
Children and Young Peoples Services,Head of Education and Skills,Transport,230003,Contract Hire,02/12/2021,3942360-23180-3024,"2,380.00",GARNETTS LTD (COACHES).
Children and Young Peoples Services,Head of Education and Skills,Transport,230003,Contract Hire,02/12/2021,3942360-23180-3027,"2,540.00",GARNETTS LTD (COACHES).
Children and Young Peoples Services,Head of Education and Skills,Transport,230003,Contract Hire,02/12/2021,3942360-23180-3028,"2,780.00",GARNETTS LTD (COACHES).
Children and Young Peoples Services,Head of Education and Skills,Transport,230007,Contract Hire,02/12/2021,3942360-23177,"4,980.00",GARNETTS LTD (COACHES).
Children and Young Peoples Services,Head of Education and Skills,Transport,230008,Contract Hire,02/12/2021,3942360-23198,"3,432.00",GARNETTS LTD (COACHES).
Children and Young Peoples Services,Head of Education and Skills,Transport,230008,Contract Hire,02/12/2021,3942360-23199,"5,328.50",GARNETTS LTD (COACHES).
Children and Young Peoples Services,Head of Education and Skills,Transport,230008,Contract Hire,02/12/2021,3942361-GS003-NOV21,756.00,GARY JACKSON PRIVATE HIRE.
Children and Young Peoples Services,Head of Education and Skills,Transport,230034,Contract Hire,02/12/2021,3942361-SM003-NOV21,"1,584.00",GARY JACKSON PRIVATE HIRE.
Children and Young Peoples Services,Head of Education and Skills,Transport,230008,Contract Hire,02/12/2021,3942363-021-NOV21,"2,802.80",GMC TAXIS NORTH EAST.
Adult and Health Services,Head of Adults,Transport,230005,Contract Hire,02/12/2021,3942377-1018,"2,090.00",I & R EXECUTIVE TRAVEL.
Adult and Health Services,Head of Adults,Transport,230005,Contract Hire,02/12/2021,3942377-1022,704.00,I & R EXECUTIVE TRAVEL.
Children and Young Peoples Services,Head of Education and Skills,Transport,230008,Contract Hire,02/12/2021,3942377-1016,"2,785.20",I & R EXECUTIVE TRAVEL.
Children and Young Peoples Services,Head of Education and Skills,Transport,230008,Contract Hire,02/12/2021,3942377-1017,"2,176.24",I & R EXECUTIVE TRAVEL.
Adult and Health Services,Head of Adults,Transport,230005,Contract Hire,02/12/2021,3942390-0829,"2,915.00",JACKSON`S TAXI.
Children and Young Peoples Services,Head of Education and Skills,Transport,230008,Contract Hire,02/12/2021,3942390-0831,"2,496.56",JACKSON`S TAXI.
Children and Young Peoples Services,Head of Education and Skills,Transport,230008,Contract Hire,02/12/2021,3942390-0833,"2,807.20",JACKSON`S TAXI.
Children and Young Peoples Services,Head of Education and Skills,Transport,230009,Contract Hire,02/12/2021,3942390-0832,"1,260.00",JACKSON`S TAXI.
Children and Young Peoples Services,Head of Education and Skills,Transport,230008,Contract Hire,02/12/2021,3942390-0830,"2,365.88",JACKSON`S TAXI.
Dedicated Schools Grant BG0015,DSG Schools Block,Transport,230031,Contract Hire,02/12/2021,3942392-39,"2,360.00",JD`S TAXI.
Children and Young Peoples Services,Head of Education and Skills,Transport,230006,Contract Hire,02/12/2021,3942396-3-21/22,"1,448.61",JOHN BELL TAXI.
Adult and Health Services,Head of Adults,Transport,230005,Contract Hire,02/12/2021,3942397-8-NOV21,630.00,JOHN CRAKE & SONS MINI BUSES LTD.
Adult and Health Services,Head of Adults,Transport,230005,Contract Hire,02/12/2021,3942397-7-NOV21,630.00,JOHN CRAKE & SONS MINI BUSES LTD.
Children and Young Peoples Services,Head of Education and Skills,Transport,230016,Contract Hire,02/12/2021,3942403-M01543,"2,875.95",JOVIAL PRIVATE HIRE.
Children and Young Peoples Services,Head of Education and Skills,Transport,230008,Contract Hire,02/12/2021,3942403-M00942,"1,978.45",JOVIAL PRIVATE HIRE.
Children and Young Peoples Services,Head of Education and Skills,Transport,230008,Contract Hire,02/12/2021,3942403-M01603,"1,470.00",JOVIAL PRIVATE HIRE.
Children and Young Peoples Services,Head of Education and Skills,Transport,230008,Contract Hire,02/12/2021,3942403-M01742,980.07,JOVIAL PRIVATE HIRE.
Children and Young Peoples Services,Head of Education and Skills,Transport,230008,Contract Hire,02/12/2021,3942403-N03003,"2,947.02",JOVIAL PRIVATE HIRE.
Children and Young Peoples Services,Head of Education and Skills,Transport,230006,Contract Hire,02/12/2021,3942412-003-NOV21,"1,200.00",KELLY`S.
Adult and Health Services,Head of Adults,Transport,230005,Contract Hire,02/12/2021,3942418-1957,"1,592.36",LD TAXIS.
Children and Young Peoples Services,Head of Education and Skills,Transport,230006,Contract Hire,02/12/2021,3942418-1955,"2,001.00",LD TAXIS.
Children and Young Peoples Services,Head of Education and Skills,Transport,230008,Contract Hire,02/12/2021,3942418-1458,"2,100.00",LD TAXIS.
Children and Young Peoples Services,Head of Education and Skills,Transport,230008,Contract Hire,02/12/2021,3942418-1956,"1,925.88",LD TAXIS.
Children and Young Peoples Services,Head of Education and Skills,Transport,230008,Contract Hire,02/12/2021,3942418-1959,"1,760.00",LD TAXIS.
Children and Young Peoples Services,Head of Education and Skills,Transport,230008,Contract Hire,02/12/2021,3942422-0067,"2,640.00",LEWIS PATTISON T/A LEWIS TAXIS.
Children and Young Peoples Services,Head of Education and Skills,Transport,230008,Contract Hire,02/12/2021,3942423-003-NOV21,"4,079.04",LIMASEC LTD T/A LIMA TRANSPORT.
Children and Young Peoples Services,Head of Education and Skills,Transport,230007,Contract Hire,02/12/2021,3942429-272,760.00,LUMLEY TAXIS.
Children and Young Peoples Services,Head of Education and Skills,Transport,230007,Contract Hire,02/12/2021,3942438-INV11/2021-02,920.00,MARK & JOHN CHISHOLM T/A (CHEVRON).
Children and Young Peoples Services,Head of Education and Skills,Transport,230007,Contract Hire,02/12/2021,3942438-INV11/2021-03,936.00,MARK & JOHN CHISHOLM T/A (CHEVRON).
Children and Young Peoples Services,Head of Education and Skills,Transport,230007,Contract Hire,02/12/2021,3942438-INV11/2021-04,780.00,MARK & JOHN CHISHOLM T/A (CHEVRON).
Children and Young Peoples Services,Head of Education and Skills,Transport,230035,Contract Hire,02/12/2021,3942438-INV11/2021-06,"2,186.10",MARK & JOHN CHISHOLM T/A (CHEVRON).
Children and Young Peoples Services,Head of Education and Skills,Transport,230008,Contract Hire,02/12/2021,3942438-INV11/2021-07,"1,786.00",MARK & JOHN CHISHOLM T/A (CHEVRON).
Children and Young Peoples Services,Head of Education and Skills,Transport,230010,Contract Hire,02/12/2021,3942438-INV11/2021-10,"3,038.00",MARK & JOHN CHISHOLM T/A (CHEVRON).
Children and Young Peoples Services,Head of Education and Skills,Transport,230010,Contract Hire,02/12/2021,3942438-INV11/2021-11,"2,140.38",MARK & JOHN CHISHOLM T/A (CHEVRON).
Children and Young Peoples Services,Head of Education and Skills,Transport,230010,Contract Hire,02/12/2021,3942438-INV11/2021-12,"2,047.32",MARK & JOHN CHISHOLM T/A (CHEVRON).
Children and Young Peoples Services,Head of Education and Skills,Transport,230010,Contract Hire,02/12/2021,3942438-INV11/2021-13,"3,629.34",MARK & JOHN CHISHOLM T/A (CHEVRON).
Children and Young Peoples Services,Head of Education and Skills,Transport,230007,Contract Hire,02/12/2021,3942438-INV11/2021-05,"1,276.00",MARK & JOHN CHISHOLM T/A (CHEVRON).
Children and Young Peoples Services,Head of Education and Skills,Transport,230008,Contract Hire,02/12/2021,3942447-KDC-01112021,"1,992.76",MJ TIMNEY T/A KDC & C&M TAXIS.
Children and Young Peoples Services,Head of Education and Skills,Transport,230007,Contract Hire,02/12/2021,3942471-INV-6992,"2,919.00",NORTH EAST COACHWAYS LTD.
Children and Young Peoples Services,Head of Education and Skills,Transport,230034,Contract Hire,02/12/2021,3942489-5294-NOV21,880.00,PETER`S TAXIS.
Dedicated Schools Grant BG0015,DSG Schools Block,Transport,230031,Contract Hire,02/12/2021,3942267-00240,"5,975.00",REDACTED - PAYMENT TO INDIVIDUAL
Children and Young Peoples Services,Head of Education and Skills,Transport,230012,Contract Hire,02/12/2021,3942295-3NOV21,"1,320.00",REDACTED - PAYMENT TO INDIVIDUAL
Children and Young Peoples Services,Head of Education and Skills,Transport,230012,Contract Hire,02/12/2021,3942295-3NOV212,"1,125.00",REDACTED - PAYMENT TO INDIVIDUAL
Adult and Health Services,Head of Adults,Transport,230005,Contract Hire,02/12/2021,3942309-EAS199-NOV21,"1,100.00",REDACTED - PAYMENT TO INDIVIDUAL
Children and Young Peoples Services,Head of Education and Skills,Transport,230007,Contract Hire,02/12/2021,3942311-47347,"3,000.00",REDACTED - PAYMENT TO INDIVIDUAL
Children and Young Peoples Services,Head of Education and Skills,Transport,230006,Contract Hire,02/12/2021,3942313-INV-065,510.00,REDACTED - PAYMENT TO INDIVIDUAL
Children and Young Peoples Services,Head of Education and Skills,Transport,230008,Contract Hire,02/12/2021,3942329-B41-1,625.00,REDACTED - PAYMENT TO INDIVIDUAL
Children and Young Peoples Services,Head of Education and Skills,Transport,230008,Contract Hire,02/12/2021,3942329-B41-2,"2,282.93",REDACTED - PAYMENT TO INDIVIDUAL
Children and Young Peoples Services,Head of Education and Skills,Transport,230008,Contract Hire,02/12/2021,3942329-B42,"1,929.31",REDACTED - PAYMENT TO INDIVIDUAL
Children and Young Peoples Services,Head of Education and Skills,Transport,230008,Contract Hire,02/12/2021,3942329-B40,"2,835.00",REDACTED - PAYMENT TO INDIVIDUAL
Children and Young Peoples Services,Head of Education and Skills,Transport,230008,Contract Hire,02/12/2021,3942330-9,"3,305.00",REDACTED - PAYMENT TO INDIVIDUAL
Children and Young Peoples Services,Head of Education and Skills,Transport,230007,Contract Hire,02/12/2021,3942378-3-4409-NOV21,"1,079.40",REDACTED - PAYMENT TO INDIVIDUAL
Children and Young Peoples Services,Head of Education and Skills,Transport,230008,Contract Hire,02/12/2021,3942378-3-N084,"3,163.93",REDACTED - PAYMENT TO INDIVIDUAL
Children and Young Peoples Services,Head of Education and Skills,Transport,230009,Contract Hire,02/12/2021,3942378-3-7370-NOV21,760.00,REDACTED - PAYMENT TO INDIVIDUAL
Children and Young Peoples Services,Head of Education and Skills,Transport,230006,Contract Hire,02/12/2021,3942399-251,999.00,REDACTED - PAYMENT TO INDIVIDUAL
Children and Young Peoples Services,Head of Education and Skills,Transport,230009,Contract Hire,02/12/2021,3942413-011121,"1,571.20",REDACTED - PAYMENT TO INDIVIDUAL
Children and Young Peoples Services,Head of Education and Skills,Transport,230016,Contract Hire,02/12/2021,3942431-247,880.00,REDACTED - PAYMENT TO INDIVIDUAL
Children and Young Peoples Services,Head of Education and Skills,Transport,230008,Contract Hire,02/12/2021,3942431-248,"1,430.00",REDACTED - PAYMENT TO INDIVIDUAL
Children and Young Peoples Services,Head of Education and Skills,Transport,230035,Contract Hire,02/12/2021,3942431-246,"1,824.80",REDACTED - PAYMENT TO INDIVIDUAL
Children and Young Peoples Services,Head of Education and Skills,Transport,230008,Contract Hire,02/12/2021,3942462-80,"1,827.00",REDACTED - PAYMENT TO INDIVIDUAL
Children and Young Peoples Services,Head of Education and Skills,Transport,230006,Contract Hire,02/12/2021,3942530-F859,"1,200.00",REDACTED - PAYMENT TO INDIVIDUAL
Adult and Health Services,Head of Adults,Transport,230005,Contract Hire,02/12/2021,3942554-0002296,"1,980.00",REDACTED - PAYMENT TO INDIVIDUAL
Adult and Health Services,Head of Adults,Transport,230005,Contract Hire,02/12/2021,3942453-213,784.00,REDACTED - PAYMENT TO INDIVIDUAL
Adult and Health Services,Head of Adults,Transport,230005,Contract Hire,02/12/2021,3942453-214,800.00,REDACTED - PAYMENT TO INDIVIDUAL
Children and Young Peoples Services,Head of Education and Skills,Transport,230012,Contract Hire,02/12/2021,3942453-221,"3,346.00",REDACTED - PAYMENT TO INDIVIDUAL
Children and Young Peoples Services,Head of Education and Skills,Transport,230008,Contract Hire,02/12/2021,3942454-0055,"3,300.00",REDACTED - PAYMENT TO INDIVIDUAL
Children and Young Peoples Services,Head of Education and Skills,Transport,230009,Contract Hire,02/12/2021,3942453-215,"1,580.46",REDACTED - PAYMENT TO INDIVIDUAL
Children and Young Peoples Services,Head of Education and Skills,Transport,230006,Contract Hire,02/12/2021,3942452-F117-03,"1,620.00",REDACTED - PAYMENT TO INDIVIDUAL
Children and Young Peoples Services,Head of Education and Skills,Transport,230006,Contract Hire,02/12/2021,3942454-0056,"1,287.00",REDACTED - PAYMENT TO INDIVIDUAL
Children and Young Peoples Services,Head of Education and Skills,Transport,230034,Contract Hire,02/12/2021,3942455-INV0061,"1,931.06",REDACTED - PAYMENT TO INDIVIDUAL
Children and Young Peoples Services,Head of Education and Skills,Transport,230008,Contract Hire,02/12/2021,3942455-INV0060,"2,483.53",REDACTED - PAYMENT TO INDIVIDUAL
Children and Young Peoples Services,Head of Education and Skills,Transport,230008,Contract Hire,02/12/2021,3942449-117777,"3,780.00",REDACTED - PAYMENT TO INDIVIDUAL
Children and Young Peoples Services,Head of Education and Skills,Transport,230008,Contract Hire,02/12/2021,3942453-216,"2,156.00",REDACTED - PAYMENT TO INDIVIDUAL
Children and Young Peoples Services,Head of Education and Skills,Transport,230008,Contract Hire,02/12/2021,3942453-218,"2,310.00",REDACTED - PAYMENT TO INDIVIDUAL
Children and Young Peoples Services,Head of Education and Skills,Transport,230008,Contract Hire,02/12/2021,3942453-219,"1,856.61",REDACTED - PAYMENT TO INDIVIDUAL
Children and Young Peoples Services,Head of Education and Skills,Transport,230008,Contract Hire,02/12/2021,3942453-217,"2,058.00",REDACTED - PAYMENT TO INDIVIDUAL
Adult and Health Services,Head of Adults,Transport,230005,Contract Hire,02/12/2021,3942506-1875,"1,560.00",RON`S TAXIS (FISHBURN).
Children and Young Peoples Services,Head of Education and Skills,Transport,230007,Contract Hire,02/12/2021,3942506-1876,"1,320.00",RON`S TAXIS (FISHBURN).
Children and Young Peoples Services,Head of Education and Skills,Transport,230008,Contract Hire,02/12/2021,3942520-211105,"2,770.46",SHOTTON PRIVATE HIRE.
Children and Young Peoples Services,Head of Education and Skills,Transport,230007,Contract Hire,02/12/2021,3942520-211106,"2,090.00",SHOTTON PRIVATE HIRE.
Children and Young Peoples Services,Head of Education and Skills,Transport,230008,Contract Hire,02/12/2021,3942520-211108,"2,835.00",SHOTTON PRIVATE HIRE.
Children and Young Peoples Services,Head of Education and Skills,Transport,230008,Contract Hire,02/12/2021,3942520-21102,"3,092.54",SHOTTON PRIVATE HIRE.
Children and Young Peoples Services,Head of Education and Skills,Transport,230008,Contract Hire,02/12/2021,3942520-211101,"3,179.88",SHOTTON PRIVATE HIRE.
Children and Young Peoples Services,Head of Education and Skills,Transport,230008,Contract Hire,02/12/2021,3942520-211103,"2,795.32",SHOTTON PRIVATE HIRE.
Children and Young Peoples Services,Head of Education and Skills,Transport,230008,Contract Hire,02/12/2021,3942520-211107,"3,431.00",SHOTTON PRIVATE HIRE.
Children and Young Peoples Services,Head of Education and Skills,Transport,230007,Contract Hire,02/12/2021,3942532-20210008,693.00,STEVE`S CABS (TAXIS).
Children and Young Peoples Services,Head of Education and Skills,Transport,230010,Contract Hire,02/12/2021,3942532-20210007,"1,610.00",STEVE`S CABS (TAXIS).
Children and Young Peoples Services,Head of Education and Skills,Transport,230006,Contract Hire,02/12/2021,3942531-00149,682.44,STEVES TAXIS.
Children and Young Peoples Services,Head of Education and Skills,Transport,230008,Contract Hire,02/12/2021,3942541-01/09/2021,"1,121.68",TAILORMADE TRAVEL.
Children and Young Peoples Services,Head of Education and Skills,Transport,230008,Contract Hire,02/12/2021,3942541-01/09/2021-M052,"1,017.64",TAILORMADE TRAVEL.
Children and Young Peoples Services,Head of Education and Skills,Transport,230003,Contract Hire,02/12/2021,3942544-5030-NOV21,"3,960.00",TED WILFORD COACHES.
Children and Young Peoples Services,Head of Education and Skills,Transport,230003,Contract Hire,02/12/2021,3942544-5300-NOV21,"3,300.00",TED WILFORD COACHES.
Adult and Health Services,Head of Adults,Transport,230005,Contract Hire,02/12/2021,3942555-3-CLS045-NOV21,"1,304.16",TONYS TAXIS (J BIRCH).
Adult and Health Services,Head of Adults,Transport,230005,Contract Hire,02/12/2021,3942555-2-SED121-NOV21,"1,320.00",TONYS TAXIS (J BIRCH).
Adult and Health Services,Head of Adults,Transport,230005,Contract Hire,02/12/2021,3942555-5-EAS001-NOV21,598.00,TONYS TAXIS (J BIRCH).
Adult and Health Services,Head of Adults,Transport,230005,Contract Hire,02/12/2021,3942555-8-EAS196-NOV21,"2,640.00",TONYS TAXIS (J BIRCH).
Children and Young Peoples Services,Head of Education and Skills,Transport,230008,Contract Hire,02/12/2021,3942555-7-EO58-NOV21,"2,580.00",TONYS TAXIS (J BIRCH).
Children and Young Peoples Services,Head of Education and Skills,Transport,230006,Contract Hire,02/12/2021,3942555-1-A105-NOV21,"2,959.11",TONYS TAXIS (J BIRCH).
Children and Young Peoples Services,Head of Education and Skills,Transport,230009,Contract Hire,02/12/2021,3942555-4-7307-NOV21,"1,029.00",TONYS TAXIS (J BIRCH).
Children and Young Peoples Services,Head of Education and Skills,Transport,230008,Contract Hire,02/12/2021,3942559-02-NOV21,"3,080.00",TRIDENT TAXIS.
Children and Young Peoples Services,Head of Education and Skills,Transport,230008,Contract Hire,02/12/2021,3942559-03-NOV21,"2,652.33",TRIDENT TAXIS.
Children and Young Peoples Services,Head of Education and Skills,Transport,230008,Contract Hire,02/12/2021,3942571-0003185,"2,428.80",WATSON OF SPENNYMOOR.
Children and Young Peoples Services,Head of Education and Skills,Transport,230008,Contract Hire,02/12/2021,3942571-0003186,"2,776.40",WATSON OF SPENNYMOOR.
"Regeneration, Economy and Growth",Corporate Property and Land,Premises,120037,Energy Costs,02/12/2021,3942262-14448,"1,891.44",AFTERWOOD LTD.
"Regeneration, Economy and Growth",Culture Sport and Tourism,Premises,120037,Energy Costs,02/12/2021,3942299-34524196,527.88,CALOR GAS LTD.
Neighbourhoods and Climate Change,Environmental Services,Supplies and Services,304358,Equipment and Materials,02/12/2021,3942298-08493,"1,850.00",BW HAULAGE LTD.
Neighbourhoods and Climate Change,Environmental Services,Supplies and Services,304221,Equipment and Materials,02/12/2021,3942302-424435,"1,530.00",CARRS BILLINGTON AGRICULTURE.
Resources BK0010,Digital and Customer Services,Supplies and Services,304303,Equipment and Materials,02/12/2021,3942368-INV0184768,"3,479.00",GVAV LTD.
Neighbourhoods and Climate Change,Technical Services CM0300,Supplies and Services,304358,Equipment and Materials,02/12/2021,3942369-2110/021,960.00,HALL CONSTRUCTION SERVICES LTD.
Neighbourhoods and Climate Change,Technical Services CM0300,Supplies and Services,304358,Equipment and Materials,02/12/2021,3942369-2111/006,"1,920.00",HALL CONSTRUCTION SERVICES LTD.
Neighbourhoods and Climate Change,Technical Services CM0300,Supplies and Services,304358,Equipment and Materials,02/12/2021,3942398-31356,"1,114.50",JOHN R BUTTERFIELD LTD.
Neighbourhoods and Climate Change,Technical Services CM0300,Supplies and Services,304358,Equipment and Materials,02/12/2021,3942398-31366,"1,099.50",JOHN R BUTTERFIELD LTD.
Neighbourhoods and Climate Change,Technical Services CM0300,Supplies and Services,304358,Equipment and Materials,02/12/2021,3942398-31610,"1,416.50",JOHN R BUTTERFIELD LTD.
Neighbourhoods and Climate Change,Technical Services CM0300,Supplies and Services,304358,Equipment and Materials,02/12/2021,3942398-31616,"2,311.50",JOHN R BUTTERFIELD LTD.
Neighbourhoods and Climate Change,Technical Services CM0300,Supplies and Services,304358,Equipment and Materials,02/12/2021,3942398-31657,"3,722.40",JOHN R BUTTERFIELD LTD.
Neighbourhoods and Climate Change,Technical Services CM0300,Supplies and Services,304358,Equipment and Materials,02/12/2021,3942398-31661,"1,209.00",JOHN R BUTTERFIELD LTD.
Neighbourhoods and Climate Change,Technical Services CM0300,Supplies and Services,304221,Equipment and Materials,02/12/2021,3942404-0303/00523032,"1,075.00",JT DOVE LTD.
Neighbourhoods and Climate Change,Technical Services CM0300,Supplies and Services,304221,Equipment and Materials,02/12/2021,3942404-0303/00525437,"3,440.00",JT DOVE LTD.
Neighbourhoods and Climate Change,Technical Services CM0300,Supplies and Services,304358,Equipment and Materials,02/12/2021,3942414-3854,578.75,KEVIN SNOWDON GROUNDWORKS LTD.
Neighbourhoods and Climate Change,Technical Services CM0300,Supplies and Services,304358,Equipment and Materials,02/12/2021,3942414-3898,703.00,KEVIN SNOWDON GROUNDWORKS LTD.
Neighbourhoods and Climate Change,Technical Services CM0300,Supplies and Services,304358,Equipment and Materials,02/12/2021,3942414-3899,703.00,KEVIN SNOWDON GROUNDWORKS LTD.
Neighbourhoods and Climate Change,Technical Services CM0300,Supplies and Services,304358,Equipment and Materials,02/12/2021,3942414-3900,874.40,KEVIN SNOWDON GROUNDWORKS LTD.
Neighbourhoods and Climate Change,Technical Services CM0300,Supplies and Services,304358,Equipment and Materials,02/12/2021,3942414-3901,858.40,KEVIN SNOWDON GROUNDWORKS LTD.
Neighbourhoods and Climate Change,Technical Services CM0300,Supplies and Services,304358,Equipment and Materials,02/12/2021,3942415-INV03119060,551.60,LANES GROUP PLC.
"Regeneration, Economy and Growth",Corporate Property and Land,Supplies and Services,304252,Equipment and Materials,02/12/2021,3942488-93093,935.00,PETERLEE FIRE CO LTD.
Neighbourhoods and Climate Change,Environmental Services,Supplies and Services,304358,Equipment and Materials,02/12/2021,3942499-SI-1578,"1,845.00",RD KEARTON & SONS LTD.
"Regeneration, Economy and Growth",Corporate Property and Land,Supplies and Services,304221,Equipment and Materials,02/12/2021,3942519-0000129453,615.70,SHORTS INDUSTRIES LTD T/A SHORTS LIFTS.
"Regeneration, Economy and Growth",Corporate Property and Land,Supplies and Services,304221,Equipment and Materials,02/12/2021,3942519-0000129496,730.00,SHORTS INDUSTRIES LTD T/A SHORTS LIFTS.
"Regeneration, Economy and Growth",Corporate Property and Land,Supplies and Services,304221,Equipment and Materials,02/12/2021,3942565-6890417708,"2,355.60",VIESSMANN LTD.
Neighbourhoods and Climate Change,Environmental Services,Supplies and Services,304259,Equipment and Materials,02/12/2021,3942573-59821,750.00,WIRELESS CCTV LTD.
Neighbourhoods and Climate Change,Partnerships & Community Engagement Div.,Fees,901001,Internal fees,02/12/2021,3942367-M678,"2,209.00",GROUNDWORK NORTH EAST.
"Regeneration, Economy and Growth",Development and Housing,Fees,901001,Internal fees,02/12/2021,3942491-6638954,"6,060.00",PINSENT MASONS LLP.
Neighbourhoods and Climate Change,Environmental Services,Supplies and Services,384199,Miscellaneous Expenses,02/12/2021,3942335-INV-1698,"3,450.00",DINSDALE MOORLAND SPECIALISTS.
Neighbourhoods and Climate Change,Environmental Services,Supplies and Services,384199,Miscellaneous Expenses,02/12/2021,3942335-INV-1699,"14,983.94",DINSDALE MOORLAND SPECIALISTS.
Adult and Health Services,Head of Adults,Supplies and Services,384616,Miscellaneous Expenses,02/12/2021,3942410-20ETHERLEY/09/10/11,955.80,KARBON HOMES LTD FORMERLY CESTRIA HOUSING ASSOCIATION LTD.
Resources BK0010,Procurement Sales & Business Services,Supplies and Services,384199,Miscellaneous Expenses,02/12/2021,3942461-91454889,"14,185.00",NEC SOFTWARE SOLUTIONS UK LTD.
"Regeneration, Economy and Growth",Culture Sport and Tourism,Supplies and Services,384999,Miscellaneous Expenses,02/12/2021,3942464-1417,"8,961.30",NEW WRITING NORTH LTD.
"Regeneration, Economy and Growth",Culture Sport and Tourism,Supplies and Services,384199,Miscellaneous Expenses,02/12/2021,3942474-00018579,539.52,NSL LTD.
Children and Young Peoples Services,Head of Education and Skills,Supplies and Services,384199,Miscellaneous Expenses,02/12/2021,3942478-INV-0776,"3,145.71",OPTIMUM SKILLS LTD.
Children and Young Peoples Services,Head of Education and Skills,Supplies and Services,384199,Miscellaneous Expenses,02/12/2021,3942478-INV-0777,"3,932.24",OPTIMUM SKILLS LTD.
"Regeneration, Economy and Growth",Development and Housing,Supplies and Services,384199,Miscellaneous Expenses,02/12/2021,3942508-TEC586226,"3,000.00",RPS CONSULTING SERVICES LTD.
"Regeneration, Economy and Growth",Development and Housing,Supplies and Services,384899,Miscellaneous Expenses,02/12/2021,3942564-SD013/10,"13,204.63",UMI COMMERCIAL LTD.
"Regeneration, Economy and Growth",Culture Sport and Tourism,Supplies and Services,312013,Newspapers books and periodicals E312,02/12/2021,3942271-6600862,575.36,ASKEWS & HOLTS LIBRARY SERVICES LTD.
Children and Young Peoples Services,Head of Childrens Social Care,Third Party Payments,440046,Other third party payments E440,02/12/2021,3942303-21066,"1,190.00",CASTLE VIEW GROUP TRAINING.
Children and Young Peoples Services,Head of Childrens Social Care,Third Party Payments,440046,Other third party payments E440,02/12/2021,3942303-21067,"6,865.90",CASTLE VIEW GROUP TRAINING.
Children and Young Peoples Services,Head of Childrens Social Care,Third Party Payments,440046,Other third party payments E440,02/12/2021,3942303-21068,"6,863.86",CASTLE VIEW GROUP TRAINING.
Children and Young Peoples Services,Head of Childrens Social Care,Third Party Payments,440046,Other third party payments E440,02/12/2021,3942303-21069,"2,307.47",CASTLE VIEW GROUP TRAINING.
Children and Young Peoples Services,Head of Childrens Social Care,Third Party Payments,440046,Other third party payments E440,02/12/2021,3942432-00021689,"7,626.48",MAJOR RECRUITMENT LTD.
Children and Young Peoples Services,Head of Childrens Social Care,Third Party Payments,440046,Other third party payments E440,02/12/2021,3942432-00021692,"1,718.43",MAJOR RECRUITMENT LTD.
Children and Young Peoples Services,Head of Childrens Social Care,Third Party Payments,440046,Other third party payments E440,02/12/2021,3942432-00021693,"7,919.58",MAJOR RECRUITMENT LTD.
Children and Young Peoples Services,Head of Childrens Social Care,Third Party Payments,440046,Other third party payments E440,02/12/2021,3942432-00021695,"1,507.20",MAJOR RECRUITMENT LTD.
Children and Young Peoples Services,Head of Childrens Social Care,Third Party Payments,440046,Other third party payments E440,02/12/2021,3942432-00021696,555.84,MAJOR RECRUITMENT LTD.
Children and Young Peoples Services,Head of Childrens Social Care,Third Party Payments,440038,Other third party payments E440,02/12/2021,3942472-ST6,"11,640.00",NORTH EAST SUPPORTED TENANCIES (NEST).
"Regeneration, Economy and Growth",Business Durham CL0850,Supplies and Services,340001,Postages E340,02/12/2021,3942507-1802443393,787.00,ROYAL MAIL GROUP PLC.
"Regeneration, Economy and Growth",Transport and Contracted Services,Supplies and Services,340001,Postages E340,02/12/2021,3942507-1109572020,"1,374.83",ROYAL MAIL GROUP PLC.
Resources BK0010,Digital and Customer Services,Supplies and Services,332029,Printing Stationery and Gen Off Exps,02/12/2021,3942348-710225,"4,500.00",ENCORE ENVELOPES LTD.
Resources BK0010,Digital and Customer Services,Supplies and Services,332029,Printing Stationery and Gen Off Exps,02/12/2021,3942528-141132,"2,363.00",STATEX PRESS NORTHERN LTD.
Adult and Health Services,Head of Adults,Third Party Payments,478151,Purchase of Care,02/12/2021,3942318-421R179470,"9,342.18",COMMUNITY INTEGRATED CARE LTD.
Adult and Health Services,Head of Adults,Third Party Payments,473101,Purchase of Care,02/12/2021,3942576-CAS-12-2021-006,"3,815.60",WOODCRAFT FOR LANDSCAPES CIC.
Neighbourhoods and Climate Change,Technical Services CM0300,Third Party Payments,430100,Rendered by Private Contractors,02/12/2021,3942372-3323,"5,610.00",HIGHWAY CONSTRUCTION SERVICES LTD.
"Regeneration, Economy and Growth",Transport and Contracted Services,Third Party Payments,430106,Rendered by Private Contractors,02/12/2021,3942373-19472,"9,743.70",HODGSONS COACH OPERATORS LTD.
Neighbourhoods and Climate Change,Technical Services CM0300,Third Party Payments,430100,Rendered by Private Contractors,02/12/2021,3942534-21525,531.18,STONEGRAVE AGGREGATES LTD.
Children and Young Peoples Services,Head of Childrens Social Care,Third Party Payments,425021,Rendered by Voluntary Organisations,02/12/2021,3942485-320619,"16,749.34",PEARTREE PROJECTS LTD.
Dedicated Schools Grant BG0015,DSG Schools Block,Supplies and Services,338075,Services,02/12/2021,3942272-150,"2,960.00",ASPIRE ALTERNATIVE EDUCATION LTD.
Dedicated Schools Grant BG0015,DSG Schools Block,Supplies and Services,338075,Services,02/12/2021,3942289-158,"4,080.00",BOX CLEVER (HORDEN) LTD.
Dedicated Schools Grant BG0015,DSG Schools Block,Supplies and Services,338075,Services,02/12/2021,3942349-276,"3,120.00",ENTERPRISE EDUCATION (NORTH EAST).
"Regeneration, Economy and Growth",Culture Sport and Tourism,Supplies and Services,338047,Services,02/12/2021,3942350-13271,"2,750.00",ENTERTAINERS SHOW PROVIDERS LTD.
"Regeneration, Economy and Growth",Culture Sport and Tourism,Supplies and Services,338047,Services,02/12/2021,3942350-13799,"6,547.44",ENTERTAINERS SHOW PROVIDERS LTD.
Neighbourhoods and Climate Change,Environmental Services,Supplies and Services,338066,Services,02/12/2021,3942382-BURSARYDEC21,757.33,REDACTED - PAYMENT TO INDIVIDUAL
Adult and Health Services,Head of Adults,Supplies and Services,338429,Services,02/12/2021,3942470-02,600.00,NORTH EAST BEFRIENDING SERVICE CIC.
"Regeneration, Economy and Growth",Culture Sport and Tourism,Supplies and Services,338047,Services,02/12/2021,3942435-015,"3,290.00",REDACTED - PAYMENT TO INDIVIDUAL
Neighbourhoods and Climate Change,Environmental Services,Supplies and Services,338066,Services,02/12/2021,3942518-INV1-8764,"2,657.00",SHOCK THE SENSES LTD.
Children and Young Peoples Services,Head of Education and Skills,Supplies and Services,338027,Services,02/12/2021,3942533-634099,700.00,STOCKTON ON TEES BOROUGH COUNCIL.
Children and Young Peoples Services,Childrens Services Operational Support,Supplies and Services,338089,Services,02/12/2021,3942535-INV001299,"5,050.00",STRENGTHENING PRACTICE.
Children and Young Peoples Services,Head of Childrens Social Care,Supplies and Services,338045,Services,02/12/2021,3942540-NE21C00101A,"1,804.00",SYNCC LTD.
Children and Young Peoples Services,Head of Early Help Inclusion & Vulnerable Children.,Supplies and Services,338094,Services,02/12/2021,3942548-6577,"2,506.00",THE DURHAM CENTRE LTD.
Neighbourhoods and Climate Change,Technical Services CM0300,Stock A926,926900,Stock in hand-Inventory system,02/12/2021,3942269-3898,839.50,ARROWHAUL & PLANT HIRE LTD.
Resources BK0010,Digital and Customer Services,Stock A926,926900,Stock in hand-Inventory system,02/12/2021,3942331-7402763713,"2,680.23",DELL COMPUTER CORPORATION LTD.
Resources BK0010,Digital and Customer Services,Stock A926,926900,Stock in hand-Inventory system,02/12/2021,3942331-7402764873,539.92,DELL COMPUTER CORPORATION LTD.
Neighbourhoods and Climate Change,Technical Services CM0300,Stock A926,926900,Stock in hand-Inventory system,02/12/2021,3942542-9044418099,859.12,TARMAC TRADING LTD.
Neighbourhoods and Climate Change,Technical Services CM0300,Supplies and Services,372009,Subscriptions E372,02/12/2021,3942258-1182786,"3,277.09",ACCESS UK LTD T/A ARMED.
"Regeneration, Economy and Growth",Development and Housing,Supplies and Services,372009,Subscriptions E372,02/12/2021,3942569-10307804,500.00,WARWICKSHIRE COUNTY COUNCIL.
"Regeneration, Economy and Growth",Corporate Property and Land,Premises,150015,Apportioned Exps of Operational Blds,03/12/2021,3942643-173435,688.60,CLEE HILL PLANT LTD.
"Regeneration, Economy and Growth",Corporate Property and Land,Premises,150015,Apportioned Exps of Operational Blds,03/12/2021,3942643-176881,728.91,CLEE HILL PLANT LTD.
"Regeneration, Economy and Growth",Corporate Property and Land,Premises,150015,Apportioned Exps of Operational Blds,03/12/2021,3942643-176883,763.62,CLEE HILL PLANT LTD.
"Regeneration, Economy and Growth",Corporate Property and Land,Premises,150015,Apportioned Exps of Operational Blds,03/12/2021,3942643-168693,501.02,CLEE HILL PLANT LTD.
"Regeneration, Economy and Growth",Corporate Property and Land,Premises,150015,Apportioned Exps of Operational Blds,03/12/2021,3942643-171011,526.88,CLEE HILL PLANT LTD.
Neighbourhoods and Climate Change,Technical Services CM0300,Premises,150015,Apportioned Exps of Operational Blds,03/12/2021,3942643-165332,857.95,CLEE HILL PLANT LTD.
Neighbourhoods and Climate Change,Technical Services CM0300,Premises,150015,Apportioned Exps of Operational Blds,03/12/2021,3942643-167501,818.96,CLEE HILL PLANT LTD.
Neighbourhoods and Climate Change,Technical Services CM0300,Premises,150015,Apportioned Exps of Operational Blds,03/12/2021,3942643-172252,857.95,CLEE HILL PLANT LTD.
Neighbourhoods and Climate Change,Technical Services CM0300,Premises,150015,Apportioned Exps of Operational Blds,03/12/2021,3942643-172253,724.46,CLEE HILL PLANT LTD.
Neighbourhoods and Climate Change,Technical Services CM0300,Premises,150015,Apportioned Exps of Operational Blds,03/12/2021,3942643-174523,857.96,CLEE HILL PLANT LTD.
Neighbourhoods and Climate Change,Technical Services CM0300,Premises,150015,Apportioned Exps of Operational Blds,03/12/2021,3942643-176880,857.96,CLEE HILL PLANT LTD.
"Regeneration, Economy and Growth",Corporate Property and Land,Premises,150005,Apportioned Exps of Operational Blds,03/12/2021,3942753-21181,515.27,LOFTHOUSE & PARTNERS LTD.
"Regeneration, Economy and Growth",Corporate Property and Land,Premises,150005,Apportioned Exps of Operational Blds,03/12/2021,3942753-21182,515.27,LOFTHOUSE & PARTNERS LTD.
"Regeneration, Economy and Growth",Culture Sport and Tourism,Premises,106083,Centrally Controlled Rep and Maint,03/12/2021,3942595-IN8872,"12,552.38",ACROL AIR CONDITIONING CO LTD.
Resources BK0010,Digital and Customer Services,Vehicles Equipment Furniture and Fittings,912701,Computer equipment,03/12/2021,3942659-7402762585,"1,438.63",DELL COMPUTER CORPORATION LTD.
"Regeneration, Economy and Growth",Culture Sport and Tourism,Supplies and Services,342033,Computers and Communications,03/12/2021,3942722-2100051658-21,750.88,INSIGHT DIRECT (UK) LTD.
Resources BK0010,Corporate Finance & Commercial Services,Supplies and Services,342053,Computers and Communications,03/12/2021,3942795-460018665,"10,936.50",ORACLE CORPORATION UK LTD.
Resources BK0010,Digital and Customer Services,Supplies and Services,342033,Computers and Communications,03/12/2021,3942872-138846,"2,520.00",SWITCHSHOP LTD.
Resources BK0010,Digital and Customer Services,Supplies and Services,342033,Computers and Communications,03/12/2021,3942888-135732,"17,250.55",TP ELECTRICAL SUPPLIES & FIXINGS LTD.
"Regeneration, Economy and Growth",Culture Sport and Tourism,Fees,901002,Professional fees,03/12/2021,3942910-3600985,"1,953.90",WOMBLE BOND DICKINSON (UK) LLP.
Children and Young Peoples Services,Head of Education and Skills,Transport,230008,Contract Hire,03/12/2021,3942598-15/21,"2,684.00",ADVANCE TRAVEL.
Children and Young Peoples Services,Head of Education and Skills,Transport,230008,Contract Hire,03/12/2021,3942602-03NOV21,"2,420.00",AIRPORT TRANSFER DURHAM.
Children and Young Peoples Services,Head of Education and Skills,Transport,230008,Contract Hire,03/12/2021,3942620-2-M054-NOV21,"1,062.60",BH TRAVEL.
Children and Young Peoples Services,Head of Education and Skills,Transport,230006,Contract Hire,03/12/2021,3942620-1-E101-NOV21,"2,640.00",BH TRAVEL.
Dedicated Schools Grant BG0015,DSG Schools Block,Transport,230031,Contract Hire,03/12/2021,3942621-INV-532,"4,160.00",BILL SCOTT TAXIS LTD.
Dedicated Schools Grant BG0015,DSG Schools Block,Transport,230031,Contract Hire,03/12/2021,3942621-INV-534,"4,120.00",BILL SCOTT TAXIS LTD.
Children and Young Peoples Services,Head of Childrens Social Care,Transport,230005,Contract Hire,03/12/2021,3942645-CLUB2144N,520.00,CLUBMAN CABS.
Children and Young Peoples Services,Head of Childrens Social Care,Transport,230005,Contract Hire,03/12/2021,3942645-CLUB2145B,800.00,CLUBMAN CABS.
Children and Young Peoples Services,Head of Childrens Social Care,Transport,230005,Contract Hire,03/12/2021,3942645-CLUB2146P,690.00,CLUBMAN CABS.
Children and Young Peoples Services,Head of Childrens Social Care,Transport,230005,Contract Hire,03/12/2021,3942645-CLUB2145ZB,505.00,CLUBMAN CABS.
Children and Young Peoples Services,Head of Childrens Social Care,Transport,230005,Contract Hire,03/12/2021,3942645-CLUB2144D,500.00,CLUBMAN CABS.
Children and Young Peoples Services,Head of Childrens Social Care,Transport,230005,Contract Hire,03/12/2021,3942645-CLUB2145D,580.00,CLUBMAN CABS.
Children and Young Peoples Services,Head of Childrens Social Care,Transport,230005,Contract Hire,03/12/2021,3942645-CLUB2146E,530.00,CLUBMAN CABS.
Children and Young Peoples Services,Head of Childrens Social Care,Transport,230005,Contract Hire,03/12/2021,3942645-CLUB2146C,550.00,CLUBMAN CABS.
Children and Young Peoples Services,Head of Childrens Social Care,Transport,230005,Contract Hire,03/12/2021,3942653-111674,899.80,CROFT BUSINESS SERVICES LTD T/A CROFT TRAVEL.
Children and Young Peoples Services,Head of Childrens Social Care,Transport,230005,Contract Hire,03/12/2021,3942653-111569,598.40,CROFT BUSINESS SERVICES LTD T/A CROFT TRAVEL.
Children and Young Peoples Services,Head of Childrens Social Care,Transport,230005,Contract Hire,03/12/2021,3942653-111614,598.40,CROFT BUSINESS SERVICES LTD T/A CROFT TRAVEL.
Children and Young Peoples Services,Head of Childrens Social Care,Transport,230005,Contract Hire,03/12/2021,3942653-111672,598.40,CROFT BUSINESS SERVICES LTD T/A CROFT TRAVEL.
Children and Young Peoples Services,Head of Childrens Social Care,Transport,230005,Contract Hire,03/12/2021,3942653-111611,992.86,CROFT BUSINESS SERVICES LTD T/A CROFT TRAVEL.
Children and Young Peoples Services,Head of Childrens Social Care,Transport,230005,Contract Hire,03/12/2021,3942653-111562,656.88,CROFT BUSINESS SERVICES LTD T/A CROFT TRAVEL.
Dedicated Schools Grant BG0015,DSG Schools Block,Transport,230031,Contract Hire,03/12/2021,3942700-4,"5,440.00",GO THE DISTANCE (GTD) CIC.
Children and Young Peoples Services,Head of Childrens Social Care,Transport,230005,Contract Hire,03/12/2021,3942751-4973,"4,095.00",LOCAL TRANSPORT LTD.
Children and Young Peoples Services,Head of Childrens Social Care,Transport,230005,Contract Hire,03/12/2021,3942751-4974,"5,175.00",LOCAL TRANSPORT LTD.
Children and Young Peoples Services,Head of Childrens Social Care,Transport,230005,Contract Hire,03/12/2021,3942751-4970,"1,140.00",LOCAL TRANSPORT LTD.
Children and Young Peoples Services,Head of Education and Skills,Transport,230013,Contract Hire,03/12/2021,3942745-002-NOV21,"1,408.00",REDACTED - PAYMENT TO INDIVIDUAL
Children and Young Peoples Services,Head of Education and Skills,Transport,230008,Contract Hire,03/12/2021,3942770-E215-NOV21,"2,640.00",REDACTED - PAYMENT TO INDIVIDUAL
Children and Young Peoples Services,Head of Education and Skills,Transport,230008,Contract Hire,03/12/2021,3942770-M020-NOV21,"2,844.00",REDACTED - PAYMENT TO INDIVIDUAL
Children and Young Peoples Services,Head of Education and Skills,Transport,230008,Contract Hire,03/12/2021,3942770-E010-NOV21,"1,092.00",REDACTED - PAYMENT TO INDIVIDUAL
Children and Young Peoples Services,Head of Education and Skills,Transport,230007,Contract Hire,03/12/2021,3942770-5428-NOV21,"1,600.00",REDACTED - PAYMENT TO INDIVIDUAL
Children and Young Peoples Services,Head of Education and Skills,Transport,230006,Contract Hire,03/12/2021,3942770-E217-NOV21,"2,730.00",REDACTED - PAYMENT TO INDIVIDUAL
Children and Young Peoples Services,Head of Education and Skills,Transport,230008,Contract Hire,03/12/2021,3942770-E049-NOV21,"3,814.41",REDACTED - PAYMENT TO INDIVIDUAL
Children and Young Peoples Services,Head of Education and Skills,Transport,230007,Contract Hire,03/12/2021,3942834-SKS2122-20,"1,050.00",SAMUEL KINGS SCHOOL.
Children and Young Peoples Services,Head of Childrens Social Care,Transport,230005,Contract Hire,03/12/2021,3942865-SI-1220,500.00,STEVEN PRATT T/A PTL TAXIS DURHAM.
Children and Young Peoples Services,Head of Childrens Social Care,Transport,230005,Contract Hire,03/12/2021,3942865-SI-1233,500.00,STEVEN PRATT T/A PTL TAXIS DURHAM.
Children and Young Peoples Services,Head of Childrens Social Care,Transport,230005,Contract Hire,03/12/2021,3942865-SI-1221,518.50,STEVEN PRATT T/A PTL TAXIS DURHAM.
Children and Young Peoples Services,Head of Childrens Social Care,Transport,230005,Contract Hire,03/12/2021,3942865-SI-1222,600.00,STEVEN PRATT T/A PTL TAXIS DURHAM.
Children and Young Peoples Services,Head of Childrens Social Care,Transport,230005,Contract Hire,03/12/2021,3942865-SI-1234,518.50,STEVEN PRATT T/A PTL TAXIS DURHAM.
Children and Young Peoples Services,Head of Childrens Social Care,Transport,230005,Contract Hire,03/12/2021,3942865-SI-1235,600.00,STEVEN PRATT T/A PTL TAXIS DURHAM.
Children and Young Peoples Services,Head of Childrens Social Care,Transport,230005,Contract Hire,03/12/2021,3942865-SI-1236,800.00,STEVEN PRATT T/A PTL TAXIS DURHAM.
Children and Young Peoples Services,Head of Childrens Social Care,Transport,230005,Contract Hire,03/12/2021,3942866-NOV1/STL2021,560.00,STL CABS.
Children and Young Peoples Services,Head of Childrens Social Care,Transport,230005,Contract Hire,03/12/2021,3942866-NOV24/STL,560.00,STL CABS.
Children and Young Peoples Services,Head of Childrens Social Care,Transport,230005,Contract Hire,03/12/2021,3942866-NOV52/STL,560.00,STL CABS.
"Regeneration, Economy and Growth",Corporate Property and Land,Premises,120037,Energy Costs,03/12/2021,3942600-14497,"1,820.40",AFTERWOOD LTD.
Neighbourhoods and Climate Change,Environmental Services,Supplies and Services,304999,Equipment and Materials,03/12/2021,3942636-61938,"4,596.75",CHEVIOT TREES LTD.
"Regeneration, Economy and Growth",Corporate Property and Land,Supplies and Services,304221,Equipment and Materials,03/12/2021,3942739-0113/00526711,"3,308.00",JT DOVE LTD.
Neighbourhoods and Climate Change,Technical Services CM0300,Supplies and Services,304221,Equipment and Materials,03/12/2021,3942739-0113/00525433,960.84,JT DOVE LTD.
Neighbourhoods and Climate Change,Technical Services CM0300,Supplies and Services,304221,Equipment and Materials,03/12/2021,3942895-228649,895.98,TYNEDALE ROADSTONE LTD.
Neighbourhoods and Climate Change,Technical Services CM0300,Supplies and Services,304221,Equipment and Materials,03/12/2021,3942904-26382,578.23,WARD TIMBER LTD.
Neighbourhoods and Climate Change,Environmental Services,Cap Exp on Grants & Other Financial Assistance (REFCUS),918501,Exp assets not owned by authority,03/12/2021,3942762-1282,"6,000.00",MARSDEN AES LTD.
Neighbourhoods and Climate Change,Environmental Services,Cap Exp on Grants & Other Financial Assistance (REFCUS),918501,Exp assets not owned by authority,03/12/2021,3942762-1292,"2,772.00",MARSDEN AES LTD.
"Regeneration, Economy and Growth",Culture Sport and Tourism,Supplies and Services,384199,Miscellaneous Expenses,03/12/2021,3942650-NEI-HCL-12-2021-02,"2,428.50",COUNTY DURHAM SPORT.
"Regeneration, Economy and Growth",Transport and Contracted Services,Supplies and Services,384199,Miscellaneous Expenses,03/12/2021,3942681-INV-2075,"16,515.41",EVENT TRAFFIC CONTROL LTD.
"Regeneration, Economy and Growth",Transport and Contracted Services,Supplies and Services,384199,Miscellaneous Expenses,03/12/2021,3942681-INV-2076,"40,641.40",EVENT TRAFFIC CONTROL LTD.
Children and Young Peoples Services,Head of Early Help Inclusion & Vulnerable Children.,Supplies and Services,384700,Miscellaneous Expenses,03/12/2021,3942683-DURHAMWINTERFAMILY,"50,000.00",FAMILY FUND TRADING LTD T/A FAMILY FUND BUSINESS SERVICES.
Children and Young Peoples Services,Head of Early Help Inclusion & Vulnerable Children.,Supplies and Services,384199,Miscellaneous Expenses,03/12/2021,3942693-UKCSTDUR001,"1,897.09",FRONTLINE SECURITY 247 LTD.
Children and Young Peoples Services,Head of Early Help Inclusion & Vulnerable Children.,Supplies and Services,384199,Miscellaneous Expenses,03/12/2021,3942693-UKCSTDUR002,"2,106.79",FRONTLINE SECURITY 247 LTD.
Children and Young Peoples Services,Head of Early Help Inclusion & Vulnerable Children.,Supplies and Services,384199,Miscellaneous Expenses,03/12/2021,3942693-UKCSTDUR003,"2,316.49",FRONTLINE SECURITY 247 LTD.
Children and Young Peoples Services,Head of Early Help Inclusion & Vulnerable Children.,Supplies and Services,384199,Miscellaneous Expenses,03/12/2021,3942693-UKCSTDUR004,"2,212.24",FRONTLINE SECURITY 247 LTD.
Children and Young Peoples Services,Head of Early Help Inclusion & Vulnerable Children.,Supplies and Services,384199,Miscellaneous Expenses,03/12/2021,3942693-UKCSTDUR005,"2,421.34",FRONTLINE SECURITY 247 LTD.
"Regeneration, Economy and Growth",Development and Housing,Supplies and Services,384199,Miscellaneous Expenses,03/12/2021,3942698-220085010,"34,819.66",GATESHEAD COUNCIL.
Neighbourhoods and Climate Change,Environmental Services,Supplies and Services,384199,Miscellaneous Expenses,03/12/2021,3942720-851/DUCC3949,"6,155.00",IMAGEMAKERS DESIGN & CONSULTANCY LTD.
Children and Young Peoples Services,Head of Childrens Social Care,Supplies and Services,384302,Miscellaneous Expenses,03/12/2021,3942760-21831,555.84,MAJOR RECRUITMENT LTD.
Children and Young Peoples Services,Head of Childrens Social Care,Supplies and Services,384302,Miscellaneous Expenses,03/12/2021,3942760-22043,555.84,MAJOR RECRUITMENT LTD.
Children and Young Peoples Services,Head of Childrens Social Care,Supplies and Services,384302,Miscellaneous Expenses,03/12/2021,3942760-65,555.84,MAJOR RECRUITMENT LTD.
Children and Young Peoples Services,Head of Childrens Social Care,Supplies and Services,384500,Miscellaneous Expenses,03/12/2021,3942783-2616,"1,800.00",NORTH EAST ADOPTION THERAPY SERVICES LTD (NEATS).
Children and Young Peoples Services,Head of Early Help Inclusion & Vulnerable Children.,Supplies and Services,384302,Miscellaneous Expenses,03/12/2021,3942850-026,"30,850.00",SKILL MILL PARTNERSHIP LTD.
Resources BK0010,Procurement Sales & Business Services,Supplies and Services,384199,Miscellaneous Expenses,03/12/2021,3942879-6584,608.25,THE DURHAM CENTRE LTD.
"Regeneration, Economy and Growth",Culture Sport and Tourism,Supplies and Services,312013,Newspapers books and periodicals E312,03/12/2021,3942780-9016109005,"2,861.25",NIELSEN BOOK SERVICES LTD.
"Regeneration, Economy and Growth",Business Durham CL0850,Third Party Payments,440999,Other third party payments E440,03/12/2021,3942662-DBRG-12-2021-02,"1,500.00",DESIGN X PRESS LTD.
"Regeneration, Economy and Growth",Business Durham CL0850,Third Party Payments,440999,Other third party payments E440,03/12/2021,3942662-DBRG-12-2021-03,"2,788.13",DESIGN X PRESS LTD.
"Regeneration, Economy and Growth",Business Durham CL0850,Third Party Payments,440999,Other third party payments E440,03/12/2021,3942725-DBRG-12-2021-01,"22,271.23",ISOCOM LIMITED.
"Regeneration, Economy and Growth",Culture Sport and Tourism,Supplies and Services,340001,Postages E340,03/12/2021,3942817-NEI-HCL-12-2021-01,500.00,QUADIENT FINANCE UK LTD FORMERLY NEOPOST LTD.
Resources BK0010,Legal & Democratic Services,Supplies and Services,340001,Postages E340,03/12/2021,3942817-RES-12-2021-001,"2,000.00",QUADIENT FINANCE UK LTD FORMERLY NEOPOST LTD.
Resources BK0010,Digital and Customer Services,Supplies and Services,332029,Printing Stationery and Gen Off Exps,03/12/2021,3942821-19479,560.00,RADECAL SIGNS GRAPHICS & ADVERTISING.
Adult and Health Services,Head of Adults,Third Party Payments,478151,Purchase of Care,03/12/2021,3942678-16A/BPERIOD8,"1,933.20",EMBRACING CARE.
Adult and Health Services,Head of Adults,Third Party Payments,478151,Purchase of Care,03/12/2021,3942808-2906,"19,224.00",POSITIVE INDIVIDUAL PROACTIVE SUPPORT LTD.
Adult and Health Services,Head of Adults,Third Party Payments,472101,Purchase of Care,03/12/2021,3942810-BACS3939519/3939520,"109,648.31",PREMIER COMMUNITY CARE LTD.
"Regeneration, Economy and Growth",Culture Sport and Tourism,Vehicles Equipment Furniture and Fittings,912521,Purchase-furniture and fittings,03/12/2021,3942869-180657,"3,950.00",SUPATINT LTD T/A SUPATINT WINDOW FILMS & BLINDS.
Neighbourhoods and Climate Change,Technical Services CM0300,Third Party Payments,430100,Rendered by Private Contractors,03/12/2021,3942646-I21D0213,"15,520.65",COLAS LTD.
Neighbourhoods and Climate Change,Environmental Services,Third Party Payments,430120,Rendered by Private Contractors,03/12/2021,3942686-CTIN06663012,"12,374.55",FINNING (UK) LTD.
Neighbourhoods and Climate Change,Technical Services CM0300,Third Party Payments,430100,Rendered by Private Contractors,03/12/2021,3942728-25901,995.00,JACK COUPE & SONS LTD T/A COUPE LINE.
Neighbourhoods and Climate Change,Environmental Services,Third Party Payments,430101,Rendered by Private Contractors,03/12/2021,3942765-FKL00306,587.60,MCCONECHYS TYRE SERVICE LTD.
Neighbourhoods and Climate Change,Environmental Services,Third Party Payments,430101,Rendered by Private Contractors,03/12/2021,3942765-FKL00312,"3,691.35",MCCONECHYS TYRE SERVICE LTD.
Neighbourhoods and Climate Change,Environmental Services,Third Party Payments,430101,Rendered by Private Contractors,03/12/2021,3942765-FKL00305,943.50,MCCONECHYS TYRE SERVICE LTD.
Neighbourhoods and Climate Change,Environmental Services,Third Party Payments,430101,Rendered by Private Contractors,03/12/2021,3942765-FKL00311,"1,551.05",MCCONECHYS TYRE SERVICE LTD.
Neighbourhoods and Climate Change,Environmental Services,Third Party Payments,430101,Rendered by Private Contractors,03/12/2021,3942765-FKL00304,979.70,MCCONECHYS TYRE SERVICE LTD.
Neighbourhoods and Climate Change,Environmental Services,Third Party Payments,430101,Rendered by Private Contractors,03/12/2021,3942765-FKL00310,"1,008.40",MCCONECHYS TYRE SERVICE LTD.
Neighbourhoods and Climate Change,Environmental Services,Third Party Payments,430101,Rendered by Private Contractors,03/12/2021,3942765-FKL00307,986.80,MCCONECHYS TYRE SERVICE LTD.
Neighbourhoods and Climate Change,Environmental Services,Third Party Payments,430101,Rendered by Private Contractors,03/12/2021,3942765-FKL00313,"2,772.45",MCCONECHYS TYRE SERVICE LTD.
Neighbourhoods and Climate Change,Technical Services CM0300,Third Party Payments,430100,Rendered by Private Contractors,03/12/2021,3942788-DI20373489,"1,654.08",NORTHERN POWERGRID (NORTHEAST) LTD.
Neighbourhoods and Climate Change,Technical Services CM0300,Third Party Payments,430100,Rendered by Private Contractors,03/12/2021,3942819-13699,"2,562.96",QUANTUM POWER CONNECTIONS LTD.
Neighbourhoods and Climate Change,Technical Services CM0300,Third Party Payments,430100,Rendered by Private Contractors,03/12/2021,3942819-13737,"11,585.72",QUANTUM POWER CONNECTIONS LTD.
Neighbourhoods and Climate Change,Technical Services CM0300,Third Party Payments,430100,Rendered by Private Contractors,03/12/2021,3942819-13738,"7,811.04",QUANTUM POWER CONNECTIONS LTD.
"Regeneration, Economy and Growth",Corporate Property and Land,Third Party Payments,430100,Rendered by Private Contractors,03/12/2021,3942845-23177,"2,285.33",SEYMOUR (CIVIL ENGINEERING CONTRACTORS) LTD.
"Regeneration, Economy and Growth",Corporate Property and Land,Third Party Payments,430100,Rendered by Private Contractors,03/12/2021,3942869-180631,"2,835.00",SUPATINT LTD T/A SUPATINT WINDOW FILMS & BLINDS.
Neighbourhoods and Climate Change,Environmental Services,Third Party Payments,430100,Rendered by Private Contractors,03/12/2021,3942894-63672,650.00,TURF CARE SPECIALISTS LTD.
Neighbourhoods and Climate Change,Environmental Services,Transport,210057,Repair and Maintenance of Vehicles,03/12/2021,3942630-252927,883.90,CARRS BILLINGTON AGRICULTURE.
Neighbourhoods and Climate Change,Environmental Services,Transport,210057,Repair and Maintenance of Vehicles,03/12/2021,3942630-252933,"1,003.01",CARRS BILLINGTON AGRICULTURE.
Neighbourhoods and Climate Change,Environmental Services,Transport,210057,Repair and Maintenance of Vehicles,03/12/2021,3942630-253304,544.72,CARRS BILLINGTON AGRICULTURE.
Neighbourhoods and Climate Change,Environmental Services,Transport,210057,Repair and Maintenance of Vehicles,03/12/2021,3942674-S209038,967.01,ECON ENGINEERING LTD.
Neighbourhoods and Climate Change,Environmental Services,Transport,210057,Repair and Maintenance of Vehicles,03/12/2021,3942703-SI-0001318,"1,706.10",GRAYS MACHINERY LTD.
Neighbourhoods and Climate Change,Environmental Services,Transport,210057,Repair and Maintenance of Vehicles,03/12/2021,3942900-32051,527.32,VERSALIFT DISTRIBUTORS (UK) LTD.
Neighbourhoods and Climate Change,Environmental Services,Transport,215012,Running Costs of Vehicles,03/12/2021,3942635-196205,777.00,CHEVIN FLEET SOLUTIONS LTD.
Neighbourhoods and Climate Change,Environmental Services,Transport,215005,Running Costs of Vehicles,03/12/2021,3942913-839752,"13,891.17",YOUR NRG LTD.
Neighbourhoods and Climate Change,Environmental Services,Transport,215005,Running Costs of Vehicles,03/12/2021,3942913-839363,"14,966.13",YOUR NRG LTD.
Neighbourhoods and Climate Change,Environmental Services,Transport,215005,Running Costs of Vehicles,03/12/2021,3942913-839364,"2,329.80",YOUR NRG LTD.
Neighbourhoods and Climate Change,Environmental Services,Transport,215022,Running Costs of Vehicles,03/12/2021,3942913-839367,"1,386.60",YOUR NRG LTD.
Neighbourhoods and Climate Change,Environmental Services,Transport,215005,Running Costs of Vehicles,03/12/2021,3942913-839369,"7,482.79",YOUR NRG LTD.
"Regeneration, Economy and Growth",Corporate Property and Land,Premises,108099,Service Repairs and Maintenance,03/12/2021,3942867-18547,528.00,STONE TECHNICAL SERVICES LTD.
"Regeneration, Economy and Growth",Business Durham CL0850,Premises,108125,Service Repairs and Maintenance,03/12/2021,3942871-19992,800.00,SWINBURNE HORTICULTURAL SERVICES LTD.
"Regeneration, Economy and Growth",Corporate Property and Land,Premises,108099,Service Repairs and Maintenance,03/12/2021,3942908-1016840,558.52,WILO (UK) LTD.
"Regeneration, Economy and Growth",Culture Sport and Tourism,Supplies and Services,338099,Services,03/12/2021,3942605-9188,"50,000.00",ALLIANCE LEISURE SERVICES LTD.
Adult and Health Services,Head of Adults,Supplies and Services,338366,Services,03/12/2021,3942628-79750,617.10,CARE ABILITY HEALTHCARE LTD.
Adult and Health Services,Head of Adults,Supplies and Services,338366,Services,03/12/2021,3942628-79751,542.10,CARE ABILITY HEALTHCARE LTD.
Adult and Health Services,Head of Adults,Supplies and Services,338366,Services,03/12/2021,3942628-80311,"1,756.00",CARE ABILITY HEALTHCARE LTD.
Neighbourhoods and Climate Change,Environmental Services,Supplies and Services,338066,Services,03/12/2021,3942638-BURSARYDEC21,577.20,CHLOE ELIZABETH WOOD.
Neighbourhoods and Climate Change,Environmental Services,Supplies and Services,338066,Services,03/12/2021,3942730-BURSARYDEC21,889.18,JAMES DILL-RUSSELL (GEOLOGIST).
"Regeneration, Economy and Growth",Development and Housing,Supplies and Services,338027,Services,03/12/2021,3942743-485661-081121,"1,500.00",KINGS CHAMBERS.
"Regeneration, Economy and Growth",Corporate Property and Land,Supplies and Services,338066,Services,03/12/2021,3942748-23248,970.68,LITS LTD.
Resources BK0010,Finance & Transactional Services,Supplies and Services,338066,Services,03/12/2021,3942776-91454890,"6,911.85",NEC SOFTWARE SOLUTIONS UK LTD.
Children and Young Peoples Services,Head of Education and Skills,Supplies and Services,338094,Services,03/12/2021,3942804-17659/18,"2,380.00",PIONEERING CARE PARTNERSHIP.
Neighbourhoods and Climate Change,Community Protection,Supplies and Services,338045,Services,03/12/2021,3942773-114463,"2,800.00",REDACTED - PAYMENT TO INDIVIDUAL
Resources BK0010,Corporate Finance & Commercial Services,Supplies and Services,372009,Subscriptions E372,03/12/2021,3942806-INV-0657,"2,500.00",PIXEL FINANCIAL MANAGEMENT LTD.
Adult and Health Services,Commissioning inc Supporting People,Transport,240045,Car allowances E240,06/12/2021,3943253-11347,"3,157.98",SUPPORTIVE SRC LTD.
"Regeneration, Economy and Growth",Business Durham CL0850,Supplies and Services,342053,Computers and Communications,06/12/2021,3942998-CSUK-SI-033815,"6,450.00",CREDITSAFE BUSINESS SOLUTIONS LTD.
Resources BK0010,Procurement Sales & Business Services,Supplies and Services,342053,Computers and Communications,06/12/2021,3942998-CSUK-SI-150285,"4,900.00",CREDITSAFE BUSINESS SOLUTIONS LTD.
Neighbourhoods and Climate Change,Environmental Services,Construction work A908,908105,Construction work,06/12/2021,3943046-ESAL06139337,"58,094.15",FINNING (UK) LTD.
Resources BK0010,Legal & Democratic Services,Construction work A908,908105,Construction work,06/12/2021,3943102-INS8-MOUNTOSWALD,"471,268.62",KIER CONSTRUCTION LTD - SCOTLAND
Children and Young Peoples Services,Head of Education and Skills,Construction work A908,908105,Construction work,06/12/2021,3943186-DI20374539,"1,245.00",NORTHERN POWERGRID (NORTHEAST) LTD.
Children and Young Peoples Services,Head of Education and Skills,Transport,230034,Contract Hire,06/12/2021,3942918-112103,600.00,24/7 TAXI SERVICES (PETERLEE) LTD.
Children and Young Peoples Services,Head of Education and Skills,Transport,230008,Contract Hire,06/12/2021,3942918-112109,"2,727.27",24/7 TAXI SERVICES (PETERLEE) LTD.
Children and Young Peoples Services,Head of Education and Skills,Transport,230034,Contract Hire,06/12/2021,3942918-112115,"2,640.00",24/7 TAXI SERVICES (PETERLEE) LTD.
Children and Young Peoples Services,Head of Education and Skills,Transport,230008,Contract Hire,06/12/2021,3942918-112112,"4,158.00",24/7 TAXI SERVICES (PETERLEE) LTD.
Children and Young Peoples Services,Head of Education and Skills,Transport,230006,Contract Hire,06/12/2021,3942918-112117,"1,760.00",24/7 TAXI SERVICES (PETERLEE) LTD.
Children and Young Peoples Services,Head of Education and Skills,Transport,230016,Contract Hire,06/12/2021,3942918-112110,"2,640.00",24/7 TAXI SERVICES (PETERLEE) LTD.
Children and Young Peoples Services,Head of Education and Skills,Transport,230008,Contract Hire,06/12/2021,3942918-112116,"2,178.00",24/7 TAXI SERVICES (PETERLEE) LTD.
Children and Young Peoples Services,Head of Education and Skills,Transport,230034,Contract Hire,06/12/2021,3942918-112101,"2,709.00",24/7 TAXI SERVICES (PETERLEE) LTD.
Children and Young Peoples Services,Head of Education and Skills,Transport,230012,Contract Hire,06/12/2021,3942918-112122,"3,300.00",24/7 TAXI SERVICES (PETERLEE) LTD.
Children and Young Peoples Services,Head of Education and Skills,Transport,230008,Contract Hire,06/12/2021,3942918-112125,774.00,24/7 TAXI SERVICES (PETERLEE) LTD.
Children and Young Peoples Services,Head of Education and Skills,Transport,230006,Contract Hire,06/12/2021,3942918-112118,"1,180.00",24/7 TAXI SERVICES (PETERLEE) LTD.
Children and Young Peoples Services,Head of Education and Skills,Transport,230006,Contract Hire,06/12/2021,3942918-112119,"2,064.00",24/7 TAXI SERVICES (PETERLEE) LTD.
Children and Young Peoples Services,Head of Education and Skills,Transport,230034,Contract Hire,06/12/2021,3942918-112104,"1,078.00",24/7 TAXI SERVICES (PETERLEE) LTD.
Children and Young Peoples Services,Head of Education and Skills,Transport,230006,Contract Hire,06/12/2021,3942918-112106,"2,484.46",24/7 TAXI SERVICES (PETERLEE) LTD.
Children and Young Peoples Services,Head of Education and Skills,Transport,230006,Contract Hire,06/12/2021,3942918-112108,"1,100.00",24/7 TAXI SERVICES (PETERLEE) LTD.
Children and Young Peoples Services,Head of Education and Skills,Transport,230008,Contract Hire,06/12/2021,3942918-112107,"2,838.00",24/7 TAXI SERVICES (PETERLEE) LTD.
Children and Young Peoples Services,Head of Education and Skills,Transport,230007,Contract Hire,06/12/2021,3942918-112105,736.00,24/7 TAXI SERVICES (PETERLEE) LTD.
Children and Young Peoples Services,Head of Education and Skills,Transport,230006,Contract Hire,06/12/2021,3942918-112111,"3,513.62",24/7 TAXI SERVICES (PETERLEE) LTD.
Children and Young Peoples Services,Head of Education and Skills,Transport,230008,Contract Hire,06/12/2021,3942918-112114,"5,168.99",24/7 TAXI SERVICES (PETERLEE) LTD.
Children and Young Peoples Services,Head of Education and Skills,Transport,230008,Contract Hire,06/12/2021,3942918-112121,"3,738.00",24/7 TAXI SERVICES (PETERLEE) LTD.
Children and Young Peoples Services,Head of Education and Skills,Transport,230007,Contract Hire,06/12/2021,3942918-112102,"2,026.29",24/7 TAXI SERVICES (PETERLEE) LTD.
Children and Young Peoples Services,Head of Education and Skills,Transport,230012,Contract Hire,06/12/2021,3942918-112113,"2,520.00",24/7 TAXI SERVICES (PETERLEE) LTD.
Children and Young Peoples Services,Head of Education and Skills,Transport,230007,Contract Hire,06/12/2021,3942919-77043,"1,528.00",24X7LTD.
Children and Young Peoples Services,Head of Education and Skills,Transport,230007,Contract Hire,06/12/2021,3942919-77044,"1,605.66",24X7LTD.
Children and Young Peoples Services,Head of Education and Skills,Transport,230007,Contract Hire,06/12/2021,3942919-77045,"1,499.61",24X7LTD.
Children and Young Peoples Services,Head of Education and Skills,Transport,230008,Contract Hire,06/12/2021,3942919-77058,"3,800.28",24X7LTD.
Children and Young Peoples Services,Head of Education and Skills,Transport,230008,Contract Hire,06/12/2021,3942919-77055,"3,738.24",24X7LTD.
Children and Young Peoples Services,Head of Education and Skills,Transport,230012,Contract Hire,06/12/2021,3942919-77053,"2,434.30",24X7LTD.
Children and Young Peoples Services,Head of Education and Skills,Transport,230007,Contract Hire,06/12/2021,3942919-77048,"1,440.12",24X7LTD.
Children and Young Peoples Services,Head of Education and Skills,Transport,230012,Contract Hire,06/12/2021,3942919-77054,"2,844.40",24X7LTD.
Children and Young Peoples Services,Head of Education and Skills,Transport,230003,Contract Hire,06/12/2021,3942919-77046,"1,558.40",24X7LTD.
Children and Young Peoples Services,Head of Education and Skills,Transport,230008,Contract Hire,06/12/2021,3942919-77056,"2,183.70",24X7LTD.
Children and Young Peoples Services,Head of Education and Skills,Transport,230006,Contract Hire,06/12/2021,3942925-865,792.00,AC TAXIS.
Children and Young Peoples Services,Head of Education and Skills,Transport,230006,Contract Hire,06/12/2021,3942925-866,"1,160.00",AC TAXIS.
Children and Young Peoples Services,Head of Education and Skills,Transport,230007,Contract Hire,06/12/2021,3942925-867,"1,496.00",AC TAXIS.
Children and Young Peoples Services,Head of Education and Skills,Transport,230008,Contract Hire,06/12/2021,3942945-871,"3,190.00",AT TAXIS LTD.
Children and Young Peoples Services,Head of Education and Skills,Transport,230007,Contract Hire,06/12/2021,3942945-875,"2,048.80",AT TAXIS LTD.
Children and Young Peoples Services,Head of Education and Skills,Transport,230034,Contract Hire,06/12/2021,3942945-872,"1,518.00",AT TAXIS LTD.
Children and Young Peoples Services,Head of Education and Skills,Transport,230008,Contract Hire,06/12/2021,3942945-873,"2,090.00",AT TAXIS LTD.
Children and Young Peoples Services,Head of Education and Skills,Transport,230007,Contract Hire,06/12/2021,3942945-874,"2,090.00",AT TAXIS LTD.
Dedicated Schools Grant BG0015,DSG Schools Block,Transport,230031,Contract Hire,06/12/2021,3942954-INV-490,"4,056.00",BILL SCOTT TAXIS LTD.
Children and Young Peoples Services,Head of Education and Skills,Transport,230006,Contract Hire,06/12/2021,3942958-1-NOV21,"1,260.00",BL TAXIS.
Children and Young Peoples Services,Head of Education and Skills,Transport,230008,Contract Hire,06/12/2021,3942962-BZ00383,"1,254.00",BREZ`S TAXIS.
Children and Young Peoples Services,Head of Education and Skills,Transport,230008,Contract Hire,06/12/2021,3942962-BZ00384,"1,914.44",BREZ`S TAXIS.
Children and Young Peoples Services,Head of Education and Skills,Transport,230008,Contract Hire,06/12/2021,3942967-W046025,"2,485.56",C & R TAXIS.
Children and Young Peoples Services,Head of Education and Skills,Transport,230008,Contract Hire,06/12/2021,3942985-E032-CE1121,"2,728.00",CJ`S EXECUTIVE TRAVEL LTD.
Children and Young Peoples Services,Head of Education and Skills,Transport,230008,Contract Hire,06/12/2021,3942985-A072-SP1121,"2,344.10",CJ`S EXECUTIVE TRAVEL LTD.
Children and Young Peoples Services,Head of Education and Skills,Transport,230008,Contract Hire,06/12/2021,3942985-E031-KC1121,"3,914.84",CJ`S EXECUTIVE TRAVEL LTD.
Children and Young Peoples Services,Head of Education and Skills,Transport,230008,Contract Hire,06/12/2021,3942985-M011-AA1121,"2,611.88",CJ`S EXECUTIVE TRAVEL LTD.
Children and Young Peoples Services,Head of Education and Skills,Transport,230006,Contract Hire,06/12/2021,3942999-111738,"5,088.72",CROFT BUSINESS SERVICES LTD T/A CROFT TRAVEL.
Children and Young Peoples Services,Head of Education and Skills,Transport,230008,Contract Hire,06/12/2021,3942999-111739,"3,705.68",CROFT BUSINESS SERVICES LTD T/A CROFT TRAVEL.
Children and Young Peoples Services,Head of Education and Skills,Transport,230008,Contract Hire,06/12/2021,3943004-1753,"1,760.00",DA TAXIS.
Children and Young Peoples Services,Head of Education and Skills,Transport,230008,Contract Hire,06/12/2021,3943004-1754,"2,350.92",DA TAXIS.
Children and Young Peoples Services,Head of Education and Skills,Transport,230008,Contract Hire,06/12/2021,3943004-1755,"2,420.00",DA TAXIS.
Children and Young Peoples Services,Head of Education and Skills,Transport,230006,Contract Hire,06/12/2021,3943005-508,"1,050.00",DA TRAVEL.
Children and Young Peoples Services,Head of Education and Skills,Transport,230006,Contract Hire,06/12/2021,3943005-509,"1,645.00",DA TRAVEL.
Children and Young Peoples Services,Head of Education and Skills,Transport,230008,Contract Hire,06/12/2021,3943005-506,"2,691.78",DA TRAVEL.
Children and Young Peoples Services,Head of Education and Skills,Transport,230008,Contract Hire,06/12/2021,3943005-507,"1,785.00",DA TRAVEL.
Children and Young Peoples Services,Head of Education and Skills,Transport,230006,Contract Hire,06/12/2021,3943008-BACNOV2101,"1,510.00",DALELINK PRIVATE HIRE.
Children and Young Peoples Services,Head of Education and Skills,Transport,230006,Contract Hire,06/12/2021,3943008-NCDNOV2101,"1,900.00",DALELINK PRIVATE HIRE.
Adult and Health Services,Head of Adults,Transport,230005,Contract Hire,06/12/2021,3943025-1202,"1,396.00",EAST DURHAM TAXIS.
Children and Young Peoples Services,Head of Education and Skills,Transport,230008,Contract Hire,06/12/2021,3943025-1197,"3,696.00",EAST DURHAM TAXIS.
Children and Young Peoples Services,Head of Education and Skills,Transport,230008,Contract Hire,06/12/2021,3943025-1206,"2,268.00",EAST DURHAM TAXIS.
Children and Young Peoples Services,Head of Education and Skills,Transport,230006,Contract Hire,06/12/2021,3943025-1199,"1,144.00",EAST DURHAM TAXIS.
Children and Young Peoples Services,Head of Education and Skills,Transport,230008,Contract Hire,06/12/2021,3943025-1194,"3,318.00",EAST DURHAM TAXIS.
Children and Young Peoples Services,Head of Education and Skills,Transport,230006,Contract Hire,06/12/2021,3943026-ET-0002,"1,572.06",ECO TRAVEL.
Children and Young Peoples Services,Head of Education and Skills,Transport,230008,Contract Hire,06/12/2021,3943033-ES3,"2,678.66",ELITE TAXIS.
Adult and Health Services,Head of Adults,Transport,230005,Contract Hire,06/12/2021,3943050-102644,"1,887.00",G & P JOHNSON LTD T/A NIGHTINGALE COACHES.
Children and Young Peoples Services,Head of Education and Skills,Transport,230008,Contract Hire,06/12/2021,3943050-102639,"4,180.00",G & P JOHNSON LTD T/A NIGHTINGALE COACHES.
Children and Young Peoples Services,Head of Education and Skills,Transport,230003,Contract Hire,06/12/2021,3943054-5794,"4,413.20",GEM TRAVEL.
Children and Young Peoples Services,Head of Education and Skills,Transport,230007,Contract Hire,06/12/2021,3943054-5793,"1,742.58",GEM TRAVEL.
Children and Young Peoples Services,Head of Education and Skills,Transport,230008,Contract Hire,06/12/2021,3943058-83,"2,583.00",GP TAXIS.
Children and Young Peoples Services,Head of Education and Skills,Transport,230008,Contract Hire,06/12/2021,3943073-768,"2,400.00",HEPWORTHS TRAVEL.
Children and Young Peoples Services,Head of Education and Skills,Transport,230008,Contract Hire,06/12/2021,3943073-769,"2,794.00",HEPWORTHS TRAVEL.
Children and Young Peoples Services,Head of Education and Skills,Transport,230007,Contract Hire,06/12/2021,3943073-767,"2,400.00",HEPWORTHS TRAVEL.
Children and Young Peoples Services,Head of Education and Skills,Transport,230007,Contract Hire,06/12/2021,3943085-32569,"4,070.00",JIM HUGHES COACHES LTD.
Children and Young Peoples Services,Head of Education and Skills,Transport,230003,Contract Hire,06/12/2021,3943085-32570,"4,928.00",JIM HUGHES COACHES LTD.
Children and Young Peoples Services,Head of Education and Skills,Transport,230008,Contract Hire,06/12/2021,3943087-30/11/21A-W047,"3,080.00",JL EBDON. T/A DIAL-A-CAB.
Children and Young Peoples Services,Head of Education and Skills,Transport,230008,Contract Hire,06/12/2021,3943087-30/11/21C,"3,080.00",JL EBDON. T/A DIAL-A-CAB.
Children and Young Peoples Services,Head of Education and Skills,Transport,230008,Contract Hire,06/12/2021,3943087-30/11/21G,"3,036.00",JL EBDON. T/A DIAL-A-CAB.
Children and Young Peoples Services,Head of Education and Skills,Transport,230016,Contract Hire,06/12/2021,3943087-30/11/21A,700.00,JL EBDON. T/A DIAL-A-CAB.
Children and Young Peoples Services,Head of Education and Skills,Transport,230008,Contract Hire,06/12/2021,3943087-22/10/21H,"2,960.58",JL EBDON. T/A DIAL-A-CAB.
Children and Young Peoples Services,Head of Education and Skills,Transport,230012,Contract Hire,06/12/2021,3943098-1219,"3,696.00",K & R TAXIS (STANLEY).
Children and Young Peoples Services,Head of Education and Skills,Transport,230012,Contract Hire,06/12/2021,3943098-1223,"3,828.00",K & R TAXIS (STANLEY).
Children and Young Peoples Services,Head of Education and Skills,Transport,230008,Contract Hire,06/12/2021,3943098-1222,"4,824.60",K & R TAXIS (STANLEY).
Children and Young Peoples Services,Head of Education and Skills,Transport,230008,Contract Hire,06/12/2021,3943098-1218,"3,718.00",K & R TAXIS (STANLEY).
Children and Young Peoples Services,Head of Education and Skills,Transport,230006,Contract Hire,06/12/2021,3943098-1215,530.10,K & R TAXIS (STANLEY).
Children and Young Peoples Services,Head of Education and Skills,Transport,230008,Contract Hire,06/12/2021,3943098-1216,576.00,K & R TAXIS (STANLEY).
Children and Young Peoples Services,Head of Education and Skills,Transport,230008,Contract Hire,06/12/2021,3943098-1220,"3,024.00",K & R TAXIS (STANLEY).
Children and Young Peoples Services,Head of Education and Skills,Transport,230008,Contract Hire,06/12/2021,3943098-1221,"3,345.30",K & R TAXIS (STANLEY).
Children and Young Peoples Services,Head of Education and Skills,Transport,230034,Contract Hire,06/12/2021,3943099-HEXAC0003-B,944.40,KEV ARKLESS TAXIS.
Children and Young Peoples Services,Head of Education and Skills,Transport,230006,Contract Hire,06/12/2021,3943099-CHES0001-B,960.00,KEV ARKLESS TAXIS.
Children and Young Peoples Services,Head of Education and Skills,Transport,230010,Contract Hire,06/12/2021,3943099-BRIDGE0001,"1,420.00",KEV ARKLESS TAXIS.
Children and Young Peoples Services,Head of Education and Skills,Transport,230008,Contract Hire,06/12/2021,3943104-W003-NOV21,"1,806.15",KINGSWAY CABS LTD.
Children and Young Peoples Services,Head of Education and Skills,Transport,230008,Contract Hire,06/12/2021,3943104-N055-NOV21,875.00,KINGSWAY CABS LTD.
Children and Young Peoples Services,Head of Education and Skills,Transport,230006,Contract Hire,06/12/2021,3943104-F132-NOV21,"1,332.09",KINGSWAY CABS LTD.
Children and Young Peoples Services,Head of Education and Skills,Transport,230006,Contract Hire,06/12/2021,3943104-F534-NOV21,801.00,KINGSWAY CABS LTD.
Children and Young Peoples Services,Head of Education and Skills,Transport,230008,Contract Hire,06/12/2021,3943104-N078-NOV21,"1,650.00",KINGSWAY CABS LTD.
Children and Young Peoples Services,Head of Education and Skills,Transport,230007,Contract Hire,06/12/2021,3943111-30245,"2,530.00",LEE`S COACHES LTD.
Children and Young Peoples Services,Head of Education and Skills,Transport,230007,Contract Hire,06/12/2021,3943111-30246,"2,530.00",LEE`S COACHES LTD.
Children and Young Peoples Services,Head of Education and Skills,Transport,230007,Contract Hire,06/12/2021,3943111-30247,"3,000.00",LEE`S COACHES LTD.
Children and Young Peoples Services,Head of Education and Skills,Transport,230003,Contract Hire,06/12/2021,3943111-30242,"4,818.00",LEE`S COACHES LTD.
Children and Young Peoples Services,Head of Education and Skills,Transport,230007,Contract Hire,06/12/2021,3943111-30243,"1,990.00",LEE`S COACHES LTD.
Children and Young Peoples Services,Head of Education and Skills,Transport,230007,Contract Hire,06/12/2021,3943111-30244,"3,780.00",LEE`S COACHES LTD.
Children and Young Peoples Services,Head of Education and Skills,Transport,230003,Contract Hire,06/12/2021,3943111-30239,"4,302.54",LEE`S COACHES LTD.
Children and Young Peoples Services,Head of Education and Skills,Transport,230003,Contract Hire,06/12/2021,3943111-30240,"5,269.00",LEE`S COACHES LTD.
Children and Young Peoples Services,Head of Education and Skills,Transport,230003,Contract Hire,06/12/2021,3943111-30241,"5,049.00",LEE`S COACHES LTD.
Children and Young Peoples Services,Head of Education and Skills,Transport,230006,Contract Hire,06/12/2021,3943122-57,"1,190.00",M&C`S CABS LTD.
Children and Young Peoples Services,Head of Education and Skills,Transport,230007,Contract Hire,06/12/2021,3943126-INV11/2021-01,"1,200.00",MARK & JOHN CHISHOLM T/A (CHEVRON).
Children and Young Peoples Services,Head of Education and Skills,Transport,230008,Contract Hire,06/12/2021,3943126-INV11/2021-17,"3,096.00",MARK & JOHN CHISHOLM T/A (CHEVRON).
Children and Young Peoples Services,Head of Education and Skills,Transport,230008,Contract Hire,06/12/2021,3943126-INV11/2021-18,"4,024.80",MARK & JOHN CHISHOLM T/A (CHEVRON).
Children and Young Peoples Services,Head of Education and Skills,Transport,230008,Contract Hire,06/12/2021,3943126-INV11/2021-19,"2,631.40",MARK & JOHN CHISHOLM T/A (CHEVRON).
Children and Young Peoples Services,Head of Education and Skills,Transport,230008,Contract Hire,06/12/2021,3943126-INV11/2021-15,"1,716.00",MARK & JOHN CHISHOLM T/A (CHEVRON).
Children and Young Peoples Services,Head of Education and Skills,Transport,230008,Contract Hire,06/12/2021,3943126-INV11/2021-16,"2,992.00",MARK & JOHN CHISHOLM T/A (CHEVRON).
Children and Young Peoples Services,Head of Education and Skills,Transport,230009,Contract Hire,06/12/2021,3943126-INV11/2021-22,"1,923.00",MARK & JOHN CHISHOLM T/A (CHEVRON).
Children and Young Peoples Services,Head of Education and Skills,Transport,230008,Contract Hire,06/12/2021,3943126-INV11/2021-23,"2,874.96",MARK & JOHN CHISHOLM T/A (CHEVRON).
Children and Young Peoples Services,Head of Education and Skills,Transport,230008,Contract Hire,06/12/2021,3943126-INV11/2021-24,"2,628.12",MARK & JOHN CHISHOLM T/A (CHEVRON).
Children and Young Peoples Services,Head of Education and Skills,Transport,230008,Contract Hire,06/12/2021,3943126-INV11/2021-21,"2,923.62",MARK & JOHN CHISHOLM T/A (CHEVRON).
Children and Young Peoples Services,Head of Education and Skills,Transport,230008,Contract Hire,06/12/2021,3943126-INV11/2021-26,"5,610.78",MARK & JOHN CHISHOLM T/A (CHEVRON).
Children and Young Peoples Services,Head of Education and Skills,Transport,230007,Contract Hire,06/12/2021,3943135-401,770.57,MICKS TAXIS - MURTON.
Children and Young Peoples Services,Head of Education and Skills,Transport,230007,Contract Hire,06/12/2021,3943135-402,"1,123.54",MICKS TAXIS - MURTON.
Children and Young Peoples Services,Head of Education and Skills,Transport,230007,Contract Hire,06/12/2021,3943135-405,704.00,MICKS TAXIS - MURTON.
Children and Young Peoples Services,Head of Education and Skills,Transport,230006,Contract Hire,06/12/2021,3943135-403,"1,188.00",MICKS TAXIS - MURTON.
Children and Young Peoples Services,Head of Education and Skills,Transport,230006,Contract Hire,06/12/2021,3943177-NOVEMBER2021/F806,"1,320.00",ND TAXIS.
Children and Young Peoples Services,Head of Education and Skills,Transport,230008,Contract Hire,06/12/2021,3943197-DCC375,"2,294.82",PAUL`S TAXIS..
Children and Young Peoples Services,Head of Education and Skills,Transport,230008,Contract Hire,06/12/2021,3943197-DCC376,"3,284.46",PAUL`S TAXIS..
Children and Young Peoples Services,Head of Education and Skills,Transport,230007,Contract Hire,06/12/2021,3943198-1117-3037,"2,420.00",PBS TRAVEL LTD.
Children and Young Peoples Services,Head of Education and Skills,Transport,230007,Contract Hire,06/12/2021,3943198-1117-3065,"2,178.00",PBS TRAVEL LTD.
Children and Young Peoples Services,Head of Education and Skills,Transport,230007,Contract Hire,06/12/2021,3943198-1117-3058,"2,640.00",PBS TRAVEL LTD.
Adult and Health Services,Head of Adults,Transport,230005,Contract Hire,06/12/2021,3943205-44576,792.00,PHOENIX TAXIS T/A PRATT`S TAXIS.
Adult and Health Services,Head of Adults,Transport,230005,Contract Hire,06/12/2021,3943205-44577,558.00,PHOENIX TAXIS T/A PRATT`S TAXIS.
Children and Young Peoples Services,Head of Education and Skills,Transport,230007,Contract Hire,06/12/2021,3943205-44569,"1,056.00",PHOENIX TAXIS T/A PRATT`S TAXIS.
Children and Young Peoples Services,Head of Education and Skills,Transport,230034,Contract Hire,06/12/2021,3943205-44567,"2,394.00",PHOENIX TAXIS T/A PRATT`S TAXIS.
Children and Young Peoples Services,Head of Education and Skills,Transport,230007,Contract Hire,06/12/2021,3943205-44568,863.52,PHOENIX TAXIS T/A PRATT`S TAXIS.
Children and Young Peoples Services,Head of Education and Skills,Transport,230007,Contract Hire,06/12/2021,3943205-44588,937.02,PHOENIX TAXIS T/A PRATT`S TAXIS.
Children and Young Peoples Services,Head of Education and Skills,Transport,230006,Contract Hire,06/12/2021,3943205-44581,"1,144.00",PHOENIX TAXIS T/A PRATT`S TAXIS.
Children and Young Peoples Services,Head of Education and Skills,Transport,230006,Contract Hire,06/12/2021,3943205-44583,816.00,PHOENIX TAXIS T/A PRATT`S TAXIS.
Children and Young Peoples Services,Head of Education and Skills,Transport,230006,Contract Hire,06/12/2021,3943205-44584,"2,010.28",PHOENIX TAXIS T/A PRATT`S TAXIS.
Children and Young Peoples Services,Head of Education and Skills,Transport,230034,Contract Hire,06/12/2021,3943205-44570,"1,056.00",PHOENIX TAXIS T/A PRATT`S TAXIS.
Children and Young Peoples Services,Head of Education and Skills,Transport,230008,Contract Hire,06/12/2021,3943205-44589,"2,604.00",PHOENIX TAXIS T/A PRATT`S TAXIS.
Children and Young Peoples Services,Head of Education and Skills,Transport,230008,Contract Hire,06/12/2021,3943205-44590,"2,204.58",PHOENIX TAXIS T/A PRATT`S TAXIS.
Children and Young Peoples Services,Head of Education and Skills,Transport,230006,Contract Hire,06/12/2021,3942923-638,"1,723.89",REDACTED - PAYMENT TO INDIVIDUAL
Adult and Health Services,Head of Adults,Transport,230005,Contract Hire,06/12/2021,3942941-00251,"1,760.00",REDACTED - PAYMENT TO INDIVIDUAL
Adult and Health Services,Head of Adults,Transport,230005,Contract Hire,06/12/2021,3942941-00249,"1,299.10",REDACTED - PAYMENT TO INDIVIDUAL
Adult and Health Services,Head of Adults,Transport,230005,Contract Hire,06/12/2021,3942941-00255,"3,300.00",REDACTED - PAYMENT TO INDIVIDUAL
Children and Young Peoples Services,Head of Education and Skills,Transport,230012,Contract Hire,06/12/2021,3942941-00260,"2,656.00",REDACTED - PAYMENT TO INDIVIDUAL
Children and Young Peoples Services,Head of Education and Skills,Transport,230006,Contract Hire,06/12/2021,3942941-00254,980.00,REDACTED - PAYMENT TO INDIVIDUAL
Children and Young Peoples Services,Head of Education and Skills,Transport,230006,Contract Hire,06/12/2021,3942941-00261,"1,564.32",REDACTED - PAYMENT TO INDIVIDUAL
Children and Young Peoples Services,Head of Education and Skills,Transport,230008,Contract Hire,06/12/2021,3942941-00252,"3,960.00",REDACTED - PAYMENT TO INDIVIDUAL
Children and Young Peoples Services,Head of Education and Skills,Transport,230016,Contract Hire,06/12/2021,3942941-00258,"3,520.00",REDACTED - PAYMENT TO INDIVIDUAL
Children and Young Peoples Services,Head of Education and Skills,Transport,230008,Contract Hire,06/12/2021,3942941-00253,"2,480.00",REDACTED - PAYMENT TO INDIVIDUAL
Children and Young Peoples Services,Head of Education and Skills,Transport,230007,Contract Hire,06/12/2021,3942981-47349,"3,278.00",REDACTED - PAYMENT TO INDIVIDUAL
Children and Young Peoples Services,Head of Education and Skills,Transport,230003,Contract Hire,06/12/2021,3942981-47346,"6,279.00",REDACTED - PAYMENT TO INDIVIDUAL
Children and Young Peoples Services,Head of Education and Skills,Transport,230003,Contract Hire,06/12/2021,3942981-47348,"3,360.00",REDACTED - PAYMENT TO INDIVIDUAL
Children and Young Peoples Services,Head of Education and Skills,Transport,230007,Contract Hire,06/12/2021,3942981-47350,"5,500.00",REDACTED - PAYMENT TO INDIVIDUAL
Children and Young Peoples Services,Head of Education and Skills,Transport,230003,Contract Hire,06/12/2021,3942981-47351,"3,520.00",REDACTED - PAYMENT TO INDIVIDUAL
Children and Young Peoples Services,Head of Education and Skills,Transport,230003,Contract Hire,06/12/2021,3942981-47352,"3,410.00",REDACTED - PAYMENT TO INDIVIDUAL
Children and Young Peoples Services,Head of Education and Skills,Transport,230003,Contract Hire,06/12/2021,3942981-47353,"3,630.00",REDACTED - PAYMENT TO INDIVIDUAL
Children and Young Peoples Services,Head of Education and Skills,Transport,230006,Contract Hire,06/12/2021,3943080-3-NOV21-F877,"1,062.78",REDACTED - PAYMENT TO INDIVIDUAL
Children and Young Peoples Services,Head of Education and Skills,Transport,230010,Contract Hire,06/12/2021,3943091-0003-BL004,"1,844.00",REDACTED - PAYMENT TO INDIVIDUAL
Children and Young Peoples Services,Head of Education and Skills,Transport,230008,Contract Hire,06/12/2021,3943091-0034,"2,901.36",REDACTED - PAYMENT TO INDIVIDUAL
Children and Young Peoples Services,Head of Education and Skills,Transport,230006,Contract Hire,06/12/2021,3943091-0003-M034,773.00,REDACTED - PAYMENT TO INDIVIDUAL
Children and Young Peoples Services,Head of Education and Skills,Transport,230035,Contract Hire,06/12/2021,3943091-0003-2067,"1,472.00",REDACTED - PAYMENT TO INDIVIDUAL
Children and Young Peoples Services,Head of Education and Skills,Transport,230007,Contract Hire,06/12/2021,3943100-CTD0003/21,"1,650.00",REDACTED - PAYMENT TO INDIVIDUAL
Children and Young Peoples Services,Head of Education and Skills,Transport,230007,Contract Hire,06/12/2021,3943127-301121,660.00,REDACTED - PAYMENT TO INDIVIDUAL
Children and Young Peoples Services,Head of Education and Skills,Transport,230007,Contract Hire,06/12/2021,3943127-301121-NOV21,"1,095.82",REDACTED - PAYMENT TO INDIVIDUAL
Children and Young Peoples Services,Head of Education and Skills,Transport,230008,Contract Hire,06/12/2021,3943128-03-NOV21,"2,013.00",REDACTED - PAYMENT TO INDIVIDUAL
Children and Young Peoples Services,Head of Education and Skills,Transport,230006,Contract Hire,06/12/2021,3943194-SC-105-NOV21,"1,870.00",REDACTED - PAYMENT TO INDIVIDUAL
Children and Young Peoples Services,Head of Education and Skills,Transport,230007,Contract Hire,06/12/2021,3943194-SC-106-NOV21,"1,760.00",REDACTED - PAYMENT TO INDIVIDUAL
Children and Young Peoples Services,Head of Education and Skills,Transport,230007,Contract Hire,06/12/2021,3943200-82,"1,618.40",REDACTED - PAYMENT TO INDIVIDUAL
Children and Young Peoples Services,Head of Education and Skills,Transport,230007,Contract Hire,06/12/2021,3943200-85,836.00,REDACTED - PAYMENT TO INDIVIDUAL
Children and Young Peoples Services,Head of Education and Skills,Transport,230007,Contract Hire,06/12/2021,3943200-84,"1,280.00",REDACTED - PAYMENT TO INDIVIDUAL
Children and Young Peoples Services,Head of Education and Skills,Transport,230034,Contract Hire,06/12/2021,3943200-83,"2,018.72",REDACTED - PAYMENT TO INDIVIDUAL
Children and Young Peoples Services,Head of Education and Skills,Transport,230008,Contract Hire,06/12/2021,3943200-86,"2,205.00",REDACTED - PAYMENT TO INDIVIDUAL
Children and Young Peoples Services,Head of Education and Skills,Transport,230007,Contract Hire,06/12/2021,3943263-4365-4006,"1,980.00",REDACTED - PAYMENT TO INDIVIDUAL
Children and Young Peoples Services,Head of Education and Skills,Transport,230007,Contract Hire,06/12/2021,3943263-4365-4371,"2,145.00",REDACTED - PAYMENT TO INDIVIDUAL
Children and Young Peoples Services,Head of Education and Skills,Transport,230008,Contract Hire,06/12/2021,3943279-0002291,"5,610.00",REDACTED - PAYMENT TO INDIVIDUAL
Children and Young Peoples Services,Head of Education and Skills,Transport,230008,Contract Hire,06/12/2021,3943296-NOV21-W011,"1,747.50",REDACTED - PAYMENT TO INDIVIDUAL
Children and Young Peoples Services,Head of Education and Skills,Transport,230012,Contract Hire,06/12/2021,3943161-TNB-22,794.00,REDACTED - PAYMENT TO INDIVIDUAL
Children and Young Peoples Services,Head of Education and Skills,Transport,230034,Contract Hire,06/12/2021,3943146-245,"1,760.00",REDACTED - PAYMENT TO INDIVIDUAL
Children and Young Peoples Services,Head of Education and Skills,Transport,230008,Contract Hire,06/12/2021,3943158-3197,"1,946.56",REDACTED - PAYMENT TO INDIVIDUAL
Children and Young Peoples Services,Head of Education and Skills,Transport,230034,Contract Hire,06/12/2021,3943150-KDK/NOV21,"1,529.22",REDACTED - PAYMENT TO INDIVIDUAL
Children and Young Peoples Services,Head of Education and Skills,Transport,230009,Contract Hire,06/12/2021,3943147-FRAM1-11-21,"1,646.40",REDACTED - PAYMENT TO INDIVIDUAL
Children and Young Peoples Services,Head of Education and Skills,Transport,230008,Contract Hire,06/12/2021,3943147-CROFT1-11-21,"2,263.36",REDACTED - PAYMENT TO INDIVIDUAL
Children and Young Peoples Services,Head of Education and Skills,Transport,230004,Contract Hire,06/12/2021,3943159-11-21-F894,"2,880.00",REDACTED - PAYMENT TO INDIVIDUAL
Children and Young Peoples Services,Head of Education and Skills,Transport,230006,Contract Hire,06/12/2021,3943149-PEC03,998.40,REDACTED - PAYMENT TO INDIVIDUAL
Children and Young Peoples Services,Head of Education and Skills,Transport,230006,Contract Hire,06/12/2021,3943161-CBC-03,893.45,REDACTED - PAYMENT TO INDIVIDUAL
Children and Young Peoples Services,Head of Education and Skills,Transport,230010,Contract Hire,06/12/2021,3943160-3-21/22-B011,"3,784.20",REDACTED - PAYMENT TO INDIVIDUAL
Children and Young Peoples Services,Head of Education and Skills,Transport,230006,Contract Hire,06/12/2021,3943157-A172/11/21,"1,444.52",REDACTED - PAYMENT TO INDIVIDUAL
Children and Young Peoples Services,Head of Education and Skills,Transport,230008,Contract Hire,06/12/2021,3943158-3199,"1,496.00",REDACTED - PAYMENT TO INDIVIDUAL
Children and Young Peoples Services,Head of Education and Skills,Transport,230008,Contract Hire,06/12/2021,3943144-0003-NOV21,"2,070.00",REDACTED - PAYMENT TO INDIVIDUAL
Children and Young Peoples Services,Head of Education and Skills,Transport,230008,Contract Hire,06/12/2021,3943144-0003-NOV21A,703.50,REDACTED - PAYMENT TO INDIVIDUAL
Children and Young Peoples Services,Head of Education and Skills,Transport,230008,Contract Hire,06/12/2021,3943147-OAK1-11-21,"2,173.60",REDACTED - PAYMENT TO INDIVIDUAL
Children and Young Peoples Services,Head of Education and Skills,Transport,230008,Contract Hire,06/12/2021,3943147-OAK2-11-21,"2,569.60",REDACTED - PAYMENT TO INDIVIDUAL
Children and Young Peoples Services,Head of Education and Skills,Transport,230008,Contract Hire,06/12/2021,3943147-THPK-11-21,"2,281.81",REDACTED - PAYMENT TO INDIVIDUAL
Children and Young Peoples Services,Head of Education and Skills,Transport,230008,Contract Hire,06/12/2021,3943158-3198,"2,625.00",REDACTED - PAYMENT TO INDIVIDUAL
Children and Young Peoples Services,Head of Education and Skills,Transport,230007,Contract Hire,06/12/2021,3943160-3-21/22,700.00,REDACTED - PAYMENT TO INDIVIDUAL
Children and Young Peoples Services,Head of Education and Skills,Transport,230007,Contract Hire,06/12/2021,3943219-1581,"4,042.50",ROBERTS TOURS.
Children and Young Peoples Services,Head of Education and Skills,Transport,230007,Contract Hire,06/12/2021,3943219-1582,"4,147.50",ROBERTS TOURS.
Children and Young Peoples Services,Head of Education and Skills,Transport,230007,Contract Hire,06/12/2021,3943219-1583,"6,279.00",ROBERTS TOURS.
Children and Young Peoples Services,Head of Education and Skills,Transport,230003,Contract Hire,06/12/2021,3943222-ROXDCC253,"6,160.00",ROXBYS BUS HIRE.
Children and Young Peoples Services,Head of Education and Skills,Transport,230003,Contract Hire,06/12/2021,3943222-ROXDCC254,"3,080.00",ROXBYS BUS HIRE.
Children and Young Peoples Services,Head of Education and Skills,Transport,230003,Contract Hire,06/12/2021,3943222-ROXDCC255,"5,280.00",ROXBYS BUS HIRE.
Adult and Health Services,Head of Adults,Transport,230005,Contract Hire,06/12/2021,3943224-SED112/32,"1,882.21",S & S TRAVEL LTD.
Children and Young Peoples Services,Head of Education and Skills,Transport,230016,Contract Hire,06/12/2021,3943224-S101/27,605.00,S & S TRAVEL LTD.
Children and Young Peoples Services,Head of Education and Skills,Transport,230008,Contract Hire,06/12/2021,3943224-S017/55,"3,162.64",S & S TRAVEL LTD.
Children and Young Peoples Services,Head of Education and Skills,Transport,230008,Contract Hire,06/12/2021,3943224-S027/27,"2,393.60",S & S TRAVEL LTD.
Children and Young Peoples Services,Head of Education and Skills,Transport,230008,Contract Hire,06/12/2021,3943224-W056/27-NOV,"2,420.00",S & S TRAVEL LTD.
Children and Young Peoples Services,Head of Education and Skills,Transport,230008,Contract Hire,06/12/2021,3943224-W067/28,"3,405.60",S & S TRAVEL LTD.
Children and Young Peoples Services,Head of Education and Skills,Transport,230008,Contract Hire,06/12/2021,3943224-W076/27,"2,758.80",S & S TRAVEL LTD.
Children and Young Peoples Services,Head of Education and Skills,Transport,230008,Contract Hire,06/12/2021,3943224-S009/27,"3,049.20",S & S TRAVEL LTD.
Children and Young Peoples Services,Head of Education and Skills,Transport,230008,Contract Hire,06/12/2021,3943224-W036/04,"3,665.20",S & S TRAVEL LTD.
Children and Young Peoples Services,Head of Education and Skills,Transport,230008,Contract Hire,06/12/2021,3943224-W178/08,"1,798.00",S & S TRAVEL LTD.
Children and Young Peoples Services,Head of Education and Skills,Transport,230008,Contract Hire,06/12/2021,3943224-W014/2021,"3,475.50",S & S TRAVEL LTD.
Dedicated Schools Grant BG0015,DSG Schools Block,Transport,230031,Contract Hire,06/12/2021,3943248-06615,"1,000.00",STANLEY TRAVEL (NORTH EAST) LTD.
Children and Young Peoples Services,Head of Education and Skills,Transport,230003,Contract Hire,06/12/2021,3943247-58119,"3,300.00",STANLEY TRAVEL (NORTH EAST) LTD.
Children and Young Peoples Services,Head of Education and Skills,Transport,230003,Contract Hire,06/12/2021,3943247-58121,"3,938.00",STANLEY TRAVEL (NORTH EAST) LTD.
Children and Young Peoples Services,Head of Education and Skills,Transport,230003,Contract Hire,06/12/2021,3943247-58122,"4,158.00",STANLEY TRAVEL (NORTH EAST) LTD.
Children and Young Peoples Services,Head of Education and Skills,Transport,230003,Contract Hire,06/12/2021,3943247-58123,"3,696.00",STANLEY TRAVEL (NORTH EAST) LTD.
Children and Young Peoples Services,Head of Education and Skills,Transport,230003,Contract Hire,06/12/2021,3943247-58126,"3,696.00",STANLEY TRAVEL (NORTH EAST) LTD.
Children and Young Peoples Services,Head of Education and Skills,Transport,230003,Contract Hire,06/12/2021,3943248-55934,"4,300.00",STANLEY TRAVEL (NORTH EAST) LTD.
Children and Young Peoples Services,Head of Education and Skills,Transport,230003,Contract Hire,06/12/2021,3943248-55935,"3,655.00",STANLEY TRAVEL (NORTH EAST) LTD.
Children and Young Peoples Services,Head of Education and Skills,Transport,230003,Contract Hire,06/12/2021,3943247-58127,"6,258.00",STANLEY TRAVEL (NORTH EAST) LTD.
Children and Young Peoples Services,Head of Education and Skills,Transport,230010,Contract Hire,06/12/2021,3943284-WL20025,"1,679.56",TRAVEL 6.
Children and Young Peoples Services,Head of Education and Skills,Transport,230034,Contract Hire,06/12/2021,3943284-SH00002,"1,710.60",TRAVEL 6.
Children and Young Peoples Services,Head of Education and Skills,Transport,230008,Contract Hire,06/12/2021,3943301-1539544,"1,760.00",WENDYS` TAXIS.
Children and Young Peoples Services,Head of Education and Skills,Transport,230010,Contract Hire,06/12/2021,3943302-1121,"2,385.00",WEST AUCKLAND TOWN TRAVEL (WATT).
Children and Young Peoples Services,Head of Education and Skills,Transport,230006,Contract Hire,06/12/2021,3943304-WESTLEA301121,"1,870.00",WESTLEA TAXIS.
Adult and Health Services,Public Health CC0450,Third Party Payments,460803,Contract Payments,06/12/2021,3943070-DCCVC021,"4,321.42",HARBOUR SUPPORT SERVICES.
"Regeneration, Economy and Growth",Business Durham CL0850,Third Party Payments,460305,Contract Payments,06/12/2021,3943290-RED-12-2021-047,"9,586.47",UMI COMMERCIAL LTD.
"Regeneration, Economy and Growth",Development and Housing,Cap Exp on Grants & Other Financial Assistance (REFCUS),918004,Contributions to other bodies 918004,06/12/2021,3943051-RED-12-2021-030,"2,763.00",GAIL ERRINGTON.
Neighbourhoods and Climate Change,Technical Services CM0300,Supplies and Services,304221,Equipment and Materials,06/12/2021,3942931-32357578,886.34,AGGREGATE INDUSTRIES UK LTD.
"Regeneration, Economy and Growth",Corporate Property and Land,Supplies and Services,304221,Equipment and Materials,06/12/2021,3943028-059-290289,545.00,EDMUNDSON ELECTRICAL LTD.
"Regeneration, Economy and Growth",Corporate Property and Land,Supplies and Services,304221,Equipment and Materials,06/12/2021,3943057-207016,"8,102.00",GLOBAL LIFT EQUIPMENT LTD.
"Regeneration, Economy and Growth",Corporate Property and Land,Supplies and Services,304221,Equipment and Materials,06/12/2021,3943094-0113/00527936,"1,654.00",JT DOVE LTD.
"Regeneration, Economy and Growth",Transport and Contracted Services,Supplies and Services,304245,Equipment and Materials,06/12/2021,3943286-3IN/10382816,552.50,TUNSTALL HEALTHCARE (UK) LTD.
Neighbourhoods and Climate Change,Technical Services CM0300,Supplies and Services,304221,Equipment and Materials,06/12/2021,3943288-228545,"8,526.58",TYNEDALE ROADSTONE LTD.
Neighbourhoods and Climate Change,Technical Services CM0300,Supplies and Services,304221,Equipment and Materials,06/12/2021,3943288-228550,"2,194.17",TYNEDALE ROADSTONE LTD.
Neighbourhoods and Climate Change,Technical Services CM0300,Supplies and Services,304221,Equipment and Materials,06/12/2021,3943288-228551,626.79,TYNEDALE ROADSTONE LTD.
"Regeneration, Economy and Growth",Culture Sport and Tourism,Supplies and Services,304259,Equipment and Materials,06/12/2021,3943289-US3198,"1,600.00",ULTIMATE SUPPLIES (NORTH) LTD.
Neighbourhoods and Climate Change,Technical Services CM0300,Supplies and Services,304221,Equipment and Materials,06/12/2021,3943297-26381,524.00,WARD TIMBER LTD.
Neighbourhoods and Climate Change,Environmental Services,Supplies and Services,304221,Equipment and Materials,06/12/2021,3943312-0000036345,"12,930.93",WYBONE LTD.
Neighbourhoods and Climate Change,Environmental Services,Cap Exp on Grants & Other Financial Assistance (REFCUS),918501,Exp assets not owned by authority,06/12/2021,3943129-1285,"6,000.00",MARSDEN AES LTD.
Neighbourhoods and Climate Change,Environmental Services,Cap Exp on Grants & Other Financial Assistance (REFCUS),918501,Exp assets not owned by authority,06/12/2021,3943129-1291,"2,505.50",MARSDEN AES LTD.
Neighbourhoods and Climate Change,Environmental Services,Cap Exp on Grants & Other Financial Assistance (REFCUS),918501,Exp assets not owned by authority,06/12/2021,3943129-1293,"47,800.00",MARSDEN AES LTD.
Children and Young Peoples Services,Head of Early Help Inclusion & Vulnerable Children.,Premises,140001,Fixtures and Fittings,06/12/2021,3942944-1221857563,"2,437.32",ASSA ABLOY LTD.*
Children and Young Peoples Services,Head of Early Help Inclusion & Vulnerable Children.,Supplies and Services,308013,Furniture,06/12/2021,3943116-5240563,544.05,LONDON GENERAL SALES LTD.
Children and Young Peoples Services,Head of Early Help Inclusion & Vulnerable Children.,Supplies and Services,308011,Furniture,06/12/2021,3943208-SI/75031,"2,358.00",PINEAPPLE CONTRACTS.
Neighbourhoods and Climate Change,Partnerships & Community Engagement Div.,Supplies and Services,384086,Miscellaneous Expenses,06/12/2021,3942927-VOUCHERMCDS03-21,999.00,ACRE RIGG SOCIAL CLUB.
"Regeneration, Economy and Growth",Culture Sport and Tourism,Supplies and Services,384199,Miscellaneous Expenses,06/12/2021,3942937-7903,"3,849.90",ALROSE PRODUCTIONS LTD.
Children and Young Peoples Services,Head of Education and Skills,Supplies and Services,384199,Miscellaneous Expenses,06/12/2021,3942946-DW0148/1&2,"1,599.52",AYCLIFFE WINDOW FABRICATION LTD.
"Regeneration, Economy and Growth",Culture Sport and Tourism,Supplies and Services,384999,Miscellaneous Expenses,06/12/2021,3942995-SI-4253,"1,666.00",COUNTY DURHAM SPORT.
"Regeneration, Economy and Growth",Culture Sport and Tourism,Supplies and Services,384700,Miscellaneous Expenses,06/12/2021,3943000-NEI-HCL-12-2021-07,"1,050.00",CROOK CHRISTMAS COMMITTEE.
Neighbourhoods and Climate Change,Environmental Services,Supplies and Services,384606,Miscellaneous Expenses,06/12/2021,3943003-RED-12-2021-027,"4,371.74",CUMBRIA ACTION FOR SUSTAINABILITY.
Neighbourhoods and Climate Change,Partnerships & Community Engagement Div.,Supplies and Services,384086,Miscellaneous Expenses,06/12/2021,3943011-VOUCHERWALM02-21,650.00,DELVES LANE COMMUNITY ASSOCIATION CIO.
"Regeneration, Economy and Growth",Culture Sport and Tourism,Supplies and Services,384700,Miscellaneous Expenses,06/12/2021,3943019-NEI-HCL-12-2021-06,"18,985.00",DURHAM MARKETS CO.
"Regeneration, Economy and Growth",Culture Sport and Tourism,Supplies and Services,384302,Miscellaneous Expenses,06/12/2021,3943024-NEI-HCL-12-2021-03,750.00,EAST DURHAM DEMENTIA FRIENDLY CHOIR.
Neighbourhoods and Climate Change,Environmental Services,Supplies and Services,384606,Miscellaneous Expenses,06/12/2021,3943027-RED-12-2021-026,"30,815.34",EDEN RIVERS TRUST.
Neighbourhoods and Climate Change,Partnerships & Community Engagement Div.,Supplies and Services,384086,Miscellaneous Expenses,06/12/2021,3943061-VOUCHERMCLI04-21,800.00,GRANTS HOUSES ALLOTMENT ASSOCIATION.
"Regeneration, Economy and Growth",Culture Sport and Tourism,Supplies and Services,384199,Miscellaneous Expenses,06/12/2021,3943113-1545,"10,000.00",LETS CIRCUS LLP.
"Regeneration, Economy and Growth",Culture Sport and Tourism,Supplies and Services,384302,Miscellaneous Expenses,06/12/2021,3943112-NEI-HCL-12-2021-04,750.00,LET'S MEET UP.
Neighbourhoods and Climate Change,Partnerships & Community Engagement Div.,Supplies and Services,384086,Miscellaneous Expenses,06/12/2021,3943179-VOUCHER21NB-MDUR002,"1,315.00",NEW BRANCEPETH PARENT & TODDLER GROUP.
Neighbourhoods and Climate Change,Partnerships & Community Engagement Div.,Supplies and Services,384086,Miscellaneous Expenses,06/12/2021,3943199-VOUCHER21NB-CHES011,"1,183.00",PELTON FELL COMMUNITY PARTNERSHIP.
Neighbourhoods and Climate Change,Partnerships & Community Engagement Div.,Supplies and Services,384086,Miscellaneous Expenses,06/12/2021,3943202-VOUCHERDUFT01-21,975.00,PETERLEE TOWN COUNCIL.
"Regeneration, Economy and Growth",Culture Sport and Tourism,Supplies and Services,384199,Miscellaneous Expenses,06/12/2021,3943059-0007,960.00,REDACTED - PAYMENT TO INDIVIDUAL
"Regeneration, Economy and Growth",Culture Sport and Tourism,Supplies and Services,384199,Miscellaneous Expenses,06/12/2021,3943089-00027,"10,000.00",REDACTED - PAYMENT TO INDIVIDUAL
"Regeneration, Economy and Growth",Culture Sport and Tourism,Supplies and Services,384302,Miscellaneous Expenses,06/12/2021,3943139-011221,"1,500.00",REDACTED - PAYMENT TO INDIVIDUAL
"Regeneration, Economy and Growth",Culture Sport and Tourism,Supplies and Services,384302,Miscellaneous Expenses,06/12/2021,3943195-4100747956,665.00,REDACTED - PAYMENT TO INDIVIDUAL
"Regeneration, Economy and Growth",Culture Sport and Tourism,Supplies and Services,384199,Miscellaneous Expenses,06/12/2021,3943251-21016,"5,000.00",REDACTED - PAYMENT TO INDIVIDUAL
Neighbourhoods and Climate Change,Partnerships & Community Engagement Div.,Supplies and Services,384086,Miscellaneous Expenses,06/12/2021,3943230-VOUCHERBATK03-21,999.00,SEATON WITH SLINGLEY PARISH COUNCIL.
Neighbourhoods and Climate Change,Partnerships & Community Engagement Div.,Supplies and Services,384086,Miscellaneous Expenses,06/12/2021,3943232-VOUCHERBROD04-21,800.00,SEDGEFIELD COMMUNITY ASSOCIATION.
Neighbourhoods and Climate Change,Partnerships & Community Engagement Div.,Supplies and Services,384086,Miscellaneous Expenses,06/12/2021,3943235-VOUCHERKELB02-21,599.00,SHERBURN FC.
"Regeneration, Economy and Growth",Culture Sport and Tourism,Supplies and Services,384199,Miscellaneous Expenses,06/12/2021,3943249-SC0481,984.00,STEPHEN CHISHOLM T/A SGC EVENTS.
Neighbourhoods and Climate Change,Partnerships & Community Engagement Div.,Supplies and Services,384086,Miscellaneous Expenses,06/12/2021,3943254-VOUCHERROOK04-21,831.00,SUSTRANS.
Neighbourhoods and Climate Change,Environmental Services,Supplies and Services,384606,Miscellaneous Expenses,06/12/2021,3943269-RED-12-2021-028,"1,714.00",THE FARMER NETWORK LTD.
Neighbourhoods and Climate Change,Partnerships & Community Engagement Div.,Supplies and Services,384086,Miscellaneous Expenses,06/12/2021,3943270-VOUCHERELMJ02-21,999.00,THE FRIENDS OF LANGLEY MOOR.
Neighbourhoods and Climate Change,Partnerships & Community Engagement Div.,Supplies and Services,384086,Miscellaneous Expenses,06/12/2021,3943271-VOUCHERCRUR04-21,500.00,THE HESLEDENS RESIDENTS ASSOCIATION.
Resources BK0010,People & Talent Management,Contributions Summary,710810,Other Grants and Contributions,06/12/2021,3943240-RES-12-2021-002,500.00,SPORTING FUTURES TRAINING (UK) LTD.
Children and Young Peoples Services,Head of Education and Skills,Third Party Payments,440999,Other third party payments E440,06/12/2021,3942930-NEI-EXP-12-2021-006,716.39,AGE UK COUNTY DURHAM.
Children and Young Peoples Services,Head of Education and Skills,Third Party Payments,440999,Other third party payments E440,06/12/2021,3942938-NEI-EXP-12-2021-005,941.16,ANDREW MARSHALL RESIDENTIAL PROPERTIES LTD T/A AMRP.
Children and Young Peoples Services,Head of Education and Skills,Third Party Payments,440999,Other third party payments E440,06/12/2021,3942966-KICK5044718INVOICE000401,750.00,BURNS PETCARE LTD T/A WOOFS N SCRUFFS.
Children and Young Peoples Services,Head of Education and Skills,Third Party Payments,440999,Other third party payments E440,06/12/2021,3942976-NEI-EXP-12-2021-004,"1,500.00",CHANGING RELATIONS CIC.
Children and Young Peoples Services,Head of Education and Skills,Third Party Payments,440999,Other third party payments E440,06/12/2021,3943038-NEI-EXP-12-2021-002,750.00,EPICURIUM LTD.
Children and Young Peoples Services,Head of Education and Skills,Third Party Payments,440999,Other third party payments E440,06/12/2021,3943062-NEI-EXP-12-2021-003,750.00,GREENCROFT DOG DAYCARE LTD.
Children and Young Peoples Services,Head of Education and Skills,Third Party Payments,440999,Other third party payments E440,06/12/2021,3943062-NEI-EXP-12-2021-007,716.39,GREENCROFT DOG DAYCARE LTD.
Children and Young Peoples Services,Head of Education and Skills,Third Party Payments,440999,Other third party payments E440,06/12/2021,3943062-NEI-EXP-12-2021-012,716.39,GREENCROFT DOG DAYCARE LTD.
Children and Young Peoples Services,Head of Education and Skills,Third Party Payments,440999,Other third party payments E440,06/12/2021,3943062-NEI-EXP-12-2021-014,"1,010.75",GREENCROFT DOG DAYCARE LTD.
Children and Young Peoples Services,Head of Education and Skills,Third Party Payments,440999,Other third party payments E440,06/12/2021,3943065-0000014255,"3,607.50",GROUNDWORK NORTH EAST.
Children and Young Peoples Services,Head of Education and Skills,Third Party Payments,440999,Other third party payments E440,06/12/2021,3943066-KICK5044718INVOICE000373,750.00,HAAT GROUP LTD.
Children and Young Peoples Services,Head of Childrens Social Care,Third Party Payments,440046,Other third party payments E440,06/12/2021,3943124-00021691,"1,557.51",MAJOR RECRUITMENT LTD.
Children and Young Peoples Services,Head of Childrens Social Care,Third Party Payments,440046,Other third party payments E440,06/12/2021,3943124-00021697,952.70,MAJOR RECRUITMENT LTD.
Dedicated Schools Grant BG0015,DSG High Needs Block,Third Party Payments,440080,Other third party payments E440,06/12/2021,3943226-CAS-12-2021-013,826.00,SALFORD CITY COLLEGE.
Children and Young Peoples Services,Head of Education and Skills,Third Party Payments,440999,Other third party payments E440,06/12/2021,3943243-NEI-EXP-12-2021-013,716.39,ST OSWALD`S SUNSHINE CLUB.
Children and Young Peoples Services,Head of Childrens Social Care,Third Party Payments,440038,Other third party payments E440,06/12/2021,3943267-SI1000002853,"1,812.90",THE CYRENIANS LTD T/A CHANGING LIVES.
Children and Young Peoples Services,Head of Childrens Social Care,Third Party Payments,440038,Other third party payments E440,06/12/2021,3943267-SI1000002854,"1,812.90",THE CYRENIANS LTD T/A CHANGING LIVES.
Children and Young Peoples Services,Head of Childrens Social Care,Third Party Payments,440038,Other third party payments E440,06/12/2021,3943267-SI1000002907,"1,328.66",THE CYRENIANS LTD T/A CHANGING LIVES.
Children and Young Peoples Services,Head of Childrens Social Care,Third Party Payments,440038,Other third party payments E440,06/12/2021,3943267-SI1000002908,"1,873.33",THE CYRENIANS LTD T/A CHANGING LIVES.
Children and Young Peoples Services,Head of Childrens Social Care,Third Party Payments,440038,Other third party payments E440,06/12/2021,3943267-SI1000002909,"1,873.33",THE CYRENIANS LTD T/A CHANGING LIVES.
Children and Young Peoples Services,Head of Childrens Social Care,Third Party Payments,440038,Other third party payments E440,06/12/2021,3943267-SI1000002910,"1,873.33",THE CYRENIANS LTD T/A CHANGING LIVES.
Children and Young Peoples Services,Head of Childrens Social Care,Third Party Payments,440038,Other third party payments E440,06/12/2021,3943267-SI1000002911,"1,873.33",THE CYRENIANS LTD T/A CHANGING LIVES.
Children and Young Peoples Services,Head of Childrens Social Care,Third Party Payments,440038,Other third party payments E440,06/12/2021,3943268-HH78,"1,682.52",THE CYRENIANS LTD T/A CHANGING LIVES.
Children and Young Peoples Services,Head of Childrens Social Care,Third Party Payments,440038,Other third party payments E440,06/12/2021,3943268-HH79,"1,682.52",THE CYRENIANS LTD T/A CHANGING LIVES.
Children and Young Peoples Services,Head of Childrens Social Care,Third Party Payments,440038,Other third party payments E440,06/12/2021,3943268-SI3000000117,"1,873.33",THE CYRENIANS LTD T/A CHANGING LIVES.
Children and Young Peoples Services,Head of Childrens Social Care,Third Party Payments,440038,Other third party payments E440,06/12/2021,3943268-SI3000000118,"1,873.33",THE CYRENIANS LTD T/A CHANGING LIVES.
Children and Young Peoples Services,Head of Childrens Social Care,Third Party Payments,440038,Other third party payments E440,06/12/2021,3943268-SI3000000120,"1,328.66",THE CYRENIANS LTD T/A CHANGING LIVES.
Children and Young Peoples Services,Head of Childrens Social Care,Third Party Payments,440038,Other third party payments E440,06/12/2021,3943268-SI3000000121,"1,873.33",THE CYRENIANS LTD T/A CHANGING LIVES.
Children and Young Peoples Services,Head of Childrens Social Care,Third Party Payments,440038,Other third party payments E440,06/12/2021,3943268-SI3000000122,"2,417.20",THE CYRENIANS LTD T/A CHANGING LIVES.
Children and Young Peoples Services,Head of Childrens Social Care,Third Party Payments,440038,Other third party payments E440,06/12/2021,3943268-SI3000000123,720.00,THE CYRENIANS LTD T/A CHANGING LIVES.
Children and Young Peoples Services,Head of Childrens Social Care,Third Party Payments,440038,Other third party payments E440,06/12/2021,3943268-SI3000000124,"1,873.33",THE CYRENIANS LTD T/A CHANGING LIVES.
Children and Young Peoples Services,Head of Childrens Social Care,Third Party Payments,440038,Other third party payments E440,06/12/2021,3943268-SI3000000125,630.00,THE CYRENIANS LTD T/A CHANGING LIVES.
Children and Young Peoples Services,Head of Childrens Social Care,Third Party Payments,440046,Other third party payments E440,06/12/2021,3943300-INV-2309,"1,319.68",WE CARE RECRUITMENT SOLUTIONS LTD.
Children and Young Peoples Services,Head of Childrens Social Care,Third Party Payments,440046,Other third party payments E440,06/12/2021,3943300-INV-2312,"3,464.16",WE CARE RECRUITMENT SOLUTIONS LTD.
Children and Young Peoples Services,Head of Childrens Social Care,Third Party Payments,440046,Other third party payments E440,06/12/2021,3943300-INV-2314,"1,422.78",WE CARE RECRUITMENT SOLUTIONS LTD.
Children and Young Peoples Services,Head of Childrens Social Care,Third Party Payments,440046,Other third party payments E440,06/12/2021,3943300-INV-2327,"3,464.16",WE CARE RECRUITMENT SOLUTIONS LTD.
Children and Young Peoples Services,Head of Childrens Social Care,Third Party Payments,440046,Other third party payments E440,06/12/2021,3943300-INV-2330,"3,464.16",WE CARE RECRUITMENT SOLUTIONS LTD.
Children and Young Peoples Services,Head of Childrens Social Care,Third Party Payments,440046,Other third party payments E440,06/12/2021,3943300-INV-2333,"5,691.12",WE CARE RECRUITMENT SOLUTIONS LTD.
Children and Young Peoples Services,Head of Childrens Social Care,Third Party Payments,440046,Other third party payments E440,06/12/2021,3943300-INV-5025,806.72,WE CARE RECRUITMENT SOLUTIONS LTD.
Children and Young Peoples Services,Head of Childrens Social Care,Third Party Payments,440046,Other third party payments E440,06/12/2021,3943300-INV-5072,748.16,WE CARE RECRUITMENT SOLUTIONS LTD.
Children and Young Peoples Services,Head of Education and Skills,Third Party Payments,440999,Other third party payments E440,06/12/2021,3943303-NEI-EXP-12-2021-009,750.00,WEST GRANGE ESTATES LTD.
Children and Young Peoples Services,Head of Education and Skills,Third Party Payments,440999,Other third party payments E440,06/12/2021,3943303-NEI-EXP-12-2021-010,716.39,WEST GRANGE ESTATES LTD.
Children and Young Peoples Services,Head of Education and Skills,Third Party Payments,440999,Other third party payments E440,06/12/2021,3943310-NEI-EXP-12-2021-001,750.00,WOODSHED WORKSHOP CIC.
Adult and Health Services,Head of Adults,Third Party Payments,470101,Purchase of Care,06/12/2021,3942993-006,"1,396.00",COUNT CARE SERVICES LTD.
Adult and Health Services,Head of Adults,Third Party Payments,478151,Purchase of Care,06/12/2021,3943036-DURHAMROADP8-2021,"2,354.52",EMBRACING CARE.
Adult and Health Services,Head of Adults,Third Party Payments,478151,Purchase of Care,06/12/2021,3943036-EASTFIELDSP8-2021,"1,015.45",EMBRACING CARE.
Adult and Health Services,Head of Adults,Third Party Payments,478151,Purchase of Care,06/12/2021,3943036-GREENLANEPERIOD8-2021,"1,674.40",EMBRACING CARE.
Adult and Health Services,Head of Adults,Third Party Payments,478151,Purchase of Care,06/12/2021,3943036-LDCONTPERIOD8-2021,"3,962.40",EMBRACING CARE.
Adult and Health Services,Head of Adults,Third Party Payments,478151,Purchase of Care,06/12/2021,3943036-STGODRICS3PERIOD8-2021,"1,861.96",EMBRACING CARE.
Adult and Health Services,Head of Adults,Third Party Payments,478151,Purchase of Care,06/12/2021,3943040-21425,"2,100.00",ESSENTIAL CARE & SUPPORT LTD.
